Department Family,Entity,Date of Payment,Expense Type,Expense Area,Supplier,Voluntary & Community Sector,SME Class,Sole Trader,D-U-N-S Number,Transaction number,PSPES Level 2,Narrative,Postal Code,Amount in Sterling,Grant?
Communities & Local Government,DCLG,01/04/2015,Agency Staff,Finance & Corporate Services,SQUARE ONE RESOURCES LTD,,Medium,,491410288,5106211836,Contingent Labour,SAP specialist support until Closedown,EC2A 2AD,"2,858.82",
Communities & Local Government,DCLG,01/04/2015,Agency Staff,Localism,CAPITA BUS. SERV. LTD (CON LAB),,Large,,,5106211861,Contingent Labour,Interim Manager,DL1 9HB,"9,599.76",
Communities & Local Government,DCLG,01/04/2015,Capital Grant to LA Replace Loan Nonbud,Neighbourhoods,LUTON BOROUGH COUNCIL,,Public Bodies,,,2300002247,,Recovery of Overpayment,LU1 2RD,"-2,000.00",Yes
Communities & Local Government,DCLG,01/04/2015,Current Grants to Non Profit Bodies,Localism,CIVIC VOICE,Yes,,,,2100253232,,"Use Your Voice, Change Your Community",L1 4DQ,"65,000.00",Yes
Communities & Local Government,DCLG,01/04/2015,Current Grants to Non Profit Bodies,Localism,FORWARD,,,,,2100253208,,Community Projects to Prevent FGM,NW10 6RB,"49,000.00",Yes
Communities & Local Government,DCLG,01/04/2015,Current Grants to Non Profit Bodies,Localism,MEDIA TRUST,Yes,Medium,,506882240,2100253211,,To train young people to be community reporters,SW1P 4RR,"46,000.00",Yes
Communities & Local Government,DCLG,01/04/2015,Current Grants to Non Profit Bodies,Localism,SADAQA DAY LTD,,Micro,,,2100253239,,Contributing to integrated communities,SL2 1QH,"7,500.00",Yes
Communities & Local Government,DCLG,01/04/2015,"IT - PC, Network & Hardware",Finance & Corporate Services,COMPUTACENTER (UK) LTD,,Large,,226023463,5106211838,Networking,RSAToken Remediation qty 848 to 31/1/18,AL10 9TW,"36,379.92",
Communities & Local Government,DCLG,01/04/2015,IT - Service Contracts,Localism,AIRWAVE SOLUTIONS LTD,,Large,,232603469,5106209993,IT Managed / Outsourced Services,Phase A England 2014/15,SL1 2EJ,"-24,944.79",
Communities & Local Government,DCLG,01/04/2015,IT - Service Contracts,Localism,AIRWAVE SOLUTIONS LTD,,Large,,232603469,5106209993,IT Managed / Outsourced Services,Phase A Wales 2014/15,SL1 2EJ,"-3,067.29",
Communities & Local Government,DCLG,01/04/2015,IT - Service Contracts,Localism,AIRWAVE SOLUTIONS LTD,,Large,,232603469,5106209993,IT Managed / Outsourced Services,Phase A Scotland 2014/15,SL1 2EJ,"-9,215.42",
Communities & Local Government,DCLG,01/04/2015,IT - Service Contracts,Localism,AIRWAVE SOLUTIONS LTD,,Large,,232603469,5106210066,IT Managed / Outsourced Services,Phase A England 2014/15,SL1 2EJ,"-6,471.74",
Communities & Local Government,DCLG,01/04/2015,IT - Service Contracts,Localism,AIRWAVE SOLUTIONS LTD,,Large,,232603469,5106210066,IT Managed / Outsourced Services,Phase A Wales 2014/15,SL1 2EJ,"-4,719.72",
Communities & Local Government,DCLG,01/04/2015,IT - Service Contracts,Localism,AIRWAVE SOLUTIONS LTD,,Large,,232603469,5106210066,IT Managed / Outsourced Services,Phase A Scotland 2014/15,SL1 2EJ,"-12,307.00",
Communities & Local Government,DCLG,01/04/2015,IT - Service Contracts,Localism,AIRWAVE SOLUTIONS LTD,,Large,,232603469,5106211843,IT Managed / Outsourced Services,Phase A England 2014/15,SL1 2EJ,"1,027,758.55",
Communities & Local Government,DCLG,01/04/2015,IT - Service Contracts,Localism,AIRWAVE SOLUTIONS LTD,,Large,,232603469,5106211844,IT Managed / Outsourced Services,Phase B England 2014/15,SL1 2EJ,"260,404.82",
Communities & Local Government,DCLG,01/04/2015,IT - Service Contracts,Localism,AIRWAVE SOLUTIONS LTD,,Large,,232603469,5106211845,IT Managed / Outsourced Services,Phase C England (MDT1A) 2014/15,SL1 2EJ,"108,987.17",
Communities & Local Government,DCLG,01/04/2015,IT - Service Contracts,Localism,AIRWAVE SOLUTIONS LTD,,Large,,232603469,5106211846,IT Managed / Outsourced Services,Phase A Scotland 2014/15,SL1 2EJ,"261,594.22",
Communities & Local Government,DCLG,01/04/2015,IT - Service Contracts,Localism,AIRWAVE SOLUTIONS LTD,,Large,,232603469,5106211847,IT Managed / Outsourced Services,Phase B Scotland 2014/15,SL1 2EJ,"20,785.55",
Communities & Local Government,DCLG,01/04/2015,IT - Service Contracts,Localism,AIRWAVE SOLUTIONS LTD,,Large,,232603469,5106211848,IT Managed / Outsourced Services,Phase A Wales 2014/15,SL1 2EJ,"141,205.28",
Communities & Local Government,DCLG,01/04/2015,IT - Service Contracts,Localism,AIRWAVE SOLUTIONS LTD,,Large,,232603469,5106211849,IT Managed / Outsourced Services,Phase B Wales 2014/15,SL1 2EJ,"32,295.06",
Communities & Local Government,DCLG,01/04/2015,IT - Service Contracts,Localism,AIRWAVE SOLUTIONS LTD,,Large,,232603469,5106211850,IT Managed / Outsourced Services,Phase A England 2014/15,SL1 2EJ,"204,899.64",
Communities & Local Government,DCLG,01/04/2015,IT - Service Contracts,Localism,AIRWAVE SOLUTIONS LTD,,Large,,232603469,5106211850,IT Managed / Outsourced Services,Phase A Wales 2014/15,SL1 2EJ,"23,392.94",
Communities & Local Government,DCLG,01/04/2015,IT - Service Contracts,Localism,AIRWAVE SOLUTIONS LTD,,Large,,232603469,5106211850,IT Managed / Outsourced Services,Phase A Scotland 2014/15,SL1 2EJ,"53,550.12",
Communities & Local Government,DCLG,01/04/2015,Legal Fees,Finance & Corporate Services,GOVERNMENT LEGAL DEPARTMENT,,Public Bodies,,215580680,5106211854,Legal,Legal Advice,WC2B 4TS,"210,653.70",
Communities & Local Government,DCLG,01/04/2015,Legal Fees,Finance & Corporate Services,GOVERNMENT LEGAL DEPARTMENT,,Public Bodies,,215580680,5106211854,Legal,Legal Advice,WC2B 4TS,"5,847.00",
Communities & Local Government,DCLG,01/04/2015,Legal Fees,Finance & Corporate Services,GOVERNMENT LEGAL DEPARTMENT,,Public Bodies,,215580680,5106211854,Legal,Legal Advice,WC2B 4TS,0.29,
Communities & Local Government,DCLG,01/04/2015,Mobile phone costs,Finance & Corporate Services,ORANGE (AIRTIME/LINE RENTAL),,Large,,210707540,2100253262,Telecoms,Monthly consolidated telephone costs April 2015,S98 1DX,391.80,
Communities & Local Government,DCLG,01/04/2015,Online Database Information Retrieval,Finance & Corporate Services,OCEAN MEDIA GROUP LTD,,Medium,,292999950,5106211855,ICT Services,Inside Housing online + 1 paper copy,E14 5AA,"3,423.15",
Communities & Local Government,DCLG,01/04/2015,Research,"Strategy, Communications and Private Office",BEHAVIOURAL INSIGHTS LTD,,Small,,,5106211830,Research,Fire Kills Behavioural Insights workshop,EC4A 1DE,"1,925.00",
Communities & Local Government,DCLG,01/04/2015,Revenue Support grant payable,Localism,ADUR DC,,,,227472891,5000285486,,Grant Payable by Exchequer,BN43 6PR,"449,301.00",Yes
Communities & Local Government,DCLG,01/04/2015,Revenue Support grant payable,Localism,ALLERDALE BOROUGH COUNCIL,,,,230824120,5000285488,,Grant Payable by Exchequer,CA14 3YJ,"840,867.00",Yes
Communities & Local Government,DCLG,01/04/2015,Revenue Support grant payable,Localism,AMBER VALLEY BC,,,,,5000285490,,Grant Payable by Exchequer,DE5 3BT,"771,011.00",Yes
Communities & Local Government,DCLG,01/04/2015,Revenue Support grant payable,Localism,ARUN DC,,,,211217668,5000285492,,Grant Payable by Exchequer,BN17 5LF,"905,160.00",Yes
Communities & Local Government,DCLG,01/04/2015,Revenue Support grant payable,Localism,ASHFIELD DC,,,,235415296,5000285494,,Grant Payable by Exchequer,NG17 8DA,"891,533.00",Yes
Communities & Local Government,DCLG,01/04/2015,Revenue Support grant payable,Localism,ASHFORD BC,,,,229467071,5000285496,,Grant Payable by Exchequer,TN23 1PL,"679,136.00",Yes
Communities & Local Government,DCLG,01/04/2015,Revenue Support grant payable,Localism,AVON FIRE AUTHORITY,,,,424872570,5000285498,,Grant Payable by Exchequer,BS1 6EU,"3,387,357.00",Yes
Communities & Local Government,DCLG,01/04/2015,Revenue Support grant payable,Localism,AYLESBURY VALE DC,,,,396710709,5000285500,,Grant Payable by Exchequer,HP19 8FF,"901,809.00",Yes
Communities & Local Government,DCLG,01/04/2015,Revenue Support grant payable,Localism,BABERGH DC,,,,232618405,5000285502,,Grant Payable by Exchequer,IP7 6SJ,"532,065.00",Yes
Communities & Local Government,DCLG,01/04/2015,Revenue Support grant payable,Localism,BARKING & DAGENHAM LB,,Public Bodies,,227419488,5000285504,,Grant Payable by Exchequer,RM10 7BY,"15,133,652.00",Yes
Communities & Local Government,DCLG,01/04/2015,Revenue Support grant payable,Localism,BARNET LBC,,,,211049507,5000285506,,Grant Payable by Exchequer,N11 1NP,"16,814,467.00",Yes
Communities & Local Government,DCLG,01/04/2015,Revenue Support grant payable,Localism,BARNSLEY MBC,,Public Bodies,,211178595,5000285507,,Grant Payable by Exchequer,S70 2AQ,"14,915,018.00",Yes
Communities & Local Government,DCLG,01/04/2015,Revenue Support grant payable,Localism,BARROW BC,,,,295632913,5000285509,,Grant Payable by Exchequer,LA14 2LD,"1,097,228.00",Yes
Communities & Local Government,DCLG,01/04/2015,Revenue Support grant payable,Localism,BASILDON DC,,,,,5000285511,,Grant Payable by Exchequer,SS14 0DF,"1,414,810.00",Yes
Communities & Local Government,DCLG,01/04/2015,Revenue Support grant payable,Localism,BASINGSTOKE & DEANE BC,,,,228328506,5000285513,,Grant Payable by Exchequer,RG21 2AJ,"740,818.00",Yes
Communities & Local Government,DCLG,01/04/2015,Revenue Support grant payable,Localism,BASSETLAW DC,,,,230225054,5000285515,,Grant Payable by Exchequer,S80 2AH,"933,495.00",Yes
Communities & Local Government,DCLG,01/04/2015,Revenue Support grant payable,Localism,BATH & NORTH EAST SOMERSET DC,,,,214502499,5000285517,,Grant Payable by Exchequer,BA1 5AW,"6,834,696.00",Yes
Communities & Local Government,DCLG,01/04/2015,Revenue Support grant payable,Localism,BEDFORD BOROUGH COUNCIL,,,,211166889,5000285354,,Grant Payable by Exchequer,MK40 1SJ,"9,486,712.00",Yes
Communities & Local Government,DCLG,01/04/2015,Revenue Support grant payable,Localism,BEDS & LUTON FIRE & RESCUE SERVICE,,,,387821283,5000285519,,Grant Payable by Exchequer,MK42 7NR,"1,850,920.00",Yes
Communities & Local Government,DCLG,01/04/2015,Revenue Support grant payable,Localism,BEXLEY LB,,,,,5000285523,,Grant Payable by Exchequer,DA8 1TL,"10,339,207.00",Yes
Communities & Local Government,DCLG,01/04/2015,Revenue Support grant payable,Localism,BIRMINGHAM CITY CNCL,,,,213780559,5000285525,,Grant Payable by Exchequer,B3 3AB,"93,359,983.00",Yes
Communities & Local Government,DCLG,01/04/2015,Revenue Support grant payable,Localism,BLABY DC,,,,,5000285527,,Grant Payable by Exchequer,LE9 5EP,"519,521.00",Yes
Communities & Local Government,DCLG,01/04/2015,Revenue Support grant payable,Localism,BLACKBURN WITH DARWEN BC,,,,,5000285529,,Grant Payable by Exchequer,BB1 7DY,"11,851,174.00",Yes
Communities & Local Government,DCLG,01/04/2015,Revenue Support grant payable,Localism,BLACKPOOL BC,,,,,5000284859,,Grant Payable by Exchequer,FY1 1NA,"12,889,059.00",Yes
Communities & Local Government,DCLG,01/04/2015,Revenue Support grant payable,Localism,BOLSOVER DC,,Large,,235516523,5000284862,,Grant Payable by Exchequer,S43 4JY,"1,034,166.00",Yes
Communities & Local Government,DCLG,01/04/2015,Revenue Support grant payable,Localism,BOLTON MBC,,,,,5000284864,,Grant Payable by Exchequer,BL1 1RU,"17,739,519.00",Yes
Communities & Local Government,DCLG,01/04/2015,Revenue Support grant payable,Localism,BOSTON BC,,,,236417713,5000284866,,Grant Payable by Exchequer,PE21 8QR,"636,102.00",Yes
Communities & Local Government,DCLG,01/04/2015,Revenue Support grant payable,Localism,BOURNEMOUTH DC,,,,,5000284868,,Grant Payable by Exchequer,BH2 6EB,"8,491,611.00",Yes
Communities & Local Government,DCLG,01/04/2015,Revenue Support grant payable,Localism,BRACKNELL FOREST DC,,,,236184867,5000284870,,Grant Payable by Exchequer,RG12 1AQ,"5,223,276.00",Yes
Communities & Local Government,DCLG,01/04/2015,Revenue Support grant payable,Localism,BRADFORD MBC,,,,,5000284872,,Grant Payable by Exchequer,BD1 1HX,"35,796,473.00",Yes
Communities & Local Government,DCLG,01/04/2015,Revenue Support grant payable,Localism,BRAINTREE DC,,,,226941730,5000284874,,Grant Payable by Exchequer,CM7 9HB,"851,992.00",Yes
Communities & Local Government,DCLG,01/04/2015,Revenue Support grant payable,Localism,BRECKLAND DC,,,,232611384,5000284876,,Grant Payable by Exchequer,NR19 1EE,"928,984.00",Yes
Communities & Local Government,DCLG,01/04/2015,Revenue Support grant payable,Localism,BRENT LB,,,,,5000284877,,Grant Payable by Exchequer,HA9 9EZ,"23,284,425.00",Yes
Communities & Local Government,DCLG,01/04/2015,Revenue Support grant payable,Localism,BRENTWOOD BC,,,,227473188,5000284879,,Grant Payable by Exchequer,CM15 8AY,"419,560.00",Yes
Communities & Local Government,DCLG,01/04/2015,Revenue Support grant payable,Localism,BRIGHTON & HOVE CITY COUNCIL,,Large,,228455218,5000284883,,Grant Payable by Exchequer,BN3 2LS,"15,365,572.00",Yes
Communities & Local Government,DCLG,01/04/2015,Revenue Support grant payable,Localism,BRISTOL CITY CNCL,,,,211103882,5000284885,,Grant Payable by Exchequer,BS99 7BL,"27,051,209.00",Yes
Communities & Local Government,DCLG,01/04/2015,Revenue Support grant payable,Localism,BROADLAND DC,,,,219737785,5000284887,,Grant Payable by Exchequer,NR7 0DU,"688,537.00",Yes
Communities & Local Government,DCLG,01/04/2015,Revenue Support grant payable,Localism,BROMLEY LB,,,,211331954,5000284889,,Grant Payable by Exchequer,BR1 3UH,"10,990,258.00",Yes
Communities & Local Government,DCLG,01/04/2015,Revenue Support grant payable,Localism,BROMSGROVE DC,,,,236654745,5000284891,,Grant Payable by Exchequer,B60 1AA,"409,581.00",Yes
Communities & Local Government,DCLG,01/04/2015,Revenue Support grant payable,Localism,BROXBOURNE BOROUGH COUNCIL,,,,239931918,5000284893,,Grant Payable by Exchequer,EN8 9XQ,"560,463.00",Yes
Communities & Local Government,DCLG,01/04/2015,Revenue Support grant payable,Localism,BROXTOWE BC,,,,239877640,5000284895,,Grant Payable by Exchequer,NG9 1AB,"696,907.00",Yes
Communities & Local Government,DCLG,01/04/2015,Revenue Support grant payable,Localism,BUCKINGHAMSHIRE CC,,,,293750923,5000284899,,Grant Payable by Exchequer,HP20 1UD,"13,940,875.00",Yes
Communities & Local Government,DCLG,01/04/2015,Revenue Support grant payable,Localism,BUCKS & MILTON KEYNES FIRE AUTH,,Public Bodies,,423679463,5000284897,,Grant Payable by Exchequer,HP20 1BD,"1,723,371.00",Yes
Communities & Local Government,DCLG,01/04/2015,Revenue Support grant payable,Localism,BURNLEY BC,,,,229413281,5000284901,,Grant Payable by Exchequer,BB11 1JA,"1,580,968.00",Yes
Communities & Local Government,DCLG,01/04/2015,Revenue Support grant payable,Localism,BURY MBC,,,,236491114,5000284903,,Grant Payable by Exchequer,BL9 0SP,"9,722,019.00",Yes
Communities & Local Government,DCLG,01/04/2015,Revenue Support grant payable,Localism,CALDERDALE MBC,,Public Bodies,,,5000284905,,Grant Payable by Exchequer,HX1 1YP,"11,043,926.00",Yes
Communities & Local Government,DCLG,01/04/2015,Revenue Support grant payable,Localism,CAMBRIDGE CITY COUNCIL,,,,210357534,5000284906,,Grant Payable by Exchequer,CB2 3NA,"1,004,142.00",Yes
Communities & Local Government,DCLG,01/04/2015,Revenue Support grant payable,Localism,CAMBRIDGESHIRE COUNTY CNCL,,,,219047347,5000284909,,Grant Payable by Exchequer,CB3 0AP,"17,889,616.00",Yes
Communities & Local Government,DCLG,01/04/2015,Revenue Support grant payable,Localism,CAMBS & PETERBOROUGH FIRE AUTHORITY,,,,235999737,5000284908,,Grant Payable by Exchequer,PE29 2NA,"1,965,711.00",Yes
Communities & Local Government,DCLG,01/04/2015,Revenue Support grant payable,Localism,CAMDEN LONDON BOROUGH,,,,,5000284911,,Grant Payable by Exchequer,WC1H 8NG,"23,442,208.00",Yes
Communities & Local Government,DCLG,01/04/2015,Revenue Support grant payable,Localism,CANNOCK CHASE DC,,,,215064770,5000284913,,Grant Payable by Exchequer,WS11 1BG,"709,437.00",Yes
Communities & Local Government,DCLG,01/04/2015,Revenue Support grant payable,Localism,CANTERBURY CITY CNCL,,,,,5000284915,,Grant Payable by Exchequer,CT1 1YW,"1,079,307.00",Yes
Communities & Local Government,DCLG,01/04/2015,Revenue Support grant payable,Localism,CARLISLE CITY CNCL,,,,227471059,5000284917,,Grant Payable by Exchequer,CA3 8QG,"811,147.00",Yes
Communities & Local Government,DCLG,01/04/2015,Revenue Support grant payable,Localism,CASTLE POINT BC,,Public Bodies,,228217931,5000284919,,Grant Payable by Exchequer,SS7 1TF,"546,654.00",Yes
Communities & Local Government,DCLG,01/04/2015,Revenue Support grant payable,Localism,CENTRAL BEDFORDSHIRE COUNCIL,,,,232624882,5000285338,,Grant Payable by Exchequer,SG17 5TQ,"9,992,038.00",Yes
Communities & Local Government,DCLG,01/04/2015,Revenue Support grant payable,Localism,CHARNWOOD BC,,,,,5000284921,,Grant Payable by Exchequer,LE11 2TU,"1,014,418.00",Yes
Communities & Local Government,DCLG,01/04/2015,Revenue Support grant payable,Localism,CHELMSFORD BC,,,,,5000284923,,Grant Payable by Exchequer,CM1 1JE,"778,520.00",Yes
Communities & Local Government,DCLG,01/04/2015,Revenue Support grant payable,Localism,CHELTENHAM BC,,,,,5000284924,,Grant Payable by Exchequer,GL50 1PW,"703,509.00",Yes
Communities & Local Government,DCLG,01/04/2015,Revenue Support grant payable,Localism,CHERWELL DC,,,,,5000284927,,Grant Payable by Exchequer,OX15 4AA,"904,109.00",Yes
Communities & Local Government,DCLG,01/04/2015,Revenue Support grant payable,Localism,CHESHIRE EAST BOROUGH COUNCIL,,,,293699450,5000285340,,Grant Payable by Exchequer,CW11 1HZ,"13,060,413.00",Yes
Communities & Local Government,DCLG,01/04/2015,Revenue Support grant payable,Localism,CHESHIRE FIRE AUTHORITY,,,,424872737,5000284929,,Grant Payable by Exchequer,CW7 2FQ,"2,947,490.00",Yes
Communities & Local Government,DCLG,01/04/2015,Revenue Support grant payable,Localism,CHESHIRE WEST AND CHESTER,,Large,,215584383,5000285342,,Grant Payable by Exchequer,CH1 2NP,"14,737,514.00",Yes
Communities & Local Government,DCLG,01/04/2015,Revenue Support grant payable,Localism,CHESTERFIELD BC,,,,232102301,5000284931,,Grant Payable by Exchequer,S40 1LP,"787,572.00",Yes
Communities & Local Government,DCLG,01/04/2015,Revenue Support grant payable,Localism,CHICHESTER DC,,,,739800998,5000284933,,Grant Payable by Exchequer,PO19 1TY,"532,723.00",Yes
Communities & Local Government,DCLG,01/04/2015,Revenue Support grant payable,Localism,CHILTERN DC,,,,236183554,5000284935,,Grant Payable by Exchequer,HP6 5AW,"375,153.00",Yes
Communities & Local Government,DCLG,01/04/2015,Revenue Support grant payable,Localism,CHORLEY DC,,,,236415576,5000284938,,Grant Payable by Exchequer,PR7 1AL,"710,788.00",Yes
Communities & Local Government,DCLG,01/04/2015,Revenue Support grant payable,Localism,CHRISTCHURCH BC,,,,227415213,5000284940,,Grant Payable by Exchequer,BH23 1AZ,"233,247.00",Yes
Communities & Local Government,DCLG,01/04/2015,Revenue Support grant payable,Localism,CITY OF LINCOLN COUNCIL,,,,,5000285400,,Grant Payable by Exchequer,LN1 1DB,"861,768.00",Yes
Communities & Local Government,DCLG,01/04/2015,Revenue Support grant payable,Localism,CITY OF WAKEFIELD MDC,,,,,5000285256,,Grant Payable by Exchequer,WF1 2QW,"18,831,427.00",Yes
Communities & Local Government,DCLG,01/04/2015,Revenue Support grant payable,Localism,CLEVELAND FIRE AUTHORITY,,,,424872778,5000284946,,Grant Payable by Exchequer,TS25 5TB,"2,900,003.00",Yes
Communities & Local Government,DCLG,01/04/2015,Revenue Support grant payable,Localism,CO DURHAM & DARLINGTON FIRE AND RES,,,,424872851,5000284995,,Grant Payable by Exchequer,DH1 5UE,"2,272,599.00",Yes
Communities & Local Government,DCLG,01/04/2015,Revenue Support grant payable,Localism,COLCHESTER BC,,,,,5000284948,,Grant Payable by Exchequer,CO3 3WG,"1,065,123.00",Yes
Communities & Local Government,DCLG,01/04/2015,Revenue Support grant payable,Localism,COPELAND BC,,,,236414827,5000284950,,Grant Payable by Exchequer,CA28 7NY,"570,494.00",Yes
Communities & Local Government,DCLG,01/04/2015,Revenue Support grant payable,Localism,CORBY BC,,,,,5000284951,,Grant Payable by Exchequer,NN17 1GD,"500,863.00",Yes
Communities & Local Government,DCLG,01/04/2015,Revenue Support grant payable,Localism,CORNWALL COUNCIL,,,,211334404,5000285344,,Grant Payable by Exchequer,TR1 3AY,"29,990,032.00",Yes
Communities & Local Government,DCLG,01/04/2015,Revenue Support grant payable,Localism,CORPORATION OF LONDON,,,,225438175,5000284942,,Grant Payable by Exchequer,EC2P 2EJ,"4,024,504.00",Yes
Communities & Local Government,DCLG,01/04/2015,Revenue Support grant payable,Localism,COTSWOLD DC,,,,232462085,5000284953,,Grant Payable by Exchequer,GL7 1PX,"503,458.00",Yes
Communities & Local Government,DCLG,01/04/2015,Revenue Support grant payable,Localism,COVENTRY CITY CNCL,,,,210384802,5000284955,,Grant Payable by Exchequer,CV1 2QL,"20,616,929.00",Yes
Communities & Local Government,DCLG,01/04/2015,Revenue Support grant payable,Localism,CRAVEN DISTRICT COUNCIL,,,,215577851,5000284957,,Grant Payable by Exchequer,BD23 1PS,"382,465.00",Yes
Communities & Local Government,DCLG,01/04/2015,Revenue Support grant payable,Localism,CRAWLEY BOROUGH COUNCIL,,,,211222500,5000284959,,Grant Payable by Exchequer,RH10 1UZ,"875,014.00",Yes
Communities & Local Government,DCLG,01/04/2015,Revenue Support grant payable,Localism,CROYDON LB,,,,212419973,5000284961,,Grant Payable by Exchequer,CR9 3JS,"20,455,443.00",Yes
Communities & Local Government,DCLG,01/04/2015,Revenue Support grant payable,Localism,CUMBRIA COUNTY CNCL,,,,211316542,5000284964,,Grant Payable by Exchequer,CA3 8NA,"26,204,656.00",Yes
Communities & Local Government,DCLG,01/04/2015,Revenue Support grant payable,Localism,DACORUM BC,,,,236448643,5000284966,,Grant Payable by Exchequer,HP1 1HH,"689,841.00",Yes
Communities & Local Government,DCLG,01/04/2015,Revenue Support grant payable,Localism,DARLINGTON BC,,,,,5000284968,,Grant Payable by Exchequer,TS19 1JA,"5,979,129.00",Yes
Communities & Local Government,DCLG,01/04/2015,Revenue Support grant payable,Localism,DARTFORD BC,,,,225694942,5000284970,,Grant Payable by Exchequer,DA1 1DR,"657,500.00",Yes
Communities & Local Government,DCLG,01/04/2015,Revenue Support grant payable,Localism,DAVENTRY DC,,,,239859333,5000284972,,Grant Payable by Exchequer,NN11 5AF,"490,841.00",Yes
Communities & Local Government,DCLG,01/04/2015,Revenue Support grant payable,Localism,DERBY CITY CNCL,,,,229641378,5000284974,,Grant Payable by Exchequer,DE1 2FS,"14,976,438.00",Yes
Communities & Local Government,DCLG,01/04/2015,Revenue Support grant payable,Localism,DERBYSHIRE COUNTYCOUNCIL,,,,232152967,5000284977,,Grant Payable by Exchequer,DE4 3AG,"31,080,004.00",Yes
Communities & Local Government,DCLG,01/04/2015,Revenue Support grant payable,Localism,DERBYSHIRE DALES DC,,,,,5000284979,,Grant Payable by Exchequer,DE4 3NN,"456,879.00",Yes
Communities & Local Government,DCLG,01/04/2015,Revenue Support grant payable,Localism,DERBYSHIRE FIRE AND RESCUE SERVICE,,,,424872935,5000284976,,Grant Payable by Exchequer,DE23 6EH,"2,870,060.00",Yes
Communities & Local Government,DCLG,01/04/2015,Revenue Support grant payable,Localism,DEVON & SOMERSET FIRE & RESCUE SERV,,,,424872976,5000284983,,Grant Payable by Exchequer,EX3 0NW,"4,987,912.00",Yes
Communities & Local Government,DCLG,01/04/2015,Revenue Support grant payable,Localism,DEVON COUNTY CNCL,,,,213754018,5000284981,,Grant Payable by Exchequer,EX2 4QJ,"28,873,316.00",Yes
Communities & Local Government,DCLG,01/04/2015,Revenue Support grant payable,Localism,DONCASTER MBC,,,,,5000284985,,Grant Payable by Exchequer,DN1 3QA,"20,314,205.00",Yes
Communities & Local Government,DCLG,01/04/2015,Revenue Support grant payable,Localism,DORSET COUNTY CNCL,,,,225431279,5000284987,,Grant Payable by Exchequer,DT1 1XJ,"11,445,962.00",Yes
Communities & Local Government,DCLG,01/04/2015,Revenue Support grant payable,Localism,DORSET FIRE AUTHORITY,,,,,5000284989,,Grant Payable by Exchequer,DT1 1FB,"1,783,077.00",Yes
Communities & Local Government,DCLG,01/04/2015,Revenue Support grant payable,Localism,DOVER DC,,,,,5000284990,,Grant Payable by Exchequer,CT16 3PD,"865,815.00",Yes
Communities & Local Government,DCLG,01/04/2015,Revenue Support grant payable,Localism,DUDLEY MBC,,,,,5000284992,,Grant Payable by Exchequer,DY1 1HF,"18,816,005.00",Yes
Communities & Local Government,DCLG,01/04/2015,Revenue Support grant payable,Localism,DURHAM COUNTY COUNCIL,,,,228453601,5000285346,,Grant Payable by Exchequer,DH1 5UE,"33,412,890.00",Yes
Communities & Local Government,DCLG,01/04/2015,Revenue Support grant payable,Localism,EALING LB,,,,,5000284996,,Grant Payable by Exchequer,W5 2BY,"20,701,183.00",Yes
Communities & Local Government,DCLG,01/04/2015,Revenue Support grant payable,Localism,EAST CAMBRIDGESHIRE DC,,,,236472023,5000284998,,Grant Payable by Exchequer,CB7 4PL,"581,248.00",Yes
Communities & Local Government,DCLG,01/04/2015,Revenue Support grant payable,Localism,EAST DEVON DC,,,,,5000285000,,Grant Payable by Exchequer,EX10 8HL,"672,117.00",Yes
Communities & Local Government,DCLG,01/04/2015,Revenue Support grant payable,Localism,EAST DORSET DC,,,,228470456,5000285002,,Grant Payable by Exchequer,BH21 4HN,"326,489.00",Yes
Communities & Local Government,DCLG,01/04/2015,Revenue Support grant payable,Localism,EAST HAMPSHIRE DC,,,,,5000285004,,Grant Payable by Exchequer,GU31 4EX,"463,388.00",Yes
Communities & Local Government,DCLG,01/04/2015,Revenue Support grant payable,Localism,EAST HERTFORDSHIRE DC,,,,236176954,5000285006,,Grant Payable by Exchequer,SG13 8EQ,"685,567.00",Yes
Communities & Local Government,DCLG,01/04/2015,Revenue Support grant payable,Localism,EAST LINDSEY DC,,,,,5000285008,,Grant Payable by Exchequer,LN11 8UP,"1,451,801.00",Yes
Communities & Local Government,DCLG,01/04/2015,Revenue Support grant payable,Localism,EAST NORTHAMPTONSHIRE COUNCIL,,,,227475290,5000285010,,Grant Payable by Exchequer,NN14 4LZ,"569,815.00",Yes
Communities & Local Government,DCLG,01/04/2015,Revenue Support grant payable,Localism,EAST RIDING OF YORKS,,,,,5000285012,,Grant Payable by Exchequer,HU17 9AB,"14,797,531.00",Yes
Communities & Local Government,DCLG,01/04/2015,Revenue Support grant payable,Localism,EAST STAFFORDSHIRE BC,,,,226778033,5000285014,,Grant Payable by Exchequer,DE14 2EB,"768,786.00",Yes
Communities & Local Government,DCLG,01/04/2015,Revenue Support grant payable,Localism,EAST SUSSEX COUNTY CNCL,,,,,5000285016,,Grant Payable by Exchequer,BN7 1SF,"21,697,512.00",Yes
Communities & Local Government,DCLG,01/04/2015,Revenue Support grant payable,Localism,EAST SUSSEX FIRE & RESCUE SERVICE,,,,424873057,5000285018,,Grant Payable by Exchequer,BN21 1EU,"2,504,767.00",Yes
Communities & Local Government,DCLG,01/04/2015,Revenue Support grant payable,Localism,EASTBOURNE BC,,,,229896428,5000285020,,Grant Payable by Exchequer,BN21 4TW,"892,411.00",Yes
Communities & Local Government,DCLG,01/04/2015,Revenue Support grant payable,Localism,EASTLEIGH BOROUGH COUNCIL,,,,232669911,5000285022,,Grant Payable by Exchequer,SO5 9YN,"625,861.00",Yes
Communities & Local Government,DCLG,01/04/2015,Revenue Support grant payable,Localism,EDEN DC,,,,,5000285025,,Grant Payable by Exchequer,CA11 7QF,"439,400.00",Yes
Communities & Local Government,DCLG,01/04/2015,Revenue Support grant payable,Localism,ELMBRIDGE BOROUGH COUNCIL,,Large,,236082442,5000285027,,Grant Payable by Exchequer,KT10 9SD,"592,158.00",Yes
Communities & Local Government,DCLG,01/04/2015,Revenue Support grant payable,Localism,ENFIELD LB,,,,,5000285029,,Grant Payable by Exchequer,EN1 3XF,"19,774,760.00",Yes
Communities & Local Government,DCLG,01/04/2015,Revenue Support grant payable,Localism,EPPING FOREST DC,,,,775876360,5000285032,,Grant Payable by Exchequer,CM16 4BZ,"814,838.00",Yes
Communities & Local Government,DCLG,01/04/2015,Revenue Support grant payable,Localism,EPSOM & EWELL BC,,,,225423094,5000285034,,Grant Payable by Exchequer,KT18 5BY,"335,475.00",Yes
Communities & Local Government,DCLG,01/04/2015,Revenue Support grant payable,Localism,EREWASH BC,,,,211209762,5000285036,,Grant Payable by Exchequer,DE7 5RP,"792,458.00",Yes
Communities & Local Government,DCLG,01/04/2015,Revenue Support grant payable,Localism,ESSEX COUNTY CNCL,,,,233572986,5000285038,,Grant Payable by Exchequer,CM1 1JZ,"53,590,734.00",Yes
Communities & Local Government,DCLG,01/04/2015,Revenue Support grant payable,Localism,ESSEX FIRE AUTHORITY,,,,345412402,5000285040,,Grant Payable by Exchequer,CM8 3HB,"5,434,271.00",Yes
Communities & Local Government,DCLG,01/04/2015,Revenue Support grant payable,Localism,EXETER CITY CNCL,,,,,5000285042,,Grant Payable by Exchequer,EX1 1JW,"962,166.00",Yes
Communities & Local Government,DCLG,01/04/2015,Revenue Support grant payable,Localism,FAREHAM BC,,,,228474144,5000285044,,Grant Payable by Exchequer,PO16 7PU,"483,091.00",Yes
Communities & Local Government,DCLG,01/04/2015,Revenue Support grant payable,Localism,FENLAND DC,,,,227476348,5000285046,,Grant Payable by Exchequer,PE15 8NQ,"861,811.00",Yes
Communities & Local Government,DCLG,01/04/2015,Revenue Support grant payable,Localism,FOREST HEATH DISTRICT COUNCIL,,,,236678116,5000285048,,Grant Payable by Exchequer,IP28 7EY,"468,081.00",Yes
Communities & Local Government,DCLG,01/04/2015,Revenue Support grant payable,Localism,FOREST OF DEAN DC,,,,211278890,5000285050,,Grant Payable by Exchequer,GL16 8HG,"625,136.00",Yes
Communities & Local Government,DCLG,01/04/2015,Revenue Support grant payable,Localism,FYLDE BC,,,,227479912,5000285052,,Grant Payable by Exchequer,FY8 1LW,"480,836.00",Yes
Communities & Local Government,DCLG,01/04/2015,Revenue Support grant payable,Localism,GATESHEAD COUNCIL,,,,216116041,5000285054,,Grant Payable by Exchequer,NE8 1HH,"15,922,089.00",Yes
Communities & Local Government,DCLG,01/04/2015,Revenue Support grant payable,Localism,GEDLING BC,,,,236180337,5000285056,,Grant Payable by Exchequer,NG5 6LU,"715,403.00",Yes
Communities & Local Government,DCLG,01/04/2015,Revenue Support grant payable,Localism,GLOUCESTER CITY COUNCIL,,,,230841392,5000285060,,Grant Payable by Exchequer,GL1 2EQ,"911,485.00",Yes
Communities & Local Government,DCLG,01/04/2015,Revenue Support grant payable,Localism,GLOUCESTERSHIRE COUNTY CNCL,,,,211272067,5000285062,,Grant Payable by Exchequer,GL1 2TG,"22,485,235.00",Yes
Communities & Local Government,DCLG,01/04/2015,Revenue Support grant payable,Localism,GOSPORT BOROUGH COUNCIL,,,,239825078,5000285064,,Grant Payable by Exchequer,PO12 1ED,"608,198.00",Yes
Communities & Local Government,DCLG,01/04/2015,Revenue Support grant payable,Localism,GRAVESHAM BC,,,,236178612,5000285066,,Grant Payable by Exchequer,DA12 1AU,"673,216.00",Yes
Communities & Local Government,DCLG,01/04/2015,Revenue Support grant payable,Localism,GREAT YARMOUTH BC,,,,292697372,5000285068,,Grant Payable by Exchequer,NR30 2QG,"1,512,865.00",Yes
Communities & Local Government,DCLG,01/04/2015,Revenue Support grant payable,Localism,GREATER LONDON AUTHORITY,,Public Bodies,,232112404,5000285058,,Grant Payable by Exchequer,SE10 1AJ,"57,897,738.00",Yes
Communities & Local Government,DCLG,01/04/2015,Revenue Support grant payable,Localism,GREATER MANCHESTER FIRE & RESCUE AU,,,,,5000285416,,Grant Payable by Exchequer,M27 8US,"10,082,808.00",Yes
Communities & Local Government,DCLG,01/04/2015,Revenue Support grant payable,Localism,GREENWICH LB,,,,,5000285070,,Grant Payable by Exchequer,SE18 6HQ,"21,749,524.00",Yes
Communities & Local Government,DCLG,01/04/2015,Revenue Support grant payable,Localism,GUILDFORD BC,,,,236663720,5000285073,,Grant Payable by Exchequer,GU2 5BB,"693,055.00",Yes
Communities & Local Government,DCLG,01/04/2015,Revenue Support grant payable,Localism,HALTON BC,,,,227959376,5000285076,,Grant Payable by Exchequer,WA8 7QF,"9,420,375.00",Yes
Communities & Local Government,DCLG,01/04/2015,Revenue Support grant payable,Localism,HAMBLETON DC,,Large,,503481319,5000285078,,Grant Payable by Exchequer,DL6 2UU,"534,085.00",Yes
Communities & Local Government,DCLG,01/04/2015,Revenue Support grant payable,Localism,HAMMERSMITH & FULHAM LB,,,,216929489,5000285080,,Grant Payable by Exchequer,W6 9JU,"15,930,317.00",Yes
Communities & Local Government,DCLG,01/04/2015,Revenue Support grant payable,Localism,HAMPSHIRE COUNTY COUNCIL,,,,211325832,5000285082,,Grant Payable by Exchequer,SO23 8UB,"38,906,508.00",Yes
Communities & Local Government,DCLG,01/04/2015,Revenue Support grant payable,Localism,HAMPSHIRE FIRE & RESCUE AUTHORITY,,,,211325832,5000285086,,Grant Payable by Exchequer,SO23 8UB,"4,798,326.00",Yes
Communities & Local Government,DCLG,01/04/2015,Revenue Support grant payable,Localism,HARBOROUGH DC,,Public Bodies,,232611962,5000285088,,Grant Payable by Exchequer,LE16 7AG,"455,802.00",Yes
Communities & Local Government,DCLG,01/04/2015,Revenue Support grant payable,Localism,HARINGEY LB,,,,217471767,5000285090,,Grant Payable by Exchequer,N22 7TR,"21,353,390.00",Yes
Communities & Local Government,DCLG,01/04/2015,Revenue Support grant payable,Localism,HARLOW COUNCIL,,,,239999055,5000285092,,Grant Payable by Exchequer,CM20 1WG,"716,145.00",Yes
Communities & Local Government,DCLG,01/04/2015,Revenue Support grant payable,Localism,HARROGATE BOROUGH COUNCIL,,,,236660031,5000285094,,Grant Payable by Exchequer,HG1 2SG,"968,219.00",Yes
Communities & Local Government,DCLG,01/04/2015,Revenue Support grant payable,Localism,HARROW LB,,,,,5000285096,,Grant Payable by Exchequer,HA1 2UZ,"10,677,820.00",Yes
Communities & Local Government,DCLG,01/04/2015,Revenue Support grant payable,Localism,HART DC,,,,229723895,5000285098,,Grant Payable by Exchequer,GU13 8AE,"371,745.00",Yes
Communities & Local Government,DCLG,01/04/2015,Revenue Support grant payable,Localism,HARTLEPOOL BOROUGH COUNCIL,,,,424291797,5000285100,,Grant Payable by Exchequer,TS24 8AY,"7,561,242.00",Yes
Communities & Local Government,DCLG,01/04/2015,Revenue Support grant payable,Localism,HASTINGS BC,,,,,5000285102,,Grant Payable by Exchequer,TN34 3WN,"1,242,399.00",Yes
Communities & Local Government,DCLG,01/04/2015,Revenue Support grant payable,Localism,HAVANT BC,,,,211047543,5000285104,,Grant Payable by Exchequer,PO9 2AX,"818,982.00",Yes
Communities & Local Government,DCLG,01/04/2015,Revenue Support grant payable,Localism,HAVERING LB,,,,211209770,5000285106,,Grant Payable by Exchequer,RM1 3BB,"10,147,406.00",Yes
Communities & Local Government,DCLG,01/04/2015,Revenue Support grant payable,Localism,HEREFORD & WORCESTER FIRE & RESCUE,,,,236425484,5000285108,,Grant Payable by Exchequer,WR5 1JR,"1,851,787.00",Yes
Communities & Local Government,DCLG,01/04/2015,Revenue Support grant payable,Localism,HEREFORDSHIRE DISTRICT COUNCIL,,,,211510826,5000285110,,Grant Payable by Exchequer,HR1 1SH,"8,893,664.00",Yes
Communities & Local Government,DCLG,01/04/2015,Revenue Support grant payable,Localism,HERTFORDSHIRE COUNTY CNCL,,,,,5000285112,,Grant Payable by Exchequer,SG13 9BD,"39,656,101.00",Yes
Communities & Local Government,DCLG,01/04/2015,Revenue Support grant payable,Localism,HERTSMERE BC,,,,237549253,5000285114,,Grant Payable by Exchequer,WD6 1WA,"663,232.00",Yes
Communities & Local Government,DCLG,01/04/2015,Revenue Support grant payable,Localism,HIGH PEAK BC,,,,239967771,5000285118,,Grant Payable by Exchequer,SK17 6EL,"582,745.00",Yes
Communities & Local Government,DCLG,01/04/2015,Revenue Support grant payable,Localism,HILLINGDON LB,,,,211198585,5000285121,,Grant Payable by Exchequer,UB8 1UW,"13,169,124.00",Yes
Communities & Local Government,DCLG,01/04/2015,Revenue Support grant payable,Localism,HINCKLEY & BOSWORTH BC,,,,211176144,5000285123,,Grant Payable by Exchequer,LE10 1BZ,"612,843.00",Yes
Communities & Local Government,DCLG,01/04/2015,Revenue Support grant payable,Localism,HORSHAM DC,,,,229776588,5000285125,,Grant Payable by Exchequer,RH12 1RL,"534,221.00",Yes
Communities & Local Government,DCLG,01/04/2015,Revenue Support grant payable,Localism,HOUNSLOW LB,,,,210388999,5000285127,,Grant Payable by Exchequer,TW3 4DN,"13,545,495.00",Yes
Communities & Local Government,DCLG,01/04/2015,Revenue Support grant payable,Localism,HULL CITY COUNCIL,,,,217460984,5000285154,,Grant Payable by Exchequer,HU1 2AA,"20,909,126.00",Yes
Communities & Local Government,DCLG,01/04/2015,Revenue Support grant payable,Localism,HUMBERSIDE FIRE & RESCUE SERVICE,,,,229832563,5000285129,,Grant Payable by Exchequer,HU4 7BB,"4,115,144.00",Yes
Communities & Local Government,DCLG,01/04/2015,Revenue Support grant payable,Localism,HUNTINGDONSHIRE DC,,,,235999216,5000285131,,Grant Payable by Exchequer,PE18 6TN,"1,061,103.00",Yes
Communities & Local Government,DCLG,01/04/2015,Revenue Support grant payable,Localism,HYNDBURN BC,,,,,5000285133,,Grant Payable by Exchequer,BB5 1EZ,"1,268,292.00",Yes
Communities & Local Government,DCLG,01/04/2015,Revenue Support grant payable,Localism,IPSWICH BC,,,,226861391,5000285137,,Grant Payable by Exchequer,IP3 8SF,"997,705.00",Yes
Communities & Local Government,DCLG,01/04/2015,Revenue Support grant payable,Localism,ISLE OF WIGHT CNCL,,,,236431730,5000285135,,Grant Payable by Exchequer,PO30 1UD,"8,701,033.00",Yes
Communities & Local Government,DCLG,01/04/2015,Revenue Support grant payable,Localism,ISLES OF SCILLY COUNCIL,,,,214146040,5000285139,,Grant Payable by Exchequer,TR21 0LW,"633,681.00",Yes
Communities & Local Government,DCLG,01/04/2015,Revenue Support grant payable,Localism,ISLINGTON LB,,,,225716729,5000285141,,Grant Payable by Exchequer,N1 1XR,"22,168,484.00",Yes
Communities & Local Government,DCLG,01/04/2015,Revenue Support grant payable,Localism,KENT & MEDWAY TOWNS FIRE AUTHORITY,,,,423679414,5000285148,,Grant Payable by Exchequer,ME15 6XB,"4,787,057.00",Yes
Communities & Local Government,DCLG,01/04/2015,Revenue Support grant payable,Localism,KENT COUNTY CNCL,,,,211334420,5000285145,,Grant Payable by Exchequer,ME14 1XQ,"53,667,815.00",Yes
Communities & Local Government,DCLG,01/04/2015,Revenue Support grant payable,Localism,KETTERING BC,,,,211271796,5000285150,,Grant Payable by Exchequer,NN15 7QX,"622,312.00",Yes
Communities & Local Government,DCLG,01/04/2015,Revenue Support grant payable,Localism,KINGS LYNN & WEST NORFOLK BC,,,,236417671,5000285152,,Grant Payable by Exchequer,PE30 1EX,"1,304,347.00",Yes
Communities & Local Government,DCLG,01/04/2015,Revenue Support grant payable,Localism,KINGSTON UPON THAMES,,,,,5000285156,,Grant Payable by Exchequer,KT1 1EU,"6,186,423.00",Yes
Communities & Local Government,DCLG,01/04/2015,Revenue Support grant payable,Localism,KIRKLEES MBC,,,,,5000285158,,Grant Payable by Exchequer,HD1 2YU,"21,518,184.00",Yes
Communities & Local Government,DCLG,01/04/2015,Revenue Support grant payable,Localism,KNOWSLEY MBC,,,,,5000285160,,Grant Payable by Exchequer,L36 9YZ,"16,480,946.00",Yes
Communities & Local Government,DCLG,01/04/2015,Revenue Support grant payable,Localism,LANCASHIRE COMBINED FIRE AUTHORITY,,,,230398732,5000285381,,Grant Payable by Exchequer,PR2 3LH,"5,069,750.00",Yes
Communities & Local Government,DCLG,01/04/2015,Revenue Support grant payable,Localism,LANCASHIRE COUNTY CNCL,,,,233136584,5000285164,,Grant Payable by Exchequer,PR1 8RD,"52,987,267.00",Yes
Communities & Local Government,DCLG,01/04/2015,Revenue Support grant payable,Localism,LANCASTER CITY CNCL,,,,228669990,5000285383,,Grant Payable by Exchequer,LA1 1PJ,"1,287,145.00",Yes
Communities & Local Government,DCLG,01/04/2015,Revenue Support grant payable,Localism,LEEDS CITY CNCL,,,,,5000285385,,Grant Payable by Exchequer,LS1 1JF,"41,435,628.00",Yes
Communities & Local Government,DCLG,01/04/2015,Revenue Support grant payable,Localism,LEICESTER CITY CNCL,,,,228219960,5000285387,,Grant Payable by Exchequer,LE1 1FZ,"26,053,305.00",Yes
Communities & Local Government,DCLG,01/04/2015,Revenue Support grant payable,Localism,LEICESTERSHIRE COUNTY CNCL,,,,423679836,5000285391,,Grant Payable by Exchequer,LE3 8RB,"18,744,291.00",Yes
Communities & Local Government,DCLG,01/04/2015,Revenue Support grant payable,Localism,LEICS LEICESTERSHIRE RUTLAND CFA,,,,,5000285389,,Grant Payable by Exchequer,LE4 3BU,"2,795,555.00",Yes
Communities & Local Government,DCLG,01/04/2015,Revenue Support grant payable,Localism,LEWES DC,,Large,,213090082,5000285393,,Grant Payable by Exchequer,BN7 1AB,"567,981.00",Yes
Communities & Local Government,DCLG,01/04/2015,Revenue Support grant payable,Localism,LEWISHAM LONDON BOROUGH,,Large,,235653300,5000285396,,Grant Payable by Exchequer,SE6 4RU,"24,550,946.00",Yes
Communities & Local Government,DCLG,01/04/2015,Revenue Support grant payable,Localism,LICHFIELD DC,,,,236780086,5000285398,,Grant Payable by Exchequer,WS13 6YX,"483,461.00",Yes
Communities & Local Government,DCLG,01/04/2015,Revenue Support grant payable,Localism,LINCOLNSHIRE COUNTY CNCL,,,,,5000285402,,Grant Payable by Exchequer,LN1 1YT,"31,556,384.00",Yes
Communities & Local Government,DCLG,01/04/2015,Revenue Support grant payable,Localism,LIVERPOOL CITY COUNCIL,,,,,5000285404,,Grant Payable by Exchequer,L2 2DH,"45,128,375.00",Yes
Communities & Local Government,DCLG,01/04/2015,Revenue Support grant payable,Localism,LONDON BOROUGH OF HACKNEY,,,,225221597,5000285074,,Grant Payable by Exchequer,E8 4RU,"28,083,798.00",Yes
Communities & Local Government,DCLG,01/04/2015,Revenue Support grant payable,Localism,LONDON BOROUGH OF LAMBETH,,,,228216479,5000285162,,Grant Payable by Exchequer,SW2 1RL,"29,059,781.00",Yes
Communities & Local Government,DCLG,01/04/2015,Revenue Support grant payable,Localism,LONDON BOROUGH OF NEWHAM,,Large,,228454344,5000285453,,Grant Payable by Exchequer,E16 2QU,"28,604,556.00",Yes
Communities & Local Government,DCLG,01/04/2015,Revenue Support grant payable,Localism,LONDON BOROUGH OF REDBRIDGE,,,,211341417,5000285524,,Grant Payable by Exchequer,IG1 1NN,"14,314,812.00",Yes
Communities & Local Government,DCLG,01/04/2015,Revenue Support grant payable,Localism,LUTON BC,,,,365112155,5000285406,,Grant Payable by Exchequer,LU1 2BQ,"12,450,506.00",Yes
Communities & Local Government,DCLG,01/04/2015,Revenue Support grant payable,Localism,MAIDSTONE BC,,,,293004214,5000285408,,Grant Payable by Exchequer,ME15 6JQ,"755,556.00",Yes
Communities & Local Government,DCLG,01/04/2015,Revenue Support grant payable,Localism,MALDON DC,,,,424668663,5000285410,,Grant Payable by Exchequer,CM9 7DL,"353,843.00",Yes
Communities & Local Government,DCLG,01/04/2015,Revenue Support grant payable,Localism,MALVERN HILLS DC,,,,227470424,5000285412,,Grant Payable by Exchequer,WR14 3AF,"434,254.00",Yes
Communities & Local Government,DCLG,01/04/2015,Revenue Support grant payable,Localism,MANCHESTER CITY CNCL,,,,211241393,5000285414,,Grant Payable by Exchequer,M60 2JR,"46,118,939.00",Yes
Communities & Local Government,DCLG,01/04/2015,Revenue Support grant payable,Localism,MANSFIELD DC,,,,237922968,5000285418,,Grant Payable by Exchequer,NG19 7BH,"883,830.00",Yes
Communities & Local Government,DCLG,01/04/2015,Revenue Support grant payable,Localism,MEDWAY COUNCIL,,,,210389746,5000285420,,Grant Payable by Exchequer,ME4 4TR,"12,927,798.00",Yes
Communities & Local Government,DCLG,01/04/2015,Revenue Support grant payable,Localism,MELTON BC,,,,346268340,5000285423,,Grant Payable by Exchequer,LE13 0UL,"339,895.00",Yes
Communities & Local Government,DCLG,01/04/2015,Revenue Support grant payable,Localism,MENDIP DISTRICT COUNCIL,,,,,5000285425,,Grant Payable by Exchequer,BA4 5BA,"725,655.00",Yes
Communities & Local Government,DCLG,01/04/2015,Revenue Support grant payable,Localism,MERSEYSIDE FIRE & RESCUE SERVICE,,,,210372331,5000285427,,Grant Payable by Exchequer,L30 4YD,"6,242,800.00",Yes
Communities & Local Government,DCLG,01/04/2015,Revenue Support grant payable,Localism,MERTON LB,,,,,5000285429,,Grant Payable by Exchequer,SM4 5DX,"10,141,557.00",Yes
Communities & Local Government,DCLG,01/04/2015,Revenue Support grant payable,Localism,MID DEVON DC,,,,213241137,5000285431,,Grant Payable by Exchequer,EX16 6PP,"568,277.00",Yes
Communities & Local Government,DCLG,01/04/2015,Revenue Support grant payable,Localism,MID SUFFOLK DC,,,,219028933,5000285433,,Grant Payable by Exchequer,IP6 8DL,"563,011.00",Yes
Communities & Local Government,DCLG,01/04/2015,Revenue Support grant payable,Localism,MID SUSSEX DC,,,,236675989,5000285435,,Grant Payable by Exchequer,RH16 1SS,"556,637.00",Yes
Communities & Local Government,DCLG,01/04/2015,Revenue Support grant payable,Localism,MIDDLESBROUGH BC,,,,,5000285437,,Grant Payable by Exchequer,TS1 9GA,"11,632,985.00",Yes
Communities & Local Government,DCLG,01/04/2015,Revenue Support grant payable,Localism,MILTON KEYNES BC,,,,506884659,5000285439,,Grant Payable by Exchequer,MK9 3EJ,"12,319,481.00",Yes
Communities & Local Government,DCLG,01/04/2015,Revenue Support grant payable,Localism,MOLE VALLEY DC,,,,225385772,5000285441,,Grant Payable by Exchequer,RH4 1SJ,"300,998.00",Yes
Communities & Local Government,DCLG,01/04/2015,Revenue Support grant payable,Localism,NEW FOREST DC,,,,,5000285445,,Grant Payable by Exchequer,SO41 9ZG,"988,110.00",Yes
Communities & Local Government,DCLG,01/04/2015,Revenue Support grant payable,Localism,NEWARK & SHERWOOD DC,,,,236186755,5000285447,,Grant Payable by Exchequer,NG23 5QX,"874,537.00",Yes
Communities & Local Government,DCLG,01/04/2015,Revenue Support grant payable,Localism,NEWCASTLE UNDER LYME BC,,,,229894373,5000285451,,Grant Payable by Exchequer,ST5 2AG,"893,937.00",Yes
Communities & Local Government,DCLG,01/04/2015,Revenue Support grant payable,Localism,NEWCASTLE UPON TYNE DC,,,,239154040,5000285449,,Grant Payable by Exchequer,NE99 1RD,"24,169,410.00",Yes
Communities & Local Government,DCLG,01/04/2015,Revenue Support grant payable,Localism,NORFOLK COUNTY COUNCIL,,,,232602789,5000285456,,Grant Payable by Exchequer,NR1 2DW,"46,138,060.00",Yes
Communities & Local Government,DCLG,01/04/2015,Revenue Support grant payable,Localism,NORTH DEVON DC,,,,,5000285458,,Grant Payable by Exchequer,EX31 1EA,"738,726.00",Yes
Communities & Local Government,DCLG,01/04/2015,Revenue Support grant payable,Localism,NORTH DORSET DC,,,,236185005,5000285460,,Grant Payable by Exchequer,DT11 7LL,"394,783.00",Yes
Communities & Local Government,DCLG,01/04/2015,Revenue Support grant payable,Localism,NORTH EAST DERBYSHIRE DC,,,,238879308,5000285443,,Grant Payable by Exchequer,S40 1LF,"656,911.00",Yes
Communities & Local Government,DCLG,01/04/2015,Revenue Support grant payable,Localism,NORTH EAST LINCOLN COUNCIL,,Public Bodies,,423962570,5000285462,,Grant Payable by Exchequer,DN35 8LN,"10,449,347.00",Yes
Communities & Local Government,DCLG,01/04/2015,Revenue Support grant payable,Localism,NORTH HERTS DC,,,,233593917,5000285464,,Grant Payable by Exchequer,SG6 3HN,"629,027.00",Yes
Communities & Local Government,DCLG,01/04/2015,Revenue Support grant payable,Localism,NORTH KESTEVEN DC,,,,,5000285466,,Grant Payable by Exchequer,NG34 7EF,"725,287.00",Yes
Communities & Local Government,DCLG,01/04/2015,Revenue Support grant payable,Localism,NORTH LINCOLNSHIRE DC,,Public Bodies,,221034841,5000285468,,Grant Payable by Exchequer,DN16 1AB,"8,910,101.00",Yes
Communities & Local Government,DCLG,01/04/2015,Revenue Support grant payable,Localism,NORTH NORFOLK DC,,,,239975964,5000285470,,Grant Payable by Exchequer,NR27 9EN,"801,303.00",Yes
Communities & Local Government,DCLG,01/04/2015,Revenue Support grant payable,Localism,NORTH SOMERSET DC,,,,,5000285472,,Grant Payable by Exchequer,BS21 6FW,"8,829,381.00",Yes
Communities & Local Government,DCLG,01/04/2015,Revenue Support grant payable,Localism,NORTH TYNESIDE MBC,,,,,5000285475,,Grant Payable by Exchequer,NE27 0BY,"13,277,213.00",Yes
Communities & Local Government,DCLG,01/04/2015,Revenue Support grant payable,Localism,NORTH WARWICKSHIRE BC,,,,,5000285477,,Grant Payable by Exchequer,CV9 1DE,"467,300.00",Yes
Communities & Local Government,DCLG,01/04/2015,Revenue Support grant payable,Localism,NORTH WEST LEICESTERSHIRE DC,,,,232605782,5000285497,,Grant Payable by Exchequer,LE67 PSH,"583,134.00",Yes
Communities & Local Government,DCLG,01/04/2015,Revenue Support grant payable,Localism,NORTH YORKSHIRE CC,,,,,5000285479,,Grant Payable by Exchequer,DL7 8AL,"19,739,037.00",Yes
Communities & Local Government,DCLG,01/04/2015,Revenue Support grant payable,Localism,NORTH YORKSHIRE FIRE & RESCUE AUTH,,,,423679778,5000285481,,Grant Payable by Exchequer,DL6 1AB,"2,012,179.00",Yes
Communities & Local Government,DCLG,01/04/2015,Revenue Support grant payable,Localism,NORTHAMPTON BOROUGH COUNCIL,,Large,,228310017,5000285483,,Grant Payable by Exchequer,NN4 4FF,"1,647,834.00",Yes
Communities & Local Government,DCLG,01/04/2015,Revenue Support grant payable,Localism,NORTHAMPTONSHIRE COUNTY COUNCIL,,Public Bodies,,385469184,5000285485,,Grant Payable by Exchequer,NN4 7DB,"25,978,565.00",Yes
Communities & Local Government,DCLG,01/04/2015,Revenue Support grant payable,Localism,NORTHUMBERLAND,,,,210308905,5000285348,,Grant Payable by Exchequer,NE61 2EF,"18,998,238.00",Yes
Communities & Local Government,DCLG,01/04/2015,Revenue Support grant payable,Localism,NORWICH CITY CNCL,,,,235981297,5000285487,,Grant Payable by Exchequer,NR2 1NH,"1,365,354.00",Yes
Communities & Local Government,DCLG,01/04/2015,Revenue Support grant payable,Localism,NOTTINGHAM CITY COUNCIL,,,,214495447,5000285489,,Grant Payable by Exchequer,NG2 3NG,"24,596,984.00",Yes
Communities & Local Government,DCLG,01/04/2015,Revenue Support grant payable,Localism,NOTTINGHAMSHIRE COUNTY CNCL,,,,,5000285491,,Grant Payable by Exchequer,NG2 7QP,"30,110,103.00",Yes
Communities & Local Government,DCLG,01/04/2015,Revenue Support grant payable,Localism,NOTTS & CITY NOTTINGHAM FIRE AUTH,,,,296814999,5000285493,,Grant Payable by Exchequer,NG5 8PD,"3,447,398.00",Yes
Communities & Local Government,DCLG,01/04/2015,Revenue Support grant payable,Localism,NUNEATON & BEDWORTH BC,,Large,,,5000285495,,Grant Payable by Exchequer,CV11 5AA,"862,664.00",Yes
Communities & Local Government,DCLG,01/04/2015,Revenue Support grant payable,Localism,OADBY & WIGSTON BC,,,,239831878,5000285499,,Grant Payable by Exchequer,LE8 2DR,"376,615.00",Yes
Communities & Local Government,DCLG,01/04/2015,Revenue Support grant payable,Localism,OLDHAM MBC,,,,213015574,5000285501,,Grant Payable by Exchequer,OL1 1UH,"16,959,391.00",Yes
Communities & Local Government,DCLG,01/04/2015,Revenue Support grant payable,Localism,OXFORD CITY CNCL,,,,236042586,5000285503,,Grant Payable by Exchequer,OX1 1DS,"1,487,458.00",Yes
Communities & Local Government,DCLG,01/04/2015,Revenue Support grant payable,Localism,OXFORDSHIRE CC,,,,228216438,5000285505,,Grant Payable by Exchequer,OX4 2GQ,"20,768,275.00",Yes
Communities & Local Government,DCLG,01/04/2015,Revenue Support grant payable,Localism,PENDLE BC,,,,548605328,5000285508,,Grant Payable by Exchequer,BB9 OLX,"1,301,307.00",Yes
Communities & Local Government,DCLG,01/04/2015,Revenue Support grant payable,Localism,PETERBOROUGH CITY CNCL,,,,,5000285510,,Grant Payable by Exchequer,PE1 1HG,"11,439,481.00",Yes
Communities & Local Government,DCLG,01/04/2015,Revenue Support grant payable,Localism,PLYMOUTH CITY COUNCIL,,Public Bodies,,236416095,5000285512,,Grant Payable by Exchequer,PL1 2AA,"14,797,680.00",Yes
Communities & Local Government,DCLG,01/04/2015,Revenue Support grant payable,Localism,POOLE BC,,,,,5000285514,,Grant Payable by Exchequer,BH15 2RU,"4,946,518.00",Yes
Communities & Local Government,DCLG,01/04/2015,Revenue Support grant payable,Localism,PORTSMOUTH CITY COUNCIL,,Large,,211183082,5000285516,,Grant Payable by Exchequer,PO1 2AR,"12,845,753.00",Yes
Communities & Local Government,DCLG,01/04/2015,Revenue Support grant payable,Localism,PRESTON BC,,,,232604124,5000285518,,Grant Payable by Exchequer,PR1 2RL,"1,259,286.00",Yes
Communities & Local Government,DCLG,01/04/2015,Revenue Support grant payable,Localism,PURBECK DC,,Public Bodies,,,5000285520,,Grant Payable by Exchequer,BH20 4PP,"268,856.00",Yes
Communities & Local Government,DCLG,01/04/2015,Revenue Support grant payable,Localism,READING BC,,,,210220399,5000285522,,Grant Payable by Exchequer,RG1 7TD,"8,098,149.00",Yes
Communities & Local Government,DCLG,01/04/2015,Revenue Support grant payable,Localism,REDCAR & CLEVELAND BOROUGH COUNCIL,,,,215175196,5000285526,,Grant Payable by Exchequer,TS6 9AR,"9,216,918.00",Yes
Communities & Local Government,DCLG,01/04/2015,Revenue Support grant payable,Localism,REDDITCH BC,,,,231421491,5000285528,,Grant Payable by Exchequer,B98 8AH,"525,864.00",Yes
Communities & Local Government,DCLG,01/04/2015,Revenue Support grant payable,Localism,REIGATE & BANSTEAD BC,,,,211313515,5000285530,,Grant Payable by Exchequer,RH2 OSH,"555,133.00",Yes
Communities & Local Government,DCLG,01/04/2015,Revenue Support grant payable,Localism,RIBBLE VALLEY BC,,,,232617894,5000285531,,Grant Payable by Exchequer,BB7 2RA,"337,104.00",Yes
Communities & Local Government,DCLG,01/04/2015,Revenue Support grant payable,Localism,RICHMOND UPON THAMES LB,,Large,,228868535,5000285532,,Grant Payable by Exchequer,TW1 3BZ,"7,194,687.00",Yes
Communities & Local Government,DCLG,01/04/2015,Revenue Support grant payable,Localism,RICHMONDSHIRE DC,,Large,,232245142,5000285533,,Grant Payable by Exchequer,DL10 4JX,"368,694.00",Yes
Communities & Local Government,DCLG,01/04/2015,Revenue Support grant payable,Localism,ROCHDALE MBC,,,,,5000285534,,Grant Payable by Exchequer,OL16 1YG,"16,299,863.00",Yes
Communities & Local Government,DCLG,01/04/2015,Revenue Support grant payable,Localism,ROCHFORD DISTRICT COUNCIL,,,,387828767,5000285535,,Grant Payable by Exchequer,SS4 1BW,"400,508.00",Yes
Communities & Local Government,DCLG,01/04/2015,Revenue Support grant payable,Localism,ROSSENDALE BC,,,,237654020,5000285536,,Grant Payable by Exchequer,OL13 0BB,"535,157.00",Yes
Communities & Local Government,DCLG,01/04/2015,Revenue Support grant payable,Localism,ROTHER DC,,,,,5000285537,,Grant Payable by Exchequer,TN39 3JX,"600,061.00",Yes
Communities & Local Government,DCLG,01/04/2015,Revenue Support grant payable,Localism,ROTHERHAM MBC,,,,211266937,5000285538,,Grant Payable by Exchequer,S65 1UF,"16,974,867.00",Yes
Communities & Local Government,DCLG,01/04/2015,Revenue Support grant payable,Localism,ROYAL BERKSHIRE FIRE AUTHORITY,,,,424872653,5000285521,,Grant Payable by Exchequer,RG30 4FS,"2,286,274.00",Yes
Communities & Local Government,DCLG,01/04/2015,Revenue Support grant payable,Localism,ROYAL BORO OF KENSINGTON & CHELSEA,,,,211124466,5000285143,,Grant Payable by Exchequer,W8 7NX,"13,754,260.00",Yes
Communities & Local Government,DCLG,01/04/2015,Revenue Support grant payable,Localism,RUGBY BC,,,,,5000285539,,Grant Payable by Exchequer,CV21 2RR,"591,494.00",Yes
Communities & Local Government,DCLG,01/04/2015,Revenue Support grant payable,Localism,RUNNYMEDE BOROUGH COUNCIL,,,,232225722,5000285540,,Grant Payable by Exchequer,KT15 2AH,"440,592.00",Yes
Communities & Local Government,DCLG,01/04/2015,Revenue Support grant payable,Localism,RUSHCLIFFE BOROUGH COUNCIL,,,,,5000285541,,Grant Payable by Exchequer,NG2 5FE,"559,800.00",Yes
Communities & Local Government,DCLG,01/04/2015,Revenue Support grant payable,Localism,RUSHMOOR BC,,,,232607606,5000285542,,Grant Payable by Exchequer,GU14 7JU,"585,457.00",Yes
Communities & Local Government,DCLG,01/04/2015,Revenue Support grant payable,Localism,RUTLAND CC,,,,,5000285543,,Grant Payable by Exchequer,LE15 6HP,"1,366,123.00",Yes
Communities & Local Government,DCLG,01/04/2015,Revenue Support grant payable,Localism,RYEDALE DC,,,,,5000285544,,Grant Payable by Exchequer,YO17 0HH,"438,245.00",Yes
Communities & Local Government,DCLG,01/04/2015,Revenue Support grant payable,Localism,SALFORD CITY CNCL,,,,213180073,5000285545,,Grant Payable by Exchequer,M27 5AW,"19,373,798.00",Yes
Communities & Local Government,DCLG,01/04/2015,Revenue Support grant payable,Localism,SANDWELL MBC,,,,,5000285546,,Grant Payable by Exchequer,B69 3DE,"27,220,068.00",Yes
Communities & Local Government,DCLG,01/04/2015,Revenue Support grant payable,Localism,SCARBOROUGH BC,,Large,,,5000285547,,Grant Payable by Exchequer,YO11 2HG,"1,028,251.00",Yes
Communities & Local Government,DCLG,01/04/2015,Revenue Support grant payable,Localism,SEDGEMOOR DC,,,,211204011,5000285548,,Grant Payable by Exchequer,TA6 3AR,"802,783.00",Yes
Communities & Local Government,DCLG,01/04/2015,Revenue Support grant payable,Localism,SEFTON MBC,,,,232936125,5000285549,,Grant Payable by Exchequer,L20 3NQ,"17,002,274.00",Yes
Communities & Local Government,DCLG,01/04/2015,Revenue Support grant payable,Localism,SELBY DC,,,,239816721,5000285550,,Grant Payable by Exchequer,YO8 9FT,"585,466.00",Yes
Communities & Local Government,DCLG,01/04/2015,Revenue Support grant payable,Localism,SEVENOAKS DC,,,,236100913,5000285551,,Grant Payable by Exchequer,TN13 1HG,"535,219.00",Yes
Communities & Local Government,DCLG,01/04/2015,Revenue Support grant payable,Localism,SHEFFIELD CITY CNCL,,Large,,,5000285552,,Grant Payable by Exchequer,S1 1UJ,"38,611,982.00",Yes
Communities & Local Government,DCLG,01/04/2015,Revenue Support grant payable,Localism,SHEPWAY DC,,,,235550878,5000285553,,Grant Payable by Exchequer,CT20 2QY,"917,605.00",Yes
Communities & Local Government,DCLG,01/04/2015,Revenue Support grant payable,Localism,SHROPSHIRE & WREKIN FIRE AUTHORITY,,,,424873610,5000285554,,Grant Payable by Exchequer,SY1 2HJ,"1,243,732.00",Yes
Communities & Local Government,DCLG,01/04/2015,Revenue Support grant payable,Localism,SHROPSHIRE COUNCIL,,Large,,217036490,5000285350,,Grant Payable by Exchequer,SY2 6ND,"14,586,569.00",Yes
Communities & Local Government,DCLG,01/04/2015,Revenue Support grant payable,Localism,SLOUGH BOROUGH COUNCIL,,,,211027123,5000285555,,Grant Payable by Exchequer,SL1 3UF,"8,001,787.00",Yes
Communities & Local Government,DCLG,01/04/2015,Revenue Support grant payable,Localism,SOLIHULL MBC,,,,,5000285556,,Grant Payable by Exchequer,B91 3QR,"8,805,603.00",Yes
Communities & Local Government,DCLG,01/04/2015,Revenue Support grant payable,Localism,SOMERSET COUNTY CNCL,,,,211229406,5000285557,,Grant Payable by Exchequer,TA1 4DY,"19,184,160.00",Yes
Communities & Local Government,DCLG,01/04/2015,Revenue Support grant payable,Localism,SOUTH BUCKS DC,,,,221356624,5000285558,,Grant Payable by Exchequer,UB9 4LH,"290,345.00",Yes
Communities & Local Government,DCLG,01/04/2015,Revenue Support grant payable,Localism,SOUTH CAMBRIDGESHIRE DC,,,,,5000285559,,Grant Payable by Exchequer,CB3 6EA,"609,968.00",Yes
Communities & Local Government,DCLG,01/04/2015,Revenue Support grant payable,Localism,SOUTH DERBYSHIRE D C,,Public Bodies,,232612416,5000285560,,Grant Payable by Exchequer,DE11 0AH,"603,816.00",Yes
Communities & Local Government,DCLG,01/04/2015,Revenue Support grant payable,Localism,SOUTH GLOUCESTERSHIRE COUNCIL,,,,212834242,5000285561,,Grant Payable by Exchequer,BS15 2TR,"11,628,910.00",Yes
Communities & Local Government,DCLG,01/04/2015,Revenue Support grant payable,Localism,SOUTH HAMS DC,,,,236445342,5000285562,,Grant Payable by Exchequer,TQ9 5NE,"468,742.00",Yes
Communities & Local Government,DCLG,01/04/2015,Revenue Support grant payable,Localism,SOUTH HOLLAND,,,,236445383,5000285563,,Grant Payable by Exchequer,PE11 2XE,"793,674.00",Yes
Communities & Local Government,DCLG,01/04/2015,Revenue Support grant payable,Localism,SOUTH KESTEVEN DC,,,,227470747,5000285564,,Grant Payable by Exchequer,NG31 6PZ,"870,725.00",Yes
Communities & Local Government,DCLG,01/04/2015,Revenue Support grant payable,Localism,SOUTH LAKELAND DC,,,,236445466,5000285565,,Grant Payable by Exchequer,LA49 4DQ,"601,364.00",Yes
Communities & Local Government,DCLG,01/04/2015,Revenue Support grant payable,Localism,SOUTH NORFOLK DC,,,,232605717,5000285566,,Grant Payable by Exchequer,NR15 2XE,"776,745.00",Yes
Communities & Local Government,DCLG,01/04/2015,Revenue Support grant payable,Localism,SOUTH NORTHAMPTONSHIRE DC,,,,,5000285567,,Grant Payable by Exchequer,NN12 7AE,"484,041.00",Yes
Communities & Local Government,DCLG,01/04/2015,Revenue Support grant payable,Localism,SOUTH OXFORDSHIRE DC,,,,212296766,5000285568,,Grant Payable by Exchequer,OX10 8ED,"639,659.00",Yes
Communities & Local Government,DCLG,01/04/2015,Revenue Support grant payable,Localism,SOUTH RIBBLE BOROUGH COUNCIL,,,,,5000285569,,Grant Payable by Exchequer,PR5 1DH,"589,078.00",Yes
Communities & Local Government,DCLG,01/04/2015,Revenue Support grant payable,Localism,SOUTH SOMERSET DC,,,,239850811,5000285570,,Grant Payable by Exchequer,BA20 2DS,"903,135.00",Yes
Communities & Local Government,DCLG,01/04/2015,Revenue Support grant payable,Localism,SOUTH STAFFORDSHIRE DC,,,,210305155,5000285571,,Grant Payable by Exchequer,WV8 1PX,"554,131.00",Yes
Communities & Local Government,DCLG,01/04/2015,Revenue Support grant payable,Localism,SOUTH TYNESIDE COUNCIL,,,,345736438,5000285572,,Grant Payable by Exchequer,NE33 2RL,"13,319,821.00",Yes
Communities & Local Government,DCLG,01/04/2015,Revenue Support grant payable,Localism,SOUTH YORKSHIRE FIRE & RESCUE AUTH,,,,424872620,5000285573,,Grant Payable by Exchequer,S70 2HG,"4,860,556.00",Yes
Communities & Local Government,DCLG,01/04/2015,Revenue Support grant payable,Localism,SOUTHAMPTON CITY CNCL,,,,216927475,5000285574,,Grant Payable by Exchequer,SO14 7LY,"14,287,968.00",Yes
Communities & Local Government,DCLG,01/04/2015,Revenue Support grant payable,Localism,SOUTHEND ON SEA BC,,,,217067263,5000285575,,Grant Payable by Exchequer,SS2 6EP,"9,541,698.00",Yes
Communities & Local Government,DCLG,01/04/2015,Revenue Support grant payable,Localism,SOUTHWARK LB,,,,,5000285576,,Grant Payable by Exchequer,SE1P 5LX,"30,014,252.00",Yes
Communities & Local Government,DCLG,01/04/2015,Revenue Support grant payable,Localism,SPELTHORNE BOROUGH COUNCIL,,,,211177332,5000285577,,Grant Payable by Exchequer,TW18 1XB,"443,521.00",Yes
Communities & Local Government,DCLG,01/04/2015,Revenue Support grant payable,Localism,ST ALBANS CITY COUNCIL,,,,218692510,5000285578,,Grant Payable by Exchequer,AL1 3JE,"655,910.00",Yes
Communities & Local Government,DCLG,01/04/2015,Revenue Support grant payable,Localism,ST EDMUNDSBURY BC,,,,,5000285579,,Grant Payable by Exchequer,IP33 3YU,"627,092.00",Yes
Communities & Local Government,DCLG,01/04/2015,Revenue Support grant payable,Localism,ST HELENS MBC,,,,,5000285580,,Grant Payable by Exchequer,WA10 1HP,"12,028,343.00",Yes
Communities & Local Government,DCLG,01/04/2015,Revenue Support grant payable,Localism,STAFFORD BC,,,,227476934,5000285581,,Grant Payable by Exchequer,ST16 3AQ,"688,564.00",Yes
Communities & Local Government,DCLG,01/04/2015,Revenue Support grant payable,Localism,STAFFORDSHIRE  FIRE & RESCUE SERV,,Large,,232600577,5000285583,,Grant Payable by Exchequer,ST15 0BS,"3,157,342.00",Yes
Communities & Local Government,DCLG,01/04/2015,Revenue Support grant payable,Localism,STAFFORDSHIRE COUNTY CNCL,,,,,5000285582,,Grant Payable by Exchequer,ST16 2LH,"29,931,689.00",Yes
Communities & Local Government,DCLG,01/04/2015,Revenue Support grant payable,Localism,STAFFORDSHIRE MOORLANDS DC,,,,232749775,5000285584,,Grant Payable by Exchequer,ST13 6HQ,"632,335.00",Yes
Communities & Local Government,DCLG,01/04/2015,Revenue Support grant payable,Localism,STEVENAGE BC,,,,236440186,5000285585,,Grant Payable by Exchequer,SG1 1HN,"620,404.00",Yes
Communities & Local Government,DCLG,01/04/2015,Revenue Support grant payable,Localism,STOCKPORT MBC,,,,228706248,5000285586,,Grant Payable by Exchequer,SK1 3XE,"13,061,336.00",Yes
Communities & Local Government,DCLG,01/04/2015,Revenue Support grant payable,Localism,STOCKTON ON TEES BC,,,,,5000285587,,Grant Payable by Exchequer,TS23 2YS,"10,048,493.00",Yes
Communities & Local Government,DCLG,01/04/2015,Revenue Support grant payable,Localism,STOKE ON TRENT CITY COUNCIL,,,,216037890,5000285588,,Grant Payable by Exchequer,ST4 1HH,"19,822,034.00",Yes
Communities & Local Government,DCLG,01/04/2015,Revenue Support grant payable,Localism,STRATFORD ON AVON DC,,,,227473881,5000285589,,Grant Payable by Exchequer,CV37 6HX,"631,234.00",Yes
Communities & Local Government,DCLG,01/04/2015,Revenue Support grant payable,Localism,STROUD DC,,,,,5000285590,,Grant Payable by Exchequer,GL5 4UB,"621,980.00",Yes
Communities & Local Government,DCLG,01/04/2015,Revenue Support grant payable,Localism,SUFFOLK COASTAL DC,,,,239933203,5000285592,,Grant Payable by Exchequer,IP12 1AU,"721,538.00",Yes
Communities & Local Government,DCLG,01/04/2015,Revenue Support grant payable,Localism,SUFFOLK COUNTY CNCL,,Public Bodies,,232767710,5000285591,,Grant Payable by Exchequer,IP4 2JP,"30,090,484.00",Yes
Communities & Local Government,DCLG,01/04/2015,Revenue Support grant payable,Localism,SUNDERLAND DC,,,,215599312,5000285593,,Grant Payable by Exchequer,SR2 7DN,"23,298,143.00",Yes
Communities & Local Government,DCLG,01/04/2015,Revenue Support grant payable,Localism,SURREY COUNTY CNCL,,Public Bodies,,,5000285594,,Grant Payable by Exchequer,KT1 2DN,"36,599,310.00",Yes
Communities & Local Government,DCLG,01/04/2015,Revenue Support grant payable,Localism,SURREY HEATH BC,,,,236445441,5000285595,,Grant Payable by Exchequer,GU15 3HD,"364,954.00",Yes
Communities & Local Government,DCLG,01/04/2015,Revenue Support grant payable,Localism,SUTTON LB,,,,,5000285596,,Grant Payable by Exchequer,SM1 1EA,"11,265,116.00",Yes
Communities & Local Government,DCLG,01/04/2015,Revenue Support grant payable,Localism,SWALE BC,,,,239842768,5000285597,,Grant Payable by Exchequer,ME10 3HT,"1,020,110.00",Yes
Communities & Local Government,DCLG,01/04/2015,Revenue Support grant payable,Localism,SWINDON BC,,,,458639697,5000285598,,Grant Payable by Exchequer,SN1 2JH,"9,408,624.00",Yes
Communities & Local Government,DCLG,01/04/2015,Revenue Support grant payable,Localism,TAMESIDE MBC,,,,212635875,5000285599,,Grant Payable by Exchequer,OL6 6DL,"14,791,741.00",Yes
Communities & Local Government,DCLG,01/04/2015,Revenue Support grant payable,Localism,TAMWORTH BOROUGH COUNCIL,,,,232612457,5000285600,,Grant Payable by Exchequer,B79 7BZ,"535,846.00",Yes
Communities & Local Government,DCLG,01/04/2015,Revenue Support grant payable,Localism,TANDRIDGE DC,,,,225481076,5000285601,,Grant Payable by Exchequer,RH8 0BT,"391,606.00",Yes
Communities & Local Government,DCLG,01/04/2015,Revenue Support grant payable,Localism,TAUNTON DEANE BC,,,,236185294,5000285602,,Grant Payable by Exchequer,TA1 1HE,"638,799.00",Yes
Communities & Local Government,DCLG,01/04/2015,Revenue Support grant payable,Localism,TEIGNBRIDGE DC,,,,236440475,5000285603,,Grant Payable by Exchequer,TQ12 4XX,"825,798.00",Yes
Communities & Local Government,DCLG,01/04/2015,Revenue Support grant payable,Localism,TELFORD & WREKIN DC,,,,230235801,5000285604,,Grant Payable by Exchequer,TF3 4LF,"10,481,331.00",Yes
Communities & Local Government,DCLG,01/04/2015,Revenue Support grant payable,Localism,TENDRING DC,,,,,5000285605,,Grant Payable by Exchequer,CO15 1SE,"1,187,057.00",Yes
Communities & Local Government,DCLG,01/04/2015,Revenue Support grant payable,Localism,TEST VALLEY BC,,Large,,225442698,5000285606,,Grant Payable by Exchequer,SP10 3AJ,"565,448.00",Yes
Communities & Local Government,DCLG,01/04/2015,Revenue Support grant payable,Localism,TEWKESBURY BC,,,,232740399,5000285607,,Grant Payable by Exchequer,GL20 5TT,"439,656.00",Yes
Communities & Local Government,DCLG,01/04/2015,Revenue Support grant payable,Localism,THANET DC,,,,232309369,5000285232,,Grant Payable by Exchequer,CT8 1XZ,"1,209,865.00",Yes
Communities & Local Government,DCLG,01/04/2015,Revenue Support grant payable,Localism,THREE RIVERS DC,,,,,5000285234,,Grant Payable by Exchequer,WD3 1RL,"497,502.00",Yes
Communities & Local Government,DCLG,01/04/2015,Revenue Support grant payable,Localism,THURROCK  BOROUGH COUNCIL,,,,,5000285236,,Grant Payable by Exchequer,RM17 6LT,"8,930,943.00",Yes
Communities & Local Government,DCLG,01/04/2015,Revenue Support grant payable,Localism,TONBRIDGE & MALLING BC,,,,,5000285238,,Grant Payable by Exchequer,ME19 6LZ,"529,823.00",Yes
Communities & Local Government,DCLG,01/04/2015,Revenue Support grant payable,Localism,TORBAY BC,,,,,5000285240,,Grant Payable by Exchequer,TQ1 3DR,"8,566,451.00",Yes
Communities & Local Government,DCLG,01/04/2015,Revenue Support grant payable,Localism,TORRIDGE DC,,Public Bodies,,,5000285242,,Grant Payable by Exchequer,EX39 2HT,"581,894.00",Yes
Communities & Local Government,DCLG,01/04/2015,Revenue Support grant payable,Localism,TOWER HAMLETS LB,,,,231315144,5000285244,,Grant Payable by Exchequer,E14 2BG,"28,099,860.00",Yes
Communities & Local Government,DCLG,01/04/2015,Revenue Support grant payable,Localism,TRAFFORD MBC,,,,,5000285246,,Grant Payable by Exchequer,M32 0TH,"10,215,379.00",Yes
Communities & Local Government,DCLG,01/04/2015,Revenue Support grant payable,Localism,TUNBRIDGE WELLS BC,,,,775221013,5000285248,,Grant Payable by Exchequer,TN1 1RS,"544,271.00",Yes
Communities & Local Government,DCLG,01/04/2015,Revenue Support grant payable,Localism,TYNE & WEAR FIRE AUTHORITY,,,,215599312,5000285250,,Grant Payable by Exchequer,SR2 7DN,"4,981,522.00",Yes
Communities & Local Government,DCLG,01/04/2015,Revenue Support grant payable,Localism,UTTLESFORD DC,,,,424423242,5000285252,,Grant Payable by Exchequer,CB11 4ER,"411,448.00",Yes
Communities & Local Government,DCLG,01/04/2015,Revenue Support grant payable,Localism,VALE OF WHITE HORSE DC,,,,,5000285254,,Grant Payable by Exchequer,OX14 3JE,"580,350.00",Yes
Communities & Local Government,DCLG,01/04/2015,Revenue Support grant payable,Localism,W YORKSHIRE FIRE & RESCUE AUTH,,,,236428595,5000285301,,Grant Payable by Exchequer,BD11 2DY,"7,799,507.00",Yes
Communities & Local Government,DCLG,01/04/2015,Revenue Support grant payable,Localism,WALSALL MBC,,,,212515585,5000285258,,Grant Payable by Exchequer,WS1 1TW,"19,659,269.00",Yes
Communities & Local Government,DCLG,01/04/2015,Revenue Support grant payable,Localism,WALTHAM FOREST LB,,Large,,,5000285260,,Grant Payable by Exchequer,E17 4JF,"18,663,472.00",Yes
Communities & Local Government,DCLG,01/04/2015,Revenue Support grant payable,Localism,WANDSWORTH LB,,,,,5000285263,,Grant Payable by Exchequer,SW18 2PU,"19,006,588.00",Yes
Communities & Local Government,DCLG,01/04/2015,Revenue Support grant payable,Localism,WARRINGTON BC,,,,,5000285265,,Grant Payable by Exchequer,WA1 1BN,"8,310,665.00",Yes
Communities & Local Government,DCLG,01/04/2015,Revenue Support grant payable,Localism,WARWICK,,,,,5000285267,,Grant Payable by Exchequer,CV32 4NW,"833,153.00",Yes
Communities & Local Government,DCLG,01/04/2015,Revenue Support grant payable,Localism,WARWICKSHIRE COUNTY CNCL,,,,210396290,5000285269,,Grant Payable by Exchequer,CV34 4RH,"18,693,949.00",Yes
Communities & Local Government,DCLG,01/04/2015,Revenue Support grant payable,Localism,WATFORD COUNCIL,,,,215498572,5000285271,,Grant Payable by Exchequer,WD17 3EX,"722,050.00",Yes
Communities & Local Government,DCLG,01/04/2015,Revenue Support grant payable,Localism,WAVENEY DISTRICT COUNCIL,,Large,,229740980,5000285273,,Grant Payable by Exchequer,NR32 1HS,"949,823.00",Yes
Communities & Local Government,DCLG,01/04/2015,Revenue Support grant payable,Localism,WAVERLEY BC,,Public Bodies,,236429064,5000285275,,Grant Payable by Exchequer,GU7 1HR,"524,514.00",Yes
Communities & Local Government,DCLG,01/04/2015,Revenue Support grant payable,Localism,WEALDEN DC,,,,232688697,5000285277,,Grant Payable by Exchequer,BN22 9LN,"771,858.00",Yes
Communities & Local Government,DCLG,01/04/2015,Revenue Support grant payable,Localism,WELLINGBOROUGH BOROUGH COUNCIL,,Large,,230851581,5000285279,,Grant Payable by Exchequer,NN8 1BP,"554,517.00",Yes
Communities & Local Government,DCLG,01/04/2015,Revenue Support grant payable,Localism,WELWYN HATFIELD COUNCIL,,,,210360804,5000285281,,Grant Payable by Exchequer,AL8 6AE,"722,315.00",Yes
Communities & Local Government,DCLG,01/04/2015,Revenue Support grant payable,Localism,WEST BERKSHIRE COUNCIL,,,,364809181,5000285283,,Grant Payable by Exchequer,RG14 2AF,"5,187,633.00",Yes
Communities & Local Government,DCLG,01/04/2015,Revenue Support grant payable,Localism,WEST DEVON BC,,,,234002095,5000285285,,Grant Payable by Exchequer,PL19 0BZ,"405,104.00",Yes
Communities & Local Government,DCLG,01/04/2015,Revenue Support grant payable,Localism,WEST DORSET DC,,,,424295350,5000285287,,Grant Payable by Exchequer,DT1 1UZ,"711,734.00",Yes
Communities & Local Government,DCLG,01/04/2015,Revenue Support grant payable,Localism,WEST LANCASHIRE BC,,,,232240978,5000285289,,Grant Payable by Exchequer,L39 2DF,"794,968.00",Yes
Communities & Local Government,DCLG,01/04/2015,Revenue Support grant payable,Localism,WEST LINDSEY DC,,,,227471026,5000285290,,Grant Payable by Exchequer,DN21 2NA,"732,706.00",Yes
Communities & Local Government,DCLG,01/04/2015,Revenue Support grant payable,Localism,WEST MIDLANDS FIRE & CIVIL DEFENCE,,,,232913731,5000285293,,Grant Payable by Exchequer,B4 7DE,"10,442,449.00",Yes
Communities & Local Government,DCLG,01/04/2015,Revenue Support grant payable,Localism,WEST OXFORDSHIRE DC,,Large,,210401379,5000285295,,Grant Payable by Exchequer,OX28 1NB,"522,736.00",Yes
Communities & Local Government,DCLG,01/04/2015,Revenue Support grant payable,Localism,WEST SOMERSET DC,,,,216015144,5000285297,,Grant Payable by Exchequer,TA4 4QA,"293,494.00",Yes
Communities & Local Government,DCLG,01/04/2015,Revenue Support grant payable,Localism,WEST SUSSEX CC,,Public Bodies,,232198762,5000285299,,Grant Payable by Exchequer,PO19 1RG,"25,472,856.00",Yes
Communities & Local Government,DCLG,01/04/2015,Revenue Support grant payable,Localism,WESTMINSTER CITY CNCL,,,,229845706,5000285303,,Grant Payable by Exchequer,SW1E 6QP,"23,345,978.00",Yes
Communities & Local Government,DCLG,01/04/2015,Revenue Support grant payable,Localism,WEYMOUTH & PORTLAND BC,,,,735157948,5000285305,,Grant Payable by Exchequer,DT4 8TA,"474,555.00",Yes
Communities & Local Government,DCLG,01/04/2015,Revenue Support grant payable,Localism,WIGAN MBC,,,,,5000285307,,Grant Payable by Exchequer,WN1 1AZ,"18,659,717.00",Yes
Communities & Local Government,DCLG,01/04/2015,Revenue Support grant payable,Localism,WILTSHIRE & SWINDON FIRE AUTHORITY,,,,232691089,5000285309,,Grant Payable by Exchequer,SN10 5PP,"1,532,729.00",Yes
Communities & Local Government,DCLG,01/04/2015,Revenue Support grant payable,Localism,WILTSHIRE COUNCIL,,,,211341656,5000285352,,Grant Payable by Exchequer,BA14 4DS,"17,236,096.00",Yes
Communities & Local Government,DCLG,01/04/2015,Revenue Support grant payable,Localism,WINCHESTER CITY CNCL,,,,228838280,5000285311,,Grant Payable by Exchequer,SO23 9LJ,"576,000.00",Yes
Communities & Local Government,DCLG,01/04/2015,Revenue Support grant payable,Localism,WINDSOR & MAIDENHEAD,,,,227411998,5000285313,,Grant Payable by Exchequer,SL6 1RF,"3,995,091.00",Yes
Communities & Local Government,DCLG,01/04/2015,Revenue Support grant payable,Localism,WIRRAL BOROUGH COUNCIL,,,,,5000285315,,Grant Payable by Exchequer,CH41 6BU,"21,426,703.00",Yes
Communities & Local Government,DCLG,01/04/2015,Revenue Support grant payable,Localism,WOKING BC,,,,211163449,5000285317,,Grant Payable by Exchequer,GU21 1YL,"494,169.00",Yes
Communities & Local Government,DCLG,01/04/2015,Revenue Support grant payable,Localism,WOKINGHAM DC,,,,,5000285319,,Grant Payable by Exchequer,RG11 1WJ,"4,149,863.00",Yes
Communities & Local Government,DCLG,01/04/2015,Revenue Support grant payable,Localism,WOLVERHAMPTON MBC,,,,229895453,5000285322,,Grant Payable by Exchequer,WV1 1RL,"21,119,049.00",Yes
Communities & Local Government,DCLG,01/04/2015,Revenue Support grant payable,Localism,WORCESTER CITY CNCL,,,,227419751,5000285324,,Grant Payable by Exchequer,WR1 2EZ,"618,740.00",Yes
Communities & Local Government,DCLG,01/04/2015,Revenue Support grant payable,Localism,WORCESTERSHIRE COUNTY COUNCIL,,,,230359643,5000285326,,Grant Payable by Exchequer,WR5 2NP,"18,119,306.00",Yes
Communities & Local Government,DCLG,01/04/2015,Revenue Support grant payable,Localism,WORTHING BC,,,,236429734,5000285328,,Grant Payable by Exchequer,BN11 1HB,"681,018.00",Yes
Communities & Local Government,DCLG,01/04/2015,Revenue Support grant payable,Localism,WYCHAVON DISTRICT COUNCIL,,,,232257139,5000285330,,Grant Payable by Exchequer,WR10 1PT,"623,373.00",Yes
Communities & Local Government,DCLG,01/04/2015,Revenue Support grant payable,Localism,WYCOMBE DC,,,,232683771,5000285332,,Grant Payable by Exchequer,HP11 1BB,"824,969.00",Yes
Communities & Local Government,DCLG,01/04/2015,Revenue Support grant payable,Localism,WYRE BC,,,,236646493,5000285334,,Grant Payable by Exchequer,FY6 7PU,"818,650.00",Yes
Communities & Local Government,DCLG,01/04/2015,Revenue Support grant payable,Localism,WYRE FOREST DISTRICT COUNCIL,,,,,5000285336,,Grant Payable by Exchequer,DY11 7WF,"672,998.00",Yes
Communities & Local Government,DCLG,01/04/2015,Revenue Support grant payable,Localism,YORK CITY CNCL,,,,,5000284944,,Grant Payable by Exchequer,YO1 1XH,"7,047,381.00",Yes
Communities & Local Government,DCLG,01/04/2015,Software Licences,Finance & Corporate Services,DAMOVO UK LTD,,Large,,221481042,5106211840,Software,Regional offices support charges,RH12 4QP,"3,967.92",
Communities & Local Government,DCLG,01/04/2015,Training,Finance & Corporate Services,ACT NOW TRAINING LTD,,Micro,,732511501,5106211828,Development and Training,BCS Certificate in FOI course & exam,WF13 2DU,"1,850.00",
Communities & Local Government,DCLG,01/04/2015,Training,Finance & Corporate Services,CAPITA BUS. SERV. LTD (CSL),,Large,,215580993,5106211826,Development and Training,Tailored Training Course - Fitch,DL1 9HB,"30,487.80",
Communities & Local Government,DCLG,01/04/2015,Training,Finance & Corporate Services,CAPITA BUS. SERV. LTD (CSL),,Large,,215580993,5106211832,Development and Training,Civil Service Learning,DL1 9HB,"3,500.00",
Communities & Local Government,DCLG,01/04/2015,Training,Finance & Corporate Services,CAPITA BUS. SERV. LTD (CSL),,Large,,215580993,5106211835,Development and Training,Civil Service Learning,DL1 9HB,"14,000.00",
Communities & Local Government,DCLG,01/04/2015,Vehicle hire,"Strategy, Communications and Private Office",GOVERNMENT CAR & DESPATCH AGENCY,,Public Bodies,,,5106211825,Vehicle Hire and Lease,Ministerial Duty Car 1(LT118) 2014-15,SW8 5AX,684.00,
Communities & Local Government,DCLG,01/04/2015,Vehicle hire,"Strategy, Communications and Private Office",GOVERNMENT CAR & DESPATCH AGENCY,,Public Bodies,,,5106211833,Vehicle Hire and Lease,Ministerial Duty Car 2(LT206) 2014-15,SW8 5AX,"1,465.75",
Communities & Local Government,DCLG,01/04/2015,Web Services,"Strategy, Communications and Private Office",DEXTROUS WEB LTD,,Micro,,211267270,5106211711,ICT Services,DCLG Intranet Hosting & Support,N1 7NG,874.18,
Communities & Local Government,DCLG,01/04/2015,Work In Progress Pre-Cert 40373 Spend,Neighbourhoods,ANGLIA RUSKIN UNIVERSITY,,,,,7600012287,,Revenue Grant To Be Paid,CM1 1SQ,"35,635.26",Yes
Communities & Local Government,DCLG,01/04/2015,Work In Progress Pre-Cert 40373 Spend,Neighbourhoods,BRADFORD  MDC,,,,,7600012281,,Revenue Grant Clawback Offset,BD1 1HY,"-2,325.00",Yes
Communities & Local Government,DCLG,01/04/2015,Work In Progress Pre-Cert 40373 Spend,Neighbourhoods,BRADFORD  MDC,,,,,7600012281,,Revenue Grant To Be Paid,BD1 1HY,"22,804.57",Yes
Communities & Local Government,DCLG,01/04/2015,Work In Progress Pre-Cert 40373 Spend,Neighbourhoods,COMMUNITY FOUNDATION FOR LEEDS,Yes,Micro,,,7600012288,,Revenue Grant To Be Paid,LS1 2TE,"5,184.16",Yes
Communities & Local Government,DCLG,01/04/2015,Work In Progress Pre-Cert 40373 Spend,Neighbourhoods,COMMUNITY FOUNDATION FOR LEEDS,Yes,Micro,,,7600012289,,Revenue Grant To Be Paid,LS1 2TE,"1,923.47",Yes
Communities & Local Government,DCLG,01/04/2015,Work In Progress Pre-Cert 40373 Spend,Neighbourhoods,INSTITUTE FOR SUSTAINABILITY,,Small,,,7600012293,,Revenue Grant Clawback Offset,N1 6AH,-158.54,Yes
Communities & Local Government,DCLG,01/04/2015,Work In Progress Pre-Cert 40373 Spend,Neighbourhoods,INSTITUTE FOR SUSTAINABILITY,,Small,,,7600012293,,Revenue Grant To Be Paid,N1 6AH,"42,977.19",Yes
Communities & Local Government,DCLG,01/04/2015,Work In Progress Pre-Cert 40373 Spend,Neighbourhoods,NORFOLK & WAVENEY ENTERPRISE SERV'S,,Medium,,,7600012280,,Revenue Grant To Be Paid,NR2 1JH,"46,706.91",Yes
Communities & Local Government,DCLG,01/04/2015,Work In Progress Pre-Cert 40373 Spend,Neighbourhoods,NORFOLK & WAVENEY ENTERPRISE SERV'S,,Medium,,,7600012292,,Revenue Grant To Be Paid,NR2 1JH,"64,893.32",Yes
Communities & Local Government,DCLG,01/04/2015,Work In Progress Pre-Cert 40373 Spend,Neighbourhoods,ORBIS ENERGY,,,,,7600012286,,Revenue Grant To Be Paid,NR14 8LZ,"71,000.33",Yes
Communities & Local Government,DCLG,01/04/2015,Work In Progress Pre-Cert 40373 Spend,Neighbourhoods,SHEFFIELD  CC,,,,,7600012279,,Revenue Grant To Be Paid,S1 2SH,"24,437.31",Yes
Communities & Local Government,DCLG,01/04/2015,Work In Progress Pre-Cert 40373 Spend,Neighbourhoods,SHEFFIELD  CC,,,,,7600012282,,Revenue Grant To Be Paid,S1 2SH,"12,237.21",Yes
Communities & Local Government,DCLG,01/04/2015,Work In Progress Pre-Cert 40373 Spend,Neighbourhoods,SHEFFIELD  CC,,,,,7600012283,,Revenue Grant To Be Paid,S1 2SH,"12,331.61",Yes
Communities & Local Government,DCLG,01/04/2015,Work In Progress Pre-Cert 40373 Spend,Neighbourhoods,UNIVERSITY OF EXETER,,,,,7600012277,,Revenue Grant To Be Paid,EX4 4QJ,"238,640.61",Yes
Communities & Local Government,DCLG,01/04/2015,Work In Progress Pre-Cert 40373 Spend,Neighbourhoods,UNIVERSITY OF EXETER,,,,,7600012278,,Revenue Grant To Be Paid,EX4 4QJ,"281,691.04",Yes
Communities & Local Government,DCLG,01/04/2015,Work In Progress Pre-Cert 40373 Spend,Neighbourhoods,UNIVERSITY OF SHEFFIELD,,,,,7600012290,,Revenue Grant To Be Paid,S60 5TZ,"7,946.03",Yes
Communities & Local Government,DCLG,01/04/2015,Work In Progress Pre-Cert 40373 Spend,Neighbourhoods,UNIVERSITY OF SHEFFIELD,,,,,7600012291,,Revenue Grant To Be Paid,S60 5TZ,"18,982.23",Yes
Communities & Local Government,DCLG,01/04/2015,Work In Progress Pre-Cert 40373 Spend,Neighbourhoods,WEST OF ENGLAND AEROSPACE FORUM,,,,,7600012284,,Revenue Grant Clawback Offset,BS21 6UP,"-2,120.28",Yes
Communities & Local Government,DCLG,01/04/2015,Work In Progress Pre-Cert 40373 Spend,Neighbourhoods,WEST OF ENGLAND AEROSPACE FORUM,,,,,7600012284,,Revenue Grant To Be Paid,BS21 6UP,"25,883.13",Yes
Communities & Local Government,DCLG,01/04/2015,Work In Progress Pre-Cert 40373 Spend,Neighbourhoods,YORKSHIRE UNIVERSITIES,,Micro,,,7600012285,,Revenue Grant Clawback Offset,LS2 9JY,"-1,968.36",Yes
Communities & Local Government,DCLG,01/04/2015,Work In Progress Pre-Cert 40373 Spend,Neighbourhoods,YORKSHIRE UNIVERSITIES,,Micro,,,7600012285,,Revenue Grant To Be Paid,LS2 9JY,"10,007.50",Yes
Communities & Local Government,DCLG,01/04/2015,Work In Progress Pre-Cert 40467 Spend,Neighbourhoods,ANGLIA RUSKIN UNIVERSITY,,,,,7600012287,,Capital Grant To Be Paid,CM1 1SQ,"73,241.24",Yes
Communities & Local Government,DCLG,01/04/2015,Work In Progress Pre-Cert 40467 Spend,Neighbourhoods,NW VCLF HF LLP,,,,,2100254004,,Capital Grant To Be Paid,S3 8NH,297.77,Yes
Communities & Local Government,DCLG,01/04/2015,Work In Progress Pre-Cert 40467 Spend,Neighbourhoods,NW VCLF HF LLP,,,,,2100254005,,Capital Grant To Be Paid,S3 8NH,"42,401.83",Yes
Communities & Local Government,DCLG,01/04/2015,Work In Progress Pre-Cert 40467 Spend,Neighbourhoods,NW VCLF HF LLP,,,,,2100254006,,Capital Grant To Be Paid,S3 8NH,301.83,Yes
Communities & Local Government,DCLG,01/04/2015,Work In Progress Pre-Cert 40467 Spend,Neighbourhoods,NW VCLF HF LLP,,,,,2300002243,,Recovery of irregular payment,S3 8NH,-297.77,Yes
Communities & Local Government,DCLG,01/04/2015,Work In Progress Pre-Cert 40467 Spend,Neighbourhoods,NW VCLF HF LLP,,,,,2300002245,,Recovery of irregular payment,S3 8NH,"-42,401.83",Yes
Communities & Local Government,DCLG,01/04/2015,Work In Progress Pre-Cert 40467 Spend,Neighbourhoods,NW VCLF HF LLP,,,,,2300002246,,Recovery of irregular payment,S3 8NH,-301.83,Yes
Communities & Local Government,DCLG,02/04/2015,Agency Staff,Finance & Corporate Services,BROOK STREET UK LTD,,Large,,364940028,5106211707,Contingent Labour,Interim Admin support,PE1 1SY,621.72,
Communities & Local Government,DCLG,02/04/2015,Agency Staff,Finance & Corporate Services,BROOK STREET UK LTD,,Large,,364940028,5106211876,Contingent Labour,Interim Admin support,PE1 1SY,777.14,
Communities & Local Government,DCLG,02/04/2015,Cap Grants to Private Sector Companies,Neighbourhoods,LEEANN FASHIONS LTD(B/R),,Medium,,,2100252779,,Regional Growth Fund,LE10 3EZ,"55,657.33",Yes
Communities & Local Government,DCLG,02/04/2015,Current Grant Private Sector,Neighbourhoods,LEEANN FASHIONS LTD(B/R),,Medium,,,2100252779,,Regional Growth Fund,LE10 3EZ,"7,105.00",
Communities & Local Government,DCLG,02/04/2015,Domestic Services,Finance & Corporate Services,INTERSERVE (FACILITIES MANAGEMENT),,Large,,364834825,5106211890,Building Operation,DFECC/0128 Cleaning Requirement 5SSP,BS32 4NH,"1,798.35",
Communities & Local Government,DCLG,02/04/2015,Domestic Services,Finance & Corporate Services,INTERSERVE (FACILITIES MANAGEMENT),,Large,,364834825,5106211891,Building Operation,DFECC/0128 Cleaning Requirement 5SSP,BS32 4NH,"1,798.35",
Communities & Local Government,DCLG,02/04/2015,Facilities Management (ISD use only),Finance & Corporate Services,INTERSERVE (FACILITIES MANAGEMENT),,Large,,364834825,5106211880,Property Occupation,Eland House Projects,BS32 4NH,"13,146.80",
Communities & Local Government,DCLG,02/04/2015,Facilities Management (ISD use only),Finance & Corporate Services,INTERSERVE (FACILITIES MANAGEMENT),,Large,,364834825,5106211890,Property Occupation,DfECC/0006 RC Labour (EH) 14-15,BS32 4NH,"4,133.87",
Communities & Local Government,DCLG,02/04/2015,Facilities Management (ISD use only),Finance & Corporate Services,INTERSERVE (FACILITIES MANAGEMENT),,Large,,364834825,5106211890,Property Occupation,DFECC/0104 Project Manager,BS32 4NH,"3,253.00",
Communities & Local Government,DCLG,02/04/2015,Facilities Management (ISD use only),Finance & Corporate Services,INTERSERVE (FACILITIES MANAGEMENT),,Large,,364834825,5106211890,Property Occupation,DFECC/0058 Pension Auto Enrol TQH,BS32 4NH,143.24,
Communities & Local Government,DCLG,02/04/2015,Facilities Management (ISD use only),Finance & Corporate Services,INTERSERVE (FACILITIES MANAGEMENT),,Large,,364834825,5106211890,Property Occupation,DFECC/0097 FHS Structure TQH 2014-15,BS32 4NH,416.85,
Communities & Local Government,DCLG,02/04/2015,Facilities Management (ISD use only),Finance & Corporate Services,INTERSERVE (FACILITIES MANAGEMENT),,Large,,364834825,5106211890,Property Occupation,DFECC/0126 FTL Applicn TQH 14-15,BS32 4NH,864.74,
Communities & Local Government,DCLG,02/04/2015,Facilities Management (ISD use only),Finance & Corporate Services,INTERSERVE (FACILITIES MANAGEMENT),,Large,,364834825,5106211890,Property Occupation,DfECC/0042 Cust Serv Man (TQH) 14-15,BS32 4NH,"3,552.75",
Communities & Local Government,DCLG,02/04/2015,Facilities Management (ISD use only),Finance & Corporate Services,INTERSERVE (FACILITIES MANAGEMENT),,Large,,364834825,5106211890,Property Occupation,DfECC/0066 Exceptions-TQH-14-15,BS32 4NH,"30,710.61",
Communities & Local Government,DCLG,02/04/2015,Facilities Management (ISD use only),Finance & Corporate Services,INTERSERVE (FACILITIES MANAGEMENT),,Large,,364834825,5106211890,Property Occupation,DfECC/0074 Year 2 Contract Inflation TQH,BS32 4NH,251.85,
Communities & Local Government,DCLG,02/04/2015,Facilities Management (ISD use only),Finance & Corporate Services,INTERSERVE (FACILITIES MANAGEMENT),,Large,,364834825,5106211890,Property Occupation,DFECC/0035 Min Wage Increase Hemel,BS32 4NH,10.04,
Communities & Local Government,DCLG,02/04/2015,Facilities Management (ISD use only),Finance & Corporate Services,INTERSERVE (FACILITIES MANAGEMENT),,Large,,364834825,5106211890,Property Occupation,DFECC/0058 Pension Auto Enrol Hemel,BS32 4NH,62.40,
Communities & Local Government,DCLG,02/04/2015,Facilities Management (ISD use only),Finance & Corporate Services,INTERSERVE (FACILITIES MANAGEMENT),,Large,,364834825,5106211890,Property Occupation,DFECC/0097 FHS Structure Hemel 2014-15,BS32 4NH,57.52,
Communities & Local Government,DCLG,02/04/2015,Facilities Management (ISD use only),Finance & Corporate Services,INTERSERVE (FACILITIES MANAGEMENT),,Large,,364834825,5106211890,Property Occupation,DfECC/0045 IB TUPE - Hemel 14-15,BS32 4NH,70.03,
Communities & Local Government,DCLG,02/04/2015,Facilities Management (ISD use only),Finance & Corporate Services,INTERSERVE (FACILITIES MANAGEMENT),,Large,,364834825,5106211890,Property Occupation,DfECC/0074 Year 2 Contract Inflation HH,BS32 4NH,4.79,
Communities & Local Government,DCLG,02/04/2015,Facilities Management (ISD use only),Finance & Corporate Services,INTERSERVE (FACILITIES MANAGEMENT),,Large,,364834825,5106211890,Property Occupation,DfECC/0074 Year 2 Contract Inflation MH,BS32 4NH,1.48,
Communities & Local Government,DCLG,02/04/2015,Facilities Management (ISD use only),Finance & Corporate Services,INTERSERVE (FACILITIES MANAGEMENT),,Large,,364834825,5106211890,Property Occupation,DFECC/0058 Pension Auto Enrol Rivergate,BS32 4NH,494.46,
Communities & Local Government,DCLG,02/04/2015,Facilities Management (ISD use only),Finance & Corporate Services,INTERSERVE (FACILITIES MANAGEMENT),,Large,,364834825,5106211890,Property Occupation,DFECC/0097 FHS Structure Rivergate 14-15,BS32 4NH,206.42,
Communities & Local Government,DCLG,02/04/2015,Facilities Management (ISD use only),Finance & Corporate Services,INTERSERVE (FACILITIES MANAGEMENT),,Large,,364834825,5106211890,Property Occupation,DFECC/0126 FTL Applicn Rivergate 14-15,BS32 4NH,551.00,
Communities & Local Government,DCLG,02/04/2015,Facilities Management (ISD use only),Finance & Corporate Services,INTERSERVE (FACILITIES MANAGEMENT),,Large,,364834825,5106211890,Property Occupation,DfECC/0066 Exceptions-2 Rivergate- 14-15,BS32 4NH,"13,327.80",
Communities & Local Government,DCLG,02/04/2015,Facilities Management (ISD use only),Finance & Corporate Services,INTERSERVE (FACILITIES MANAGEMENT),,Large,,364834825,5106211890,Property Occupation,DFECC/0058 Pension Auto Enrol Bridge Hse,BS32 4NH,124.33,
Communities & Local Government,DCLG,02/04/2015,Facilities Management (ISD use only),Finance & Corporate Services,INTERSERVE (FACILITIES MANAGEMENT),,Large,,364834825,5106211890,Property Occupation,DFECC/0035 Min Wage Increase Citygate,BS32 4NH,25.09,
Communities & Local Government,DCLG,02/04/2015,Facilities Management (ISD use only),Finance & Corporate Services,INTERSERVE (FACILITIES MANAGEMENT),,Large,,364834825,5106211890,Property Occupation,DFECC/0058 Pension Auto Enrol Citygate,BS32 4NH,105.37,
Communities & Local Government,DCLG,02/04/2015,Facilities Management (ISD use only),Finance & Corporate Services,INTERSERVE (FACILITIES MANAGEMENT),,Large,,364834825,5106211890,Property Occupation,DFECC/0097 FHS Structure  Citygate 2014-,BS32 4NH,193.05,
Communities & Local Government,DCLG,02/04/2015,Facilities Management (ISD use only),Finance & Corporate Services,INTERSERVE (FACILITIES MANAGEMENT),,Large,,364834825,5106211890,Property Occupation,DFECC0108 YR3 Indexation Citygate,BS32 4NH,"6,407.00",
Communities & Local Government,DCLG,02/04/2015,Facilities Management (ISD use only),Finance & Corporate Services,INTERSERVE (FACILITIES MANAGEMENT),,Large,,364834825,5106211890,Property Occupation,DfECC/0045 IB TUPE - CityGate14-15,BS32 4NH,235.03,
Communities & Local Government,DCLG,02/04/2015,Facilities Management (ISD use only),Finance & Corporate Services,INTERSERVE (FACILITIES MANAGEMENT),,Large,,364834825,5106211890,Property Occupation,DfECC/0074 Year 2 Contract Inflation CG,BS32 4NH,12.89,
Communities & Local Government,DCLG,02/04/2015,Facilities Management (ISD use only),Finance & Corporate Services,INTERSERVE (FACILITIES MANAGEMENT),,Large,,364834825,5106211890,Property Occupation,DFECC/0058 Pension Auto Enrol 5SPP,BS32 4NH,183.25,
Communities & Local Government,DCLG,02/04/2015,Facilities Management (ISD use only),Finance & Corporate Services,INTERSERVE (FACILITIES MANAGEMENT),,Large,,364834825,5106211890,Property Occupation,DFECC/0097 FHS Structure 5SSP 2014-15,BS32 4NH,190.80,
Communities & Local Government,DCLG,02/04/2015,Facilities Management (ISD use only),Finance & Corporate Services,INTERSERVE (FACILITIES MANAGEMENT),,Large,,364834825,5106211890,Property Occupation,DFECC00106 Reception&Mail Rm Staff 5SPP,BS32 4NH,"5,523.99",
Communities & Local Government,DCLG,02/04/2015,Facilities Management (ISD use only),Finance & Corporate Services,INTERSERVE (FACILITIES MANAGEMENT),,Large,,364834825,5106211890,Property Occupation,DfECC/0045 IB TUPE - 5SPP 14-15,BS32 4NH,232.30,
Communities & Local Government,DCLG,02/04/2015,Facilities Management (ISD use only),Finance & Corporate Services,INTERSERVE (FACILITIES MANAGEMENT),,Large,,364834825,5106211890,Property Occupation,DfECC/0074 Year 2 Contract Inflation SPP,BS32 4NH,17.13,
Communities & Local Government,DCLG,02/04/2015,Facilities Management (ISD use only),Finance & Corporate Services,INTERSERVE (FACILITIES MANAGEMENT),,Large,,364834825,5106211890,Property Occupation,DFECC/0058 Pension Auto Enrol PCQ,BS32 4NH,38.72,
Communities & Local Government,DCLG,02/04/2015,Facilities Management (ISD use only),Finance & Corporate Services,INTERSERVE (FACILITIES MANAGEMENT),,Large,,364834825,5106211890,Property Occupation,DFECC/0097 FHS Structure Paradise 14-15,BS32 4NH,109.69,
Communities & Local Government,DCLG,02/04/2015,Facilities Management (ISD use only),Finance & Corporate Services,INTERSERVE (FACILITIES MANAGEMENT),,Large,,364834825,5106211890,Property Occupation,DfECC/0045 IB TUPE - Paradise 14-15,BS32 4NH,133.54,
Communities & Local Government,DCLG,02/04/2015,Facilities Management (ISD use only),Finance & Corporate Services,INTERSERVE (FACILITIES MANAGEMENT),,Large,,364834825,5106211890,Property Occupation,DfECC/0074 Year 2 Contract Inflation PCQ,BS32 4NH,7.70,
Communities & Local Government,DCLG,02/04/2015,Facilities Management (ISD use only),Finance & Corporate Services,INTERSERVE (FACILITIES MANAGEMENT),,Large,,364834825,5106211891,Property Occupation,DFECC/0104 Project Manager,BS32 4NH,"3,053.83",
Communities & Local Government,DCLG,02/04/2015,Facilities Management (ISD use only),Finance & Corporate Services,INTERSERVE (FACILITIES MANAGEMENT),,Large,,364834825,5106211891,Property Occupation,DFECC/0058 Pension Auto Enrol TQH,BS32 4NH,143.24,
Communities & Local Government,DCLG,02/04/2015,Facilities Management (ISD use only),Finance & Corporate Services,INTERSERVE (FACILITIES MANAGEMENT),,Large,,364834825,5106211891,Property Occupation,DFECC/0097 FHS Structure TQH 2014-15,BS32 4NH,416.85,
Communities & Local Government,DCLG,02/04/2015,Facilities Management (ISD use only),Finance & Corporate Services,INTERSERVE (FACILITIES MANAGEMENT),,Large,,364834825,5106211891,Property Occupation,DFECC/0126 FTL Applicn TQH 14-15,BS32 4NH,864.74,
Communities & Local Government,DCLG,02/04/2015,Facilities Management (ISD use only),Finance & Corporate Services,INTERSERVE (FACILITIES MANAGEMENT),,Large,,364834825,5106211891,Property Occupation,DfECC/0042 Cust Serv Man (TQH) 14-15,BS32 4NH,"3,552.75",
Communities & Local Government,DCLG,02/04/2015,Facilities Management (ISD use only),Finance & Corporate Services,INTERSERVE (FACILITIES MANAGEMENT),,Large,,364834825,5106211891,Property Occupation,DfECC/0066 Exceptions-TQH-14-15,BS32 4NH,"30,710.61",
Communities & Local Government,DCLG,02/04/2015,Facilities Management (ISD use only),Finance & Corporate Services,INTERSERVE (FACILITIES MANAGEMENT),,Large,,364834825,5106211891,Property Occupation,DfECC/0074 Year 2 Contract Inflation TQH,BS32 4NH,251.85,
Communities & Local Government,DCLG,02/04/2015,Facilities Management (ISD use only),Finance & Corporate Services,INTERSERVE (FACILITIES MANAGEMENT),,Large,,364834825,5106211891,Property Occupation,DFECC/0035 Min Wage Increase Hemel,BS32 4NH,10.04,
Communities & Local Government,DCLG,02/04/2015,Facilities Management (ISD use only),Finance & Corporate Services,INTERSERVE (FACILITIES MANAGEMENT),,Large,,364834825,5106211891,Property Occupation,DFECC/0058 Pension Auto Enrol Hemel,BS32 4NH,62.40,
Communities & Local Government,DCLG,02/04/2015,Facilities Management (ISD use only),Finance & Corporate Services,INTERSERVE (FACILITIES MANAGEMENT),,Large,,364834825,5106211891,Property Occupation,DFECC/0097 FHS Structure Hemel 2014-15,BS32 4NH,57.52,
Communities & Local Government,DCLG,02/04/2015,Facilities Management (ISD use only),Finance & Corporate Services,INTERSERVE (FACILITIES MANAGEMENT),,Large,,364834825,5106211891,Property Occupation,DfECC/0045 IB TUPE - Hemel 14-15,BS32 4NH,70.03,
Communities & Local Government,DCLG,02/04/2015,Facilities Management (ISD use only),Finance & Corporate Services,INTERSERVE (FACILITIES MANAGEMENT),,Large,,364834825,5106211891,Property Occupation,DfECC/0074 Year 2 Contract Inflation HH,BS32 4NH,4.79,
Communities & Local Government,DCLG,02/04/2015,Facilities Management (ISD use only),Finance & Corporate Services,INTERSERVE (FACILITIES MANAGEMENT),,Large,,364834825,5106211891,Property Occupation,DFECC/0058 Pension Auto Enrol Rivergate,BS32 4NH,494.46,
Communities & Local Government,DCLG,02/04/2015,Facilities Management (ISD use only),Finance & Corporate Services,INTERSERVE (FACILITIES MANAGEMENT),,Large,,364834825,5106211891,Property Occupation,DFECC/0097 FHS Structure Rivergate 14-15,BS32 4NH,206.42,
Communities & Local Government,DCLG,02/04/2015,Facilities Management (ISD use only),Finance & Corporate Services,INTERSERVE (FACILITIES MANAGEMENT),,Large,,364834825,5106211891,Property Occupation,DFECC/0126 FTL Applicn Rivergate 14-15,BS32 4NH,551.00,
Communities & Local Government,DCLG,02/04/2015,Facilities Management (ISD use only),Finance & Corporate Services,INTERSERVE (FACILITIES MANAGEMENT),,Large,,364834825,5106211891,Property Occupation,DfECC/0066 Exceptions-2 Rivergate- 14-15,BS32 4NH,"13,327.80",
Communities & Local Government,DCLG,02/04/2015,Facilities Management (ISD use only),Finance & Corporate Services,INTERSERVE (FACILITIES MANAGEMENT),,Large,,364834825,5106211891,Property Occupation,DFECC/0035 Min Wage Increase Citygate,BS32 4NH,25.09,
Communities & Local Government,DCLG,02/04/2015,Facilities Management (ISD use only),Finance & Corporate Services,INTERSERVE (FACILITIES MANAGEMENT),,Large,,364834825,5106211891,Property Occupation,DFECC/0058 Pension Auto Enrol Citygate,BS32 4NH,105.37,
Communities & Local Government,DCLG,02/04/2015,Facilities Management (ISD use only),Finance & Corporate Services,INTERSERVE (FACILITIES MANAGEMENT),,Large,,364834825,5106211891,Property Occupation,DFECC/0097 FHS Structure  Citygate 2014-,BS32 4NH,193.05,
Communities & Local Government,DCLG,02/04/2015,Facilities Management (ISD use only),Finance & Corporate Services,INTERSERVE (FACILITIES MANAGEMENT),,Large,,364834825,5106211891,Property Occupation,DFECC0108 YR3 Indexation Citygate,BS32 4NH,"6,062.10",
Communities & Local Government,DCLG,02/04/2015,Facilities Management (ISD use only),Finance & Corporate Services,INTERSERVE (FACILITIES MANAGEMENT),,Large,,364834825,5106211891,Property Occupation,DfECC/0045 IB TUPE - CityGate14-15,BS32 4NH,235.03,
Communities & Local Government,DCLG,02/04/2015,Facilities Management (ISD use only),Finance & Corporate Services,INTERSERVE (FACILITIES MANAGEMENT),,Large,,364834825,5106211891,Property Occupation,DfECC/0074 Year 2 Contract Inflation CG,BS32 4NH,12.89,
Communities & Local Government,DCLG,02/04/2015,Facilities Management (ISD use only),Finance & Corporate Services,INTERSERVE (FACILITIES MANAGEMENT),,Large,,364834825,5106211891,Property Occupation,DFECC/0058 Pension Auto Enrol 5SPP,BS32 4NH,183.25,
Communities & Local Government,DCLG,02/04/2015,Facilities Management (ISD use only),Finance & Corporate Services,INTERSERVE (FACILITIES MANAGEMENT),,Large,,364834825,5106211891,Property Occupation,DFECC/0097 FHS Structure 5SSP 2014-15,BS32 4NH,190.80,
Communities & Local Government,DCLG,02/04/2015,Facilities Management (ISD use only),Finance & Corporate Services,INTERSERVE (FACILITIES MANAGEMENT),,Large,,364834825,5106211891,Property Occupation,DFECC00106 Reception&Mail Rm Staff 5SPP,BS32 4NH,"5,523.99",
Communities & Local Government,DCLG,02/04/2015,Facilities Management (ISD use only),Finance & Corporate Services,INTERSERVE (FACILITIES MANAGEMENT),,Large,,364834825,5106211891,Property Occupation,DfECC/0045 IB TUPE - 5SPP 14-15,BS32 4NH,232.30,
Communities & Local Government,DCLG,02/04/2015,Facilities Management (ISD use only),Finance & Corporate Services,INTERSERVE (FACILITIES MANAGEMENT),,Large,,364834825,5106211891,Property Occupation,DfECC/0074 Year 2 Contract Inflation SPP,BS32 4NH,17.13,
Communities & Local Government,DCLG,02/04/2015,Facilities Management (ISD use only),Finance & Corporate Services,INTERSERVE (FACILITIES MANAGEMENT),,Large,,364834825,5106211891,Property Occupation,DFECC/0097 FHS Structure Paradise 14-15,BS32 4NH,109.69,
Communities & Local Government,DCLG,02/04/2015,Fixed Maintenance,Finance & Corporate Services,INTERSERVE (FACILITIES MANAGEMENT),,Large,,364834825,5106211880,Property Occupation,Paradise Circus Projects 2014-15,BS32 4NH,"12,803.77",
Communities & Local Government,DCLG,02/04/2015,Fixed Maintenance,Finance & Corporate Services,INTERSERVE (FACILITIES MANAGEMENT),,Large,,364834825,5106211890,Property Occupation,DFECC0113 Additional AV Eland (One off),BS32 4NH,"16,740.00",
Communities & Local Government,DCLG,02/04/2015,Fixed Maintenance,Finance & Corporate Services,INTERSERVE (FACILITIES MANAGEMENT),,Large,,364834825,5106211890,Property Occupation,DfECC/0011 Semi Comp Maint - Hemel 14-15,BS32 4NH,200.06,
Communities & Local Government,DCLG,02/04/2015,Fixed Maintenance,Finance & Corporate Services,INTERSERVE (FACILITIES MANAGEMENT),,Large,,364834825,5106211890,Property Occupation,DfECC/0011Semi Comp Maint-CityGate 14-15,BS32 4NH,147.47,
Communities & Local Government,DCLG,02/04/2015,Fixed Maintenance,Finance & Corporate Services,INTERSERVE (FACILITIES MANAGEMENT),,Large,,364834825,5106211890,Property Occupation,DfECC/0011 Semi Comp Maint- 5SPP 14-15,BS32 4NH,444.09,
Communities & Local Government,DCLG,02/04/2015,Fixed Maintenance,Finance & Corporate Services,INTERSERVE (FACILITIES MANAGEMENT),,Large,,364834825,5106211890,Property Occupation,DfECC/0011 Semi Comp Maint-Paradise14-15,BS32 4NH,320.77,
Communities & Local Government,DCLG,02/04/2015,Fixed Maintenance,Finance & Corporate Services,INTERSERVE (FACILITIES MANAGEMENT),,Large,,364834825,5106211891,Property Occupation,DfECC/0011 Semi Comp Maint - Hemel 14-15,BS32 4NH,185.08,
Communities & Local Government,DCLG,02/04/2015,Fixed Maintenance,Finance & Corporate Services,INTERSERVE (FACILITIES MANAGEMENT),,Large,,364834825,5106211891,Property Occupation,DfECC/0011Semi Comp Maint-CityGate 14-15,BS32 4NH,147.47,
Communities & Local Government,DCLG,02/04/2015,Fixed Maintenance,Finance & Corporate Services,INTERSERVE (FACILITIES MANAGEMENT),,Large,,364834825,5106211891,Property Occupation,DfECC/0011 Semi Comp Maint- 5SPP 14-15,BS32 4NH,444.09,
Communities & Local Government,DCLG,02/04/2015,IT - Service Contracts,Finance & Corporate Services,FUJITSU SERVICES LTD,,Large,,423375062,5106211863,IT Managed / Outsourced Services,NRF0056 LiveLink Upgrade Project,WA3 9BD,"19,446.00",
Communities & Local Government,DCLG,02/04/2015,Management Consultancy,Neighbourhoods,DTZ DEBENHAM TIE LEUNG,,Large,,215585409,5106211864,Consultancy,EZ   Humber SLA DTZ (3)14,B4 6AJ,"7,944.00",
Communities & Local Government,DCLG,02/04/2015,Management Consultancy,Neighbourhoods,DTZ DEBENHAM TIE LEUNG,,Large,,215585409,5106211864,Consultancy,EZ   Sheffield SLA DTZ (2)14,B4 6AJ,"6,046.80",
Communities & Local Government,DCLG,02/04/2015,Management Consultancy,Neighbourhoods,DTZ DEBENHAM TIE LEUNG,,Large,,215585409,5106211864,Consultancy,North East Expenses,B4 6AJ,563.50,
Communities & Local Government,DCLG,02/04/2015,Photocopying,Finance & Corporate Services,INTERSERVE (FACILITIES MANAGEMENT),,Large,,364834825,5106211890,Business Support,DfECC/0041Prov of repro equip (TQH)14-15,BS32 4NH,"9,040.17",
Communities & Local Government,DCLG,02/04/2015,Photocopying,Finance & Corporate Services,INTERSERVE (FACILITIES MANAGEMENT),,Large,,364834825,5106211891,Business Support,DfECC/0041Prov of repro equip (TQH)14-15,BS32 4NH,"9,040.17",
Communities & Local Government,DCLG,02/04/2015,Post,Finance & Corporate Services,DCLG GOVERNMENT PROCUREMENT CARD,,,,,1000004021,,Pre paid envelopes for outgoing mail,TN37 7GA,765.00,
Communities & Local Government,DCLG,02/04/2015,Professional services,Finance & Corporate Services,DAWES & FRASER CONSULTING LTD,,Small,,,5106211885,Financial,Contract and Technical support for IPC C,SE20 7BS,"5,688.00",
Communities & Local Government,DCLG,02/04/2015,Professional services,Finance & Corporate Services,DAWES & FRASER CONSULTING LTD,,Small,,,5106211885,Financial,Expenses,SE20 7BS,177.68,
Communities & Local Government,DCLG,02/04/2015,Publications,Finance & Corporate Services,JONES YARRELL LEADENHALL LTD,,Large,,505670265,5106211886,Learning and Development Materials,Journal and Newspaper supply 2014-15,E3 3JH,343.74,
Communities & Local Government,DCLG,02/04/2015,Research,Finance & Corporate Services,TNS UK LTD,Yes,Large,,230399040,5106211894,Research,Research - Continuous Recording of Lettings ,W5 1UA,"83,323.20",
Communities & Local Government,DCLG,02/04/2015,Research,Finance & Corporate Services,TNS UK LTD,Yes,Large,,230399040,5106211894,Research,Research - Continuous Recording of Lettings ,W5 1UA,"85,105.00",
Communities & Local Government,DCLG,02/04/2015,Research,Finance & Corporate Services,TNS UK LTD,Yes,Large,,230399040,5106211894,Research,Research - Continuous Recording of Lettings ,W5 1UA,"1,190.00",
Communities & Local Government,DCLG,02/04/2015,Telecoms equipment (non-capitalised),Finance & Corporate Services,DAMOVO UK LTD,,Large,,221481042,5106211892,Telecoms,call charges to 31.03.2015,RH12 4QP,"1,007.63",
Communities & Local Government,DCLG,02/04/2015,Training,Finance & Corporate Services,CAPITA BUS. SERV. LTD (CSL),,Large,,215580993,5106211893,Development and Training,Managing Successful Programmes (MSP ) Fo,DL1 9HB,-705.00,
Communities & Local Government,DCLG,02/04/2015,Training,Finance & Corporate Services,CAPITA BUS. SERV. LTD (CSL),,Large,,215580993,5106211895,Development and Training,Association for Project Management Proje,DL1 9HB,614.00,
Communities & Local Government,DCLG,02/04/2015,Training,Finance & Corporate Services,IMPACT FACTORY LTD,,Micro,,550702260,5106211868,Development and Training,Time Management Course,N1 0QH,450.00,
Communities & Local Government,DCLG,02/04/2015,Variable Maintenance < 15k,Finance & Corporate Services,INTERSERVE (FACILITIES MANAGEMENT),,Large,,364834825,5106211869,Property Occupation,Temple Quay Variable Maint 14-15,BS32 4NH,"1,841.87",
Communities & Local Government,DCLG,02/04/2015,Variable Maintenance < 15k,Finance & Corporate Services,INTERSERVE (FACILITIES MANAGEMENT),,Large,,364834825,5106211869,Property Occupation,Hemel Variable Maint 14-15,BS32 4NH,192.96,
Communities & Local Government,DCLG,02/04/2015,Variable Maintenance < 15k,Finance & Corporate Services,INTERSERVE (FACILITIES MANAGEMENT),,Large,,364834825,5106211869,Property Occupation,City Gate Variable Maint 14-15,BS32 4NH,169.76,
Communities & Local Government,DCLG,02/04/2015,Variable Maintenance < 15k,Finance & Corporate Services,INTERSERVE (FACILITIES MANAGEMENT),,Large,,364834825,5106211869,Property Occupation,5 SPP Variable Maint 14-15,BS32 4NH,"5,221.62",
Communities & Local Government,DCLG,02/04/2015,Variable Maintenance < 15k,Finance & Corporate Services,INTERSERVE (FACILITIES MANAGEMENT),,Large,,364834825,5106211879,Property Occupation,Eland House Variable Maint 14-15,BS32 4NH,"2,948.51",
Communities & Local Government,DCLG,02/04/2015,Variable Maintenance < 15k,Finance & Corporate Services,INTERSERVE (FACILITIES MANAGEMENT),,Large,,364834825,5106211879,Property Occupation,Temple Quay Variable Maint 14-15,BS32 4NH,300.41,
Communities & Local Government,DCLG,02/04/2015,Variable Maintenance < 15k,Finance & Corporate Services,INTERSERVE (FACILITIES MANAGEMENT),,Large,,364834825,5106211879,Property Occupation,Hemel Variable Maint 14-15,BS32 4NH,"1,030.08",
Communities & Local Government,DCLG,02/04/2015,Variable Maintenance < 15k,Finance & Corporate Services,INTERSERVE (FACILITIES MANAGEMENT),,Large,,364834825,5106211879,Property Occupation,City Gate Variable Maint 14-15,BS32 4NH,"7,774.89",
Communities & Local Government,DCLG,02/04/2015,Variable Maintenance < 15k,Finance & Corporate Services,INTERSERVE (FACILITIES MANAGEMENT),,Large,,364834825,5106211879,Property Occupation,5 SPP Variable Maint 14-15,BS32 4NH,"1,507.49",
Communities & Local Government,DCLG,02/04/2015,Variable Maintenance < 15k,Finance & Corporate Services,INTERSERVE (FACILITIES MANAGEMENT),,Large,,364834825,5106211879,Property Occupation,Paradise Circus Variable Maint 14-15,BS32 4NH,"1,215.84",
Communities & Local Government,DCLG,02/04/2015,Variable Maintenance < 15k,Finance & Corporate Services,INTERSERVE (FACILITIES MANAGEMENT),,Large,,364834825,5106211881,Property Occupation,Eland House Pass through costs 14-15,BS32 4NH,162.90,
Communities & Local Government,DCLG,02/04/2015,Variable Maintenance < 15k,Finance & Corporate Services,INTERSERVE (FACILITIES MANAGEMENT),,Large,,364834825,5106211881,Property Occupation,Temple Quay Pass through costs 14-15,BS32 4NH,"3,869.19",
Communities & Local Government,DCLG,02/04/2015,Variable Maintenance < 15k,Finance & Corporate Services,INTERSERVE (FACILITIES MANAGEMENT),,Large,,364834825,5106211881,Property Occupation,City Gate Pass through costs 14-15,BS32 4NH,21.72,
Communities & Local Government,DCLG,02/04/2015,Variable Maintenance < 15k,Finance & Corporate Services,INTERSERVE (FACILITIES MANAGEMENT),,Large,,364834825,5106211881,Property Occupation,5 SPP Pass through costs 14-15,BS32 4NH,"3,111.00",
Communities & Local Government,DCLG,02/04/2015,Web Services,"Strategy, Communications and Private Office",DEXTROUS WEB LTD,,Micro,,211267270,5106211870,ICT Services,DCLG Intranet Hosting & Support,N1 7NG,468.00,
Communities & Local Government,DCLG,02/04/2015,Work In Progress Pre-Cert 40373 Spend,Neighbourhoods,BIOCITY NOTTINGHAM LIMITED,,Small,,,7600012308,,Revenue Grant To Be Paid,NG1 1GF,"13,440.92",Yes
Communities & Local Government,DCLG,02/04/2015,Work In Progress Pre-Cert 40373 Spend,Neighbourhoods,CREATIVE ENGLAND LTD,,,,,7600012311,,Revenue Grant To Be Paid,BS1 5SP,"63,308.43",Yes
Communities & Local Government,DCLG,02/04/2015,Work In Progress Pre-Cert 40373 Spend,Neighbourhoods,DERBY CITY COUNCIL,,Large,,,7600012295,,Revenue Grant To Be Paid,DE1 2FE,"1,100.82",Yes
Communities & Local Government,DCLG,02/04/2015,Work In Progress Pre-Cert 40373 Spend,Neighbourhoods,EAST MIDLANDS INCUBATION NETWORK (E,,Small,,,7600012296,,Revenue Grant To Be Paid,DE65 5GJ,"13,473.37",Yes
Communities & Local Government,DCLG,02/04/2015,Work In Progress Pre-Cert 40373 Spend,Neighbourhoods,JACTIN HOUSE LIMITED,,Small,,,7600012297,,Revenue Grant To Be Paid,M4 6AD,"2,248.59",Yes
Communities & Local Government,DCLG,02/04/2015,Work In Progress Pre-Cert 40373 Spend,Neighbourhoods,JACTIN HOUSE LIMITED,,Small,,,7600012312,,Revenue Grant To Be Paid,M4 6AD,"2,261.87",Yes
Communities & Local Government,DCLG,02/04/2015,Work In Progress Pre-Cert 40373 Spend,Neighbourhoods,LEICESTER CITY COUNCIL,,Large,,,7600012310,,Revenue Grant To Be Paid,LE1 6ZG,"63,401.56",Yes
Communities & Local Government,DCLG,02/04/2015,Work In Progress Pre-Cert 40373 Spend,Neighbourhoods,LEICESTER UNIVERSITY,,Large,,,7600012304,,Revenue Grant To Be Paid,LE1 7RH,"4,986.38",Yes
Communities & Local Government,DCLG,02/04/2015,Work In Progress Pre-Cert 40373 Spend,Neighbourhoods,LEICESTER UNIVERSITY,,Large,,,7600012306,,Revenue Grant To Be Paid,LE1 7RH,"21,470.95",Yes
Communities & Local Government,DCLG,02/04/2015,Work In Progress Pre-Cert 40373 Spend,Neighbourhoods,LINCONSHIRE COUNTY COUNCIL,,Large,,,7600012298,,Revenue Grant To Be Paid,LN1 1YT,"26,857.64",Yes
Communities & Local Government,DCLG,02/04/2015,Work In Progress Pre-Cert 40373 Spend,Neighbourhoods,LINCONSHIRE COUNTY COUNCIL,,Large,,,7600012305,,Revenue Grant To Be Paid,LN1 1YT,"43,870.23",Yes
Communities & Local Government,DCLG,02/04/2015,Work In Progress Pre-Cert 40373 Spend,Neighbourhoods,MARKETING DERBY,,Micro,,,7600012299,,Revenue Grant To Be Paid,DE24 8QR,"23,342.43",Yes
Communities & Local Government,DCLG,02/04/2015,Work In Progress Pre-Cert 40373 Spend,Neighbourhoods,NORTH SOMERSET ENT AGENCY PROP SERV,,Micro,,,7600012315,,Revenue Grant To Be Paid,BS24 9AY,"21,825.28",Yes
Communities & Local Government,DCLG,02/04/2015,Work In Progress Pre-Cert 40373 Spend,Neighbourhoods,NOTTINGHAM UNIVERSITY,,Large,,,7600012300,,Revenue Grant To Be Paid,NG7 2RD,"4,954.05",Yes
Communities & Local Government,DCLG,02/04/2015,Work In Progress Pre-Cert 40373 Spend,Neighbourhoods,NOTTINGHAM UNIVERSITY,,Large,,,7600012302,,Revenue Grant To Be Paid,NG7 2RD,"16,354.43",Yes
Communities & Local Government,DCLG,02/04/2015,Work In Progress Pre-Cert 40373 Spend,Neighbourhoods,NOTTINGHAM UNIVERSITY,,Large,,,7600012307,,Revenue Grant To Be Paid,NG7 2RD,"6,530.33",Yes
Communities & Local Government,DCLG,02/04/2015,Work In Progress Pre-Cert 40373 Spend,Neighbourhoods,ONE EAST MIDLANDS,,,,,7600012313,,Revenue Grant To Be Paid,NG1 3FB,"7,268.38",Yes
Communities & Local Government,DCLG,02/04/2015,Work In Progress Pre-Cert 40373 Spend,Neighbourhoods,OXFORD INNOVATION SERVICES LTD,,Medium,,,7600012314,,Revenue Grant To Be Paid,OX1 1BY,"704,788.77",Yes
Communities & Local Government,DCLG,02/04/2015,Work In Progress Pre-Cert 40373 Spend,Neighbourhoods,PERA CONSULTING UK LTD,,Medium,,,7600012301,,Revenue Grant To Be Paid,LE13 0PB,"33,607.88",Yes
Communities & Local Government,DCLG,02/04/2015,Work In Progress Pre-Cert 40467 Spend,Neighbourhoods,CHESTERFIELD COLLEGE,,Large,,,7600012294,,Capital Grant To Be Paid,S41 7NG,"62,648.37",Yes
Communities & Local Government,DCLG,02/04/2015,Work In Progress Pre-Cert 40467 Spend,Neighbourhoods,DERBY CITY COUNCIL,,Large,,,7600012295,,Capital Grant To Be Paid,DE1 2FE,"40,082.50",Yes
Communities & Local Government,DCLG,02/04/2015,Work In Progress Pre-Cert 40467 Spend,Neighbourhoods,JACTIN HOUSE LIMITED,,Small,,,7600012297,,Capital Grant To Be Paid,M4 6AD,"89,308.65",Yes
Communities & Local Government,DCLG,02/04/2015,Work In Progress Pre-Cert 40467 Spend,Neighbourhoods,JACTIN HOUSE LIMITED,,Small,,,7600012312,,Capital Grant To Be Paid,M4 6AD,"73,045.00",Yes
Communities & Local Government,DCLG,02/04/2015,Work In Progress Pre-Cert 40467 Spend,Neighbourhoods,LEICESTER CITY COUNCIL,,Large,,,7600012310,,Capital Grant To Be Paid,LE1 6ZG,"83,124.18",Yes
Communities & Local Government,DCLG,02/04/2015,Work In Progress Pre-Cert 40467 Spend,Neighbourhoods,LEICESTERSHIRE COUNTY COUNCIL,,Small,,,7600012309,,Capital Grant To Be Paid,LE13 0UL,"40,162.62",Yes
Communities & Local Government,DCLG,02/04/2015,Work In Progress Pre-Cert 40467 Spend,Neighbourhoods,NEW COLLEGE NOTTINGHAM CORPORATION,,Large,,,7600012303,,Capital Grant To Be Paid,NG1 1PR,"201,480.87",Yes
Communities & Local Government,DCLG,07/04/2015,Advertising,"Strategy, Communications and Private Office",ROYAL MAIL,,Large,,212543784,5106211951,Advertising,RtB Direct Marketing Campaign,S49 1HQ,725.94,
Communities & Local Government,DCLG,07/04/2015,Agency Staff,Finance & Corporate Services,ALLEN LANE FINANCIAL RECRUITMENT,,Medium,Yes,738603443,5106211943,Contingent Labour,Interim Accountant (Ext 02),,"3,036.86",
Communities & Local Government,DCLG,07/04/2015,Agency Staff,Finance & Corporate Services,BROOK STREET UK LTD,,Large,,364940028,5106211921,Contingent Labour,Interim Admin support,PE1 1SY,652.80,
Communities & Local Government,DCLG,07/04/2015,Agency Staff,Finance & Corporate Services,BROOK STREET UK LTD,,Large,,364940028,5106211924,Contingent Labour,Interim Admin support,PE1 1SY,580.27,
Communities & Local Government,DCLG,07/04/2015,Agency Staff,Finance & Corporate Services,BROOK STREET UK LTD,,Large,,364940028,5106211926,Contingent Labour,Interim Admin support,PE1 1SY,611.35,
Communities & Local Government,DCLG,07/04/2015,Agency Staff,Finance & Corporate Services,BROOK STREET UK LTD,,Large,,364940028,5106211927,Contingent Labour,Support worker for staff interim measure,PE1 1SY,435.20,
Communities & Local Government,DCLG,07/04/2015,Agency Staff,Finance & Corporate Services,BROOK STREET UK LTD,,Large,,364940028,5106211933,Contingent Labour,Interim Admin support,PE1 1SY,331.58,
Communities & Local Government,DCLG,07/04/2015,Agency Staff,Finance & Corporate Services,BROOK STREET UK LTD,,Large,,364940028,5106211939,Contingent Labour,Interim Admin support,PE1 1SY,341.94,
Communities & Local Government,DCLG,07/04/2015,Agency Staff,Finance & Corporate Services,BROOK STREET UK LTD,,Large,,364940028,5106211940,Contingent Labour,Interim Admin support,PE1 1SY,756.42,
Communities & Local Government,DCLG,07/04/2015,Agency Staff,Finance & Corporate Services,BROOK STREET UK LTD,,Large,,364940028,5106211942,Contingent Labour,Interim Admin support,PE1 1SY,611.35,
Communities & Local Government,DCLG,07/04/2015,Agency Staff,Finance & Corporate Services,BROOK STREET UK LTD,,Large,,364940028,5106211946,Contingent Labour,Interim Admin support,PE1 1SY,331.58,
Communities & Local Government,DCLG,07/04/2015,Agency Staff,Finance & Corporate Services,BROOK STREET UK LTD,,Large,,364940028,5106211947,Contingent Labour,Interim Admin support,PE1 1SY,642.44,
Communities & Local Government,DCLG,07/04/2015,Agency Staff,Finance & Corporate Services,BROOK STREET UK LTD,,Large,,364940028,5106211948,Contingent Labour,Interim Admin support,PE1 1SY,476.65,
Communities & Local Government,DCLG,07/04/2015,Agency Staff,Finance & Corporate Services,BROOK STREET UK LTD,,Large,,364940028,5106211955,Contingent Labour,Interim Admin support,PE1 1SY,787.51,
Communities & Local Government,DCLG,07/04/2015,Agency Staff,Finance & Corporate Services,BROOK STREET UK LTD,,Large,,364940028,5106211956,Contingent Labour,Interim Admin support,PE1 1SY,611.35,
Communities & Local Government,DCLG,07/04/2015,Agency Staff,Finance & Corporate Services,BROOK STREET UK LTD,,Large,,364940028,5106211959,Contingent Labour,Interim Admin support,PE1 1SY,331.58,
Communities & Local Government,DCLG,07/04/2015,Agency Staff,Finance & Corporate Services,BROOK STREET UK LTD,,Large,,364940028,5106211960,Contingent Labour,Interim Admin support,PE1 1SY,652.80,
Communities & Local Government,DCLG,07/04/2015,Building Renovations,Finance & Corporate Services,SKANSEN GROUP LIMITED,,Medium,,222973468,5106211957,Construction Service Providers,2 Rivergate  Refurbishment,SW18 1SF,"167,738.40",
Communities & Local Government,DCLG,07/04/2015,Current (non AEF) Grants to Local Authorities,Localism,LONDON BOROUGH OF EALING,,,,211049515,2100253221,,Payment of Transformation Challenge Award,W5 2HL,"1,890,000.00",Yes
Communities & Local Government,DCLG,07/04/2015,Current (non AEF) Grants to Local Authorities,Neighbourhoods,ASHFIELD DC,,,,,2100253389,,Social Housing and Mobility,NG17 8DA,"37,500.00",Yes
Communities & Local Government,DCLG,07/04/2015,Current (non AEF) Grants to Local Authorities,Neighbourhoods,CENTRAL BEDFORDSHIRE COUNCIL,,Public Bodies,,,2100253382,,Social Housing and Mobility,MK42 9BD,"53,000.00",Yes
Communities & Local Government,DCLG,07/04/2015,Current (non AEF) Grants to Local Authorities,Neighbourhoods,CORNWALL COUNTY COUNCIL,,Public Bodies,,211334404,2100253387,,Social Housing and Mobility,TR1 3AY,"69,629.00",Yes
Communities & Local Government,DCLG,07/04/2015,Current (non AEF) Grants to Local Authorities,Neighbourhoods,HARLOW DISTRICT COUNCIL,,,,232914382,2100253386,,Social Housing and Mobility,CM20 1HJ,"46,000.00",Yes
Communities & Local Government,DCLG,07/04/2015,Current (non AEF) Grants to Local Authorities,Neighbourhoods,WARWICK DISTRICT COUNCIL,,Public Bodies,,239845720,2100253383,,Social Housing and Mobility,CV32 5QS,"67,613.00",Yes
Communities & Local Government,DCLG,07/04/2015,Current Grants to Non Profit Bodies,Localism,ARC THEATRE ENSEMBLE LONDON,,Micro,,,2100253060,,Community Acts to Prevent Female Genital Mutilation,RM9 5NB,"4,680.00",Yes
Communities & Local Government,DCLG,07/04/2015,Current Grants to Non Profit Bodies,Localism,GROUNDWORK UK,Yes,,,739193758,2100253392,,Neighbourhood Planning,B1 2RR,"2,177,700.00",Yes
Communities & Local Government,DCLG,07/04/2015,Current Grants to Non Profit Bodies,Localism,GROUNDWORK UK,Yes,,,739193758,2100253392,,Our Place,B1 2RR,"1,035,000.00",Yes
Communities & Local Government,DCLG,07/04/2015,Current Grants to Non Profit Bodies,Localism,GROUNDWORK UK,Yes,,,739193758,2100253392,,Community Economic Development,B1 2RR,"50,000.00",Yes
Communities & Local Government,DCLG,07/04/2015,Current Grants to Non Profit Bodies,Localism,VICTORIA CROSS TRUST,,Micro,,,2100253393,,WW1 Victoria Cross Graves Restoration Project ,DN1 2QA,"50,000.00",Yes
Communities & Local Government,DCLG,07/04/2015,Current Grants to Non Profit Bodies,Neighbourhoods,ASSOCIATION TOWN CENTRE MANAGEMENT,,Small,,348626995,2100253178,,Support for Portas Pilots & Town Teams Feb 15,SE1 0EH,"31,142.41",Yes
Communities & Local Government,DCLG,07/04/2015,Current Grants to Non Profit Bodies,Neighbourhoods,CEL GROUP,,Medium,,394794614,5106211938,Technical Services,Home Improvement Agency,WA2 0YL,"76,564.63",Yes
Communities & Local Government,DCLG,07/04/2015,Grant in Aid to NDPBs (non budget),Finance & Corporate Services,COMMISSION LOCAL ADMINISTRATION,,,,215271508,2100253377,,Grant: Commission for Local Administration England ,SW1P 4QP,"1,006,000.00",Yes
Communities & Local Government,DCLG,07/04/2015,IT - Service Contracts,Localism,AIRWAVE SOLUTIONS LTD,,Large,,232603469,5106211851,IT Managed / Outsourced Services,Phase A England 2014/15,SL1 2EJ,"-6,471.74",
Communities & Local Government,DCLG,07/04/2015,IT - Service Contracts,Localism,AIRWAVE SOLUTIONS LTD,,Large,,232603469,5106211851,IT Managed / Outsourced Services,Phase A Wales 2014/15,SL1 2EJ,"-4,719.72",
Communities & Local Government,DCLG,07/04/2015,IT - Service Contracts,Localism,AIRWAVE SOLUTIONS LTD,,Large,,232603469,5106211851,IT Managed / Outsourced Services,Phase A Scotland 2014/15,SL1 2EJ,"-12,307.00",
Communities & Local Government,DCLG,07/04/2015,IT - Service Contracts,Localism,AIRWAVE SOLUTIONS LTD,,Large,,232603469,5106211852,IT Managed / Outsourced Services,Phase A England 2014/15,SL1 2EJ,"-26,809.07",
Communities & Local Government,DCLG,07/04/2015,IT - Service Contracts,Localism,AIRWAVE SOLUTIONS LTD,,Large,,232603469,5106211852,IT Managed / Outsourced Services,Phase A Wales 2014/15,SL1 2EJ,"-3,067.29",
Communities & Local Government,DCLG,07/04/2015,IT - Service Contracts,Localism,AIRWAVE SOLUTIONS LTD,,Large,,232603469,5106211852,IT Managed / Outsourced Services,Phase A Scotland 2014/15,SL1 2EJ,"-9,215.42",
Communities & Local Government,DCLG,07/04/2015,IT - Service Contracts,Localism,AIRWAVE SOLUTIONS LTD,,Large,,232603469,5106211853,IT Managed / Outsourced Services,Phase A England 2014/15,SL1 2EJ,"-4,074.21",
Communities & Local Government,DCLG,07/04/2015,IT - Service Contracts,Localism,AIRWAVE SOLUTIONS LTD,,Large,,232603469,5106211853,IT Managed / Outsourced Services,Phase A Wales 2014/15,SL1 2EJ,-465.15,
Communities & Local Government,DCLG,07/04/2015,IT - Service Contracts,Localism,AIRWAVE SOLUTIONS LTD,,Large,,232603469,5106211853,IT Managed / Outsourced Services,Phase A Scotland 2014/15,SL1 2EJ,"-1,064.80",
Communities & Local Government,DCLG,07/04/2015,IT - Service Contracts,Localism,AIRWAVE SOLUTIONS LTD,,Large,,232603469,5106211964,IT Managed / Outsourced Services,Phase A England 2014/15,SL1 2EJ,597.51,
Communities & Local Government,DCLG,07/04/2015,IT - Service Contracts,Localism,AIRWAVE SOLUTIONS LTD,,Large,,232603469,5106211965,IT Managed / Outsourced Services,Phase A England 2014/15,SL1 2EJ,"2,015.34",
Communities & Local Government,DCLG,07/04/2015,IT - Service Contracts,Localism,AIRWAVE SOLUTIONS LTD,,Large,,232603469,5106211966,IT Managed / Outsourced Services,Phase A England 2014/15,SL1 2EJ,"90,200.00",
Communities & Local Government,DCLG,07/04/2015,IT - Software Maintenance,Finance & Corporate Services,ESRI (UK) LIMITED,,Large,,226271518,5106211911,IT Managed / Outsourced Services,Software maintenance contract,HP21 7QG,"17,592.64",
Communities & Local Government,DCLG,07/04/2015,Professional services,Finance & Corporate Services,E C HARRIS LLP,,Large,,,5106211910,Construction Service Providers,PAMU Com 140 TFM Service Mngr/PPM Suppt,N1 9AB,"5,927.09",
Communities & Local Government,DCLG,07/04/2015,Professional services,Finance & Corporate Services,E C HARRIS LLP,,Large,,,5106211922,Construction Service Providers,PAMU Com 142TFM SM Hard Service Support,N1 9AB,"5,040.00",
Communities & Local Government,DCLG,07/04/2015,Professional services,Finance & Corporate Services,E C HARRIS LLP,,Large,,,5106211925,Construction Service Providers,PAMU Com 142TFM SM Hard Service Support,N1 9AB,"5,040.00",
Communities & Local Government,DCLG,07/04/2015,Professional services,Localism,GOVT ACTUARYS DEPARTMENT,,Public Bodies,,217789766,5106211961,Financial,Actuarial advice to support policy development,EC4A 1AB,"41,293.89",
Communities & Local Government,DCLG,07/04/2015,Recruitment,Finance & Corporate Services,H M TREASURY,,Public Bodies,,233590996,5106211937,Business Process Outsourcing Services,Government Economic Service Charges ,NR7 0HS,"52,800.00",
Communities & Local Government,DCLG,07/04/2015,Research,Finance & Corporate Services,NATIONAL CENTRE FOR SOCIAL RESEARCH,,Large,,424047426,5106211967,Research, Research - British Social Attitude,EC1V 0AX,"18,150.00",
Communities & Local Government,DCLG,07/04/2015,Research,"Strategy, Communications and Private Office",IPSOS UK,,Large,,227358512,5106211877,Research,Tracking research - Fire Kills Campaign,HA1 1PT,"9,110.00",
Communities & Local Government,DCLG,07/04/2015,Steady State Service Provision,Finance & Corporate Services,CGI IT UK LIMITED,,Large,,239881618,5106211872,Business Process Outsourcing Services,Payroll Services & Licences  14/15,CF31 9AP,"7,169.03",
Communities & Local Government,DCLG,07/04/2015,Variable Maintenance < 15k,Finance & Corporate Services,INTERSERVE (FACILITIES MANAGEMENT),,Large,,364834825,5106211907,Property Occupation,Eland House Variable Maint 14-15,BS32 4NH,"3,242.14",
Communities & Local Government,DCLG,07/04/2015,Variable Maintenance < 15k,Finance & Corporate Services,INTERSERVE (FACILITIES MANAGEMENT),,Large,,364834825,5106211907,Property Occupation,Temple Quay Variable Maint 14-15,BS32 4NH,"4,234.88",
Communities & Local Government,DCLG,07/04/2015,Variable Maintenance < 15k,Finance & Corporate Services,INTERSERVE (FACILITIES MANAGEMENT),,Large,,364834825,5106211907,Property Occupation,Rivergate Variable Maint 14-15,BS32 4NH,47.08,
Communities & Local Government,DCLG,07/04/2015,Variable Maintenance < 15k,Finance & Corporate Services,INTERSERVE (FACILITIES MANAGEMENT),,Large,,364834825,5106211907,Property Occupation,Bridge House Variable Maint 14-15,BS32 4NH,212.40,
Communities & Local Government,DCLG,07/04/2015,Work In Progress Pre-Cert 40373 Spend,Neighbourhoods,CORNWALL DEVELOPMENT COMPANY LTD,,,,,7600012316,,Revenue Grant Clawback Offset,TR1 1EA,-33.87,Yes
Communities & Local Government,DCLG,07/04/2015,Work In Progress Pre-Cert 40373 Spend,Neighbourhoods,CORNWALL DEVELOPMENT COMPANY LTD,,,,,7600012316,,Revenue Grant To Be Paid,TR1 1EA,"28,261.80",Yes
Communities & Local Government,DCLG,07/04/2015,Work In Progress Pre-Cert 40373 Spend,Neighbourhoods,SES,,,,,7600012318,,Revenue Grant To Be Paid,SR1 8EL,"7,673.67",Yes
Communities & Local Government,DCLG,07/04/2015,Work In Progress Pre-Cert 40373 Spend,Neighbourhoods,UNIVERSITY OF THE WEST OF ENGLAND,,,,,7600012321,,Revenue Grant To Be Paid,BS16 1QY,"113,071.68",Yes
Communities & Local Government,DCLG,07/04/2015,Work In Progress Pre-Cert 40373 Spend,Neighbourhoods,WSX ENTERPRISE LIMITED,,,,,7600012322,,Revenue Grant To Be Paid,PO16 7BJ,"64,885.20",Yes
Communities & Local Government,DCLG,07/04/2015,Work In Progress Pre-Cert 40373 Spend,Neighbourhoods,YTKO LIMITED,,,,,7600012317,,Revenue Grant To Be Paid,CB4 2QH,"76,324.31",Yes
Communities & Local Government,DCLG,07/04/2015,Work In Progress Pre-Cert 40467 Spend,Neighbourhoods,RAVENSWORTH PROPERTY DEVELOPMENTS L,,Small,,,7600012319,,Capital Grant To Be Paid,DH1 2RS,"323,895.42",Yes
Communities & Local Government,DCLG,08/04/2015,Agency Staff,Finance & Corporate Services,BROOK STREET UK LTD,,Large,,364940028,5106212019,Contingent Labour,Interim Admin support,PE1 1SY,765.73,
Communities & Local Government,DCLG,08/04/2015,Agency Staff,Finance & Corporate Services,CAPITA BUS. SERV. LTD (CON LAB),,Large,,,5106211974,Contingent Labour,Interim Manager,DL1 9HB,"3,056.76",
Communities & Local Government,DCLG,08/04/2015,Agency Staff,Localism,CAPITA BUS. SERV. LTD (CON LAB),,Large,,,5106211988,Contingent Labour,Interim Manager,DL1 9HB,"3,327.42",
Communities & Local Government,DCLG,08/04/2015,Agency Staff,Localism,CAPITA BUS. SERV. LTD (CON LAB),,Large,,,5106211992,Contingent Labour,Interim and Specialist Contractor,DL1 9HB,"10,471.82",
Communities & Local Government,DCLG,08/04/2015,Agency Staff,Neighbourhoods,CAPITA BUS. SERV. LTD (CON LAB),,Large,,,5106211980,Contingent Labour,Interim Manager,DL1 9HB,"2,575.92",
Communities & Local Government,DCLG,08/04/2015,Agency Staff,Neighbourhoods,CAPITA BUS. SERV. LTD (CON LAB),,Large,,,5106211987,Contingent Labour,Expenses,DL1 9HB,101.04,
Communities & Local Government,DCLG,08/04/2015,Agency Staff,Neighbourhoods,CAPITA BUS. SERV. LTD (CON LAB),,Large,,,5106211987,Contingent Labour,Interim Staff,DL1 9HB,627.98,
Communities & Local Government,DCLG,08/04/2015,Agency Staff,Neighbourhoods,CAPITA BUS. SERV. LTD (CON LAB),,Large,,,5106211990,Contingent Labour,Interim Manager,DL1 9HB,"1,352.28",
Communities & Local Government,DCLG,08/04/2015,Agency Staff,Neighbourhoods,CAPITA BUS. SERV. LTD (CON LAB),,Large,,,5106211991,Contingent Labour,Interim and Specialist Contractor,DL1 9HB,"3,327.42",
Communities & Local Government,DCLG,08/04/2015,Agency Staff,Neighbourhoods,CAPITA BUS. SERV. LTD (CON LAB),,Large,,,5106211993,Contingent Labour,ERDF: Quality Assurance Officer,DL1 9HB,"2,224.20",
Communities & Local Government,DCLG,08/04/2015,Agency Staff,Neighbourhoods,CAPITA BUS. SERV. LTD (CON LAB),,Large,,,5106211993,Contingent Labour,Official Travel and Subsistence,DL1 9HB,673.32,
Communities & Local Government,DCLG,08/04/2015,Current Grants to Non Profit Bodies,Localism,INTER FAITH NETWORK FOR THE UK,Yes,Small,,519808690,2100253390,,Promoting faith communities in the UK and their contribution,SW1W 0DH,"220,000.00",Yes
Communities & Local Government,DCLG,08/04/2015,IT - Service Contracts,Finance & Corporate Services,FUJITSU SERVICES LTD,,Large,,423375062,5106212020,IT Managed / Outsourced Services,NR     PAMU Office Move Project,WA3 9BD,"11,610.39",
Communities & Local Government,DCLG,08/04/2015,IT - Service Contracts,Neighbourhoods,JEREMY BENN ASSOCIATES LTD,,Medium,,525608741,5106212004,IT Managed / Outsourced Services,IT Enhancements,BD23 3AE,900.01,
Communities & Local Government,DCLG,08/04/2015,IT - Service Contracts,Neighbourhoods,JEREMY BENN ASSOCIATES LTD,,Medium,,525608741,5106212005,IT Managed / Outsourced Services,IT Enhancements,BD23 3AE,"12,479.14",
Communities & Local Government,DCLG,08/04/2015,IT - Software Maintenance,Finance & Corporate Services,KAIZEN ASSOCIATES LTD,,Micro,,217482430,5106211908,IT Managed / Outsourced Services,SAP Application Support,SE1 6SW,"2,335.85",
Communities & Local Government,DCLG,08/04/2015,Legal Fees,Neighbourhoods,ASHFORDS LLP,,Large,,,5106212003,Legal,Legal Advice,EX1 3LH,"34,500.88",
Communities & Local Government,DCLG,08/04/2015,Management Consultancy,Neighbourhoods,DTZ DEBENHAM TIE LEUNG,,Large,,215585409,5106212021,Consultancy,DTZ South East 2 (London Royal Docks - P,B4 6AJ,"2,463.60",
Communities & Local Government,DCLG,08/04/2015,Management Consultancy,Neighbourhoods,DTZ DEBENHAM TIE LEUNG,,Large,,215585409,5106212021,Consultancy,DTZ South East 3 (Harlow EZ  - Phase 1 -,B4 6AJ,"15,222.00",
Communities & Local Government,DCLG,08/04/2015,Management Consultancy,Neighbourhoods,DTZ DEBENHAM TIE LEUNG,,Large,,215585409,5106212021,Consultancy,South East Expenses,B4 6AJ,"5,151.96",
Communities & Local Government,DCLG,08/04/2015,Printing,"Strategy, Communications and Private Office",STATIONERY OFFICE LTD,,Large,,779375633,5106212007,Printing Services,Statutory Instruments Print: Non-Vatable,NR3 1PD,165.00,
Communities & Local Government,DCLG,08/04/2015,Printing,"Strategy, Communications and Private Office",STATIONERY OFFICE LTD,,Large,,779375633,5106212007,Printing Services,Statutory Instruments Print: Vatable,NR3 1PD,130.00,
Communities & Local Government,DCLG,08/04/2015,Printing,"Strategy, Communications and Private Office",STATIONERY OFFICE LTD,,Large,,779375633,5106212009,Printing Services,Statutory Instruments Print: Non-Vatable,NR3 1PD,165.00,
Communities & Local Government,DCLG,08/04/2015,Printing,"Strategy, Communications and Private Office",STATIONERY OFFICE LTD,,Large,,779375633,5106212009,Printing Services,Statutory Instruments Print: Vatable,NR3 1PD,130.00,
Communities & Local Government,DCLG,08/04/2015,Printing,"Strategy, Communications and Private Office",STATIONERY OFFICE LTD,,Large,,779375633,5106212010,Printing Services,Statutory Instruments Print: Non-Vatable,NR3 1PD,165.00,
Communities & Local Government,DCLG,08/04/2015,Printing,"Strategy, Communications and Private Office",STATIONERY OFFICE LTD,,Large,,779375633,5106212010,Printing Services,Statutory Instruments Print: Vatable,NR3 1PD,130.00,
Communities & Local Government,DCLG,08/04/2015,Printing,"Strategy, Communications and Private Office",STATIONERY OFFICE LTD,,Large,,779375633,5106212011,Printing Services,Statutory Instruments Print: Non-Vatable,NR3 1PD,191.25,
Communities & Local Government,DCLG,08/04/2015,Printing,"Strategy, Communications and Private Office",STATIONERY OFFICE LTD,,Large,,779375633,5106212011,Printing Services,Statutory Instruments Print: Vatable,NR3 1PD,130.00,
Communities & Local Government,DCLG,08/04/2015,Printing,"Strategy, Communications and Private Office",STATIONERY OFFICE LTD,,Large,,779375633,5106212012,Printing Services,Statutory Instruments Print: Non-Vatable,NR3 1PD,165.00,
Communities & Local Government,DCLG,08/04/2015,Printing,"Strategy, Communications and Private Office",STATIONERY OFFICE LTD,,Large,,779375633,5106212012,Printing Services,Statutory Instruments Print: Vatable,NR3 1PD,130.00,
Communities & Local Government,DCLG,08/04/2015,Printing,"Strategy, Communications and Private Office",STATIONERY OFFICE LTD,,Large,,779375633,5106212013,Printing Services,Statutory Instruments Print: Non-Vatable,NR3 1PD,165.00,
Communities & Local Government,DCLG,08/04/2015,Printing,"Strategy, Communications and Private Office",STATIONERY OFFICE LTD,,Large,,779375633,5106212013,Printing Services,Statutory Instruments Print: Vatable,NR3 1PD,130.00,
Communities & Local Government,DCLG,08/04/2015,Printing,"Strategy, Communications and Private Office",STATIONERY OFFICE LTD,,Large,,779375633,5106212015,Printing Services,Statutory Instruments Print: Non-Vatable,NR3 1PD,165.00,
Communities & Local Government,DCLG,08/04/2015,Printing,"Strategy, Communications and Private Office",STATIONERY OFFICE LTD,,Large,,779375633,5106212015,Printing Services,Statutory Instruments Print: Vatable,NR3 1PD,130.00,
Communities & Local Government,DCLG,08/04/2015,Printing,"Strategy, Communications and Private Office",STATIONERY OFFICE LTD,,Large,,779375633,5106212016,Printing Services,Statutory Instruments Print: Non-Vatable,NR3 1PD,165.00,
Communities & Local Government,DCLG,08/04/2015,Printing,"Strategy, Communications and Private Office",STATIONERY OFFICE LTD,,Large,,779375633,5106212016,Printing Services,Statutory Instruments Print: Vatable,NR3 1PD,130.00,
Communities & Local Government,DCLG,08/04/2015,Printing,"Strategy, Communications and Private Office",STATIONERY OFFICE LTD,,Large,,779375633,5106212017,Printing Services,Statutory Instruments Print: Non-Vatable,NR3 1PD,165.00,
Communities & Local Government,DCLG,08/04/2015,Printing,"Strategy, Communications and Private Office",STATIONERY OFFICE LTD,,Large,,779375633,5106212017,Printing Services,Statutory Instruments Print: Vatable,NR3 1PD,130.00,
Communities & Local Government,DCLG,08/04/2015,Printing,"Strategy, Communications and Private Office",STATIONERY OFFICE LTD,,Large,,779375633,5106212018,Printing Services,Statutory Instruments Print: Non-Vatable,NR3 1PD,165.00,
Communities & Local Government,DCLG,08/04/2015,Printing,"Strategy, Communications and Private Office",STATIONERY OFFICE LTD,,Large,,779375633,5106212018,Printing Services,Statutory Instruments Print: Vatable,NR3 1PD,130.00,
Communities & Local Government,DCLG,08/04/2015,Printing,"Strategy, Communications and Private Office",WILLIAMS LEA LIMITED,,Large,,393456413,5106212023,Printing Services,Year 3 Print services,NR3 1PD,"7,644.76",
Communities & Local Government,DCLG,08/04/2015,Printing,"Strategy, Communications and Private Office",WILLIAMS LEA LIMITED,,Large,,393456413,5106212024,Printing Services,Year 3 Print services,NR3 1PD,"12,306.25",
Communities & Local Government,DCLG,08/04/2015,Printing,"Strategy, Communications and Private Office",WILLIAMS LEA LIMITED,,Large,,393456413,5106212025,Printing Services,Year 3 Print services (0% VAT),NR3 1PD,703.94,
Communities & Local Government,DCLG,08/04/2015,Publicity,"Strategy, Communications and Private Office",JONES YARRELL LEADENHALL LTD,,Large,,505670265,5106211867,Advertising,Newspaper and Magazines 14/15,E3 3JH,522.13,
Communities & Local Government,DCLG,08/04/2015,Removals and Porterage,Finance & Corporate Services,JOHNSONS BUSINESS MOVES,,Medium,,,5106211831,Transport,Deliver furniture to 2MS & Hempstead Hse,CW7 3PD,"1,593.40",
Communities & Local Government,DCLG,08/04/2015,Rent,Finance & Corporate Services,DAVITT JONES BOULD LTD (CLIENT ACC),,Medium,,,5106212036,Business Support,Surrender of 1st and 2nd flrs Friarsgate,TA1 4EB,"774,740.00",
Communities & Local Government,DCLG,08/04/2015,Services provided by other Govt Orgs,Finance & Corporate Services,DEPT FOR EDUCATION,,Public Bodies,,215592186,5106211887,Financial,DCLG Security Vetting 2014-15,CF14 3UW,"3,760.78",Yes
Communities & Local Government,DCLG,08/04/2015,Services provided by other Govt Orgs,Finance & Corporate Services,DEPT FOR EDUCATION,,Public Bodies,,215592186,5106211896,Financial,DCLG Security Vetting 2014-15,CF14 3UW,"4,867.65",Yes
Communities & Local Government,DCLG,08/04/2015,Steady State Service Provision,Neighbourhoods,MOVE WITH US,,Large,,,5106211998,Business Process Outsourcing Services,Right to buy agents service,PE27 4AA,"41,780.75",
Communities & Local Government,DCLG,08/04/2015,Steady State Service Provision,Neighbourhoods,NAT STONE CENTRE,,Micro,,291678118,5106212001,Business Process Outsourcing Services,Staff 2014/15,DE4 4LS,"3,451.50",
Communities & Local Government,DCLG,08/04/2015,Steady State Service Provision,Neighbourhoods,NAT STONE CENTRE,,Micro,,291678118,5106212001,Business Process Outsourcing Services,Staff T&S 2013/14,DE4 4LS,11.00,
Communities & Local Government,DCLG,08/04/2015,Steady State Service Provision,Neighbourhoods,NAT STONE CENTRE,,Micro,,291678118,5106212001,Business Process Outsourcing Services,Staff T&S 2014/15,DE4 4LS,170.00,
Communities & Local Government,DCLG,08/04/2015,Training,Finance & Corporate Services,CAPITA BUS. SERV. LTD (CSL),,Large,,215580993,5106211996,Development and Training,Managing Successful Programmes (MSP ) Fo,DL1 9HB,705.00,
Communities & Local Government,DCLG,08/04/2015,Vehicle hire,"Strategy, Communications and Private Office",GOVERNMENT CAR & DESPATCH AGENCY,,Public Bodies,,,5106211995,Vehicle Hire and Lease,Ministerial Duty Car 2(LT206) 2014-15,SW8 5AX,"1,345.51",
Communities & Local Government,DCLG,08/04/2015,Vehicle hire,"Strategy, Communications and Private Office",GOVERNMENT CAR & DESPATCH AGENCY,,Public Bodies,,,5106211997,Vehicle Hire and Lease,Ministerial Duty Car 1(LT118) 2014-15,SW8 5AX,373.50,
Communities & Local Government,DCLG,08/04/2015,Web Services,"Strategy, Communications and Private Office",DEXTROUS WEB LTD,,Micro,,211267270,5106211713,ICT Services,DCLG Intranet Hosting & Support,N1 7NG,"8,640.00",
Communities & Local Government,DCLG,08/04/2015,Work In Progress Pre-Cert 40373 Spend,Neighbourhoods,ENWORKS (B/R),,,,,7600011895,,Revenue Grant To Be Paid,B1 2RR,869.00,Yes
Communities & Local Government,DCLG,08/04/2015,Work In Progress Pre-Cert 40373 Spend,Neighbourhoods,ENWORKS (B/R),,,,,7600011896,,Revenue Grant To Be Paid,B1 2RR,"1,991.25",Yes
Communities & Local Government,DCLG,08/04/2015,Work In Progress Pre-Cert 40373 Spend,Neighbourhoods,ENWORKS (B/R),,,,,7600012336,,Revenue Grant To Be Paid,B1 2RR,-869.00,Yes
Communities & Local Government,DCLG,08/04/2015,Work In Progress Pre-Cert 40373 Spend,Neighbourhoods,ENWORKS (B/R),,,,,7600012337,,Revenue Grant To Be Paid,B1 2RR,"-1,991.25",Yes
Communities & Local Government,DCLG,09/04/2015,Advertising,"Strategy, Communications and Private Office",CARAT LTD,,Large,,211589882,5106212028,Advertising,Community Clear Up day - facebook ads,NW1 3BF,"5,994.82",
Communities & Local Government,DCLG,09/04/2015,Advertising,"Strategy, Communications and Private Office",CARAT LTD,,Large,,211589882,5106212028,Advertising,Non VAT line,NW1 3BF,4.64,
Communities & Local Government,DCLG,09/04/2015,CITI RFT out,"Strategy, Communications and Private Office",SHUTTERSTOCK IMAGES LLC,,Micro,,612408976,2100253565,,Picture Licence 15/16,10004,987.44,
Communities & Local Government,DCLG,09/04/2015,Current (non AEF) Grants to Local Authorities,Neighbourhoods,LONDON BOROUGH OF BRENT,,,,225383090,2100253388,,Social Housing and Mobility,HA9 9HD,"75,000.00",Yes
Communities & Local Government,DCLG,09/04/2015,Current (non AEF) Grants to Local Authorities,Neighbourhoods,SALFORD CITY COUNCIL,,Public Bodies,,210765504,2100253385,,Social Housing and Mobility,M27 5AW,"55,800.00",Yes
Communities & Local Government,DCLG,09/04/2015,Current (non AEF) Grants to Local Authorities,Neighbourhoods,SWINDON BC,,,,,2100253384,,Social Housing and Mobility,SN1 1TZ,"39,800.00",Yes
Communities & Local Government,DCLG,09/04/2015,Current Grants to Non Profit Bodies,Localism,CHURCH URBAN FUND,,Small,,396728263,2100253391,,Programme to bring communities together,SW1P 3AZ,"411,000.00",Yes
Communities & Local Government,DCLG,09/04/2015,Current Grants to Non Profit Bodies,Neighbourhoods,EAST NORTHAMPTONSHIRE COUNCIL,,,,227475290,2100253542,,Site Delivery Fund Payment 2015-16,NN14 4LZ,"56,000.00",Yes
Communities & Local Government,DCLG,09/04/2015,Domestic Services,Finance & Corporate Services,AMEY COMMUNITY LTD,,Large,,,5106212045,Building Operation,2014-15 Lateral Additional Cleaning-EA,OX4 4DQ,"1,202.84",
Communities & Local Government,DCLG,09/04/2015,Domestic Services,Finance & Corporate Services,AMEY COMMUNITY LTD,,Large,,,5106212045,Building Operation,2014-15 Lateral Cleaning,OX4 4DQ,"4,552.59",
Communities & Local Government,DCLG,09/04/2015,Facilities Management (ISD use only),Finance & Corporate Services,AMEY COMMUNITY LTD,,Large,,,5106212045,Property Occupation,2014-15 Lateral Estate Service,OX4 4DQ,"1,867.44",
Communities & Local Government,DCLG,09/04/2015,Facilities Management (ISD use only),Finance & Corporate Services,AMEY COMMUNITY LTD,,Large,,,5106212045,Property Occupation,2014-15 Lateral General Requirements,OX4 4DQ,"3,969.80",
Communities & Local Government,DCLG,09/04/2015,Facilities Management (ISD use only),Finance & Corporate Services,AMEY COMMUNITY LTD,,Large,,,5106212045,Property Occupation,2014-15 Lateral Helpdesk,OX4 4DQ,368.59,
Communities & Local Government,DCLG,09/04/2015,Facilities Management (ISD use only),Finance & Corporate Services,AMEY COMMUNITY LTD,,Large,,,5106212045,Property Occupation,2014-15 Lateral Porterage Services,OX4 4DQ,18.33,
Communities & Local Government,DCLG,09/04/2015,Facilities Management (ISD use only),Finance & Corporate Services,AMEY COMMUNITY LTD,,Large,,,5106212045,Property Occupation,2014-15 Lateral X-Ray devices,OX4 4DQ,51.11,
Communities & Local Government,DCLG,09/04/2015,Fixed Maintenance,Finance & Corporate Services,AMEY COMMUNITY LTD,,Large,,,5106212045,Business Support,2014-15 Lateral Grounds &Gardens,OX4 4DQ,169.08,
Communities & Local Government,DCLG,09/04/2015,Grant in Aid to NDPBs (non budget),Finance & Corporate Services,VALUATION TRIBUNAL SERVICE,,,,211218366,2100253543,,Grant in Aid to VTS,E1 8EU,"516,816.00",Yes
Communities & Local Government,DCLG,09/04/2015,IT - Service Contracts,Finance & Corporate Services,FUJITSU SERVICES LTD,,Large,,423375062,5106212032,IT Managed / Outsourced Services,Local Gov. Emergency Fix RFC028,WA3 9BD,"5,757.88",
Communities & Local Government,DCLG,09/04/2015,IT - Service Contracts,Finance & Corporate Services,LOCKHEED MARTIN BUSINESS TECH SOLUT,,Large,,399909910,5106212031,IT Managed / Outsourced Services,Monthly service cost 2013/14/15,PA4 9LH,"42,400.00",
Communities & Local Government,DCLG,09/04/2015,IT - Service Contracts,Localism,SCISYS UK LTD,,Medium,,,5106212057,IT Managed / Outsourced Services,AWS Hosting Platform SOW (10122438),SN14 0GB,693.72,
Communities & Local Government,DCLG,09/04/2015,Legal Fees,Neighbourhoods,IVY LEGAL LIMITED,,Micro,,219262084,5106212059,Legal,Legal Advice,EC1Y 4TW,396.00,
Communities & Local Government,DCLG,09/04/2015,Printing,"Strategy, Communications and Private Office",STATIONERY OFFICE LTD,,Large,,779375633,5106212048,Printing Services,Statutory Instruments Print: Non-Vatable,NR3 1PD,165.00,
Communities & Local Government,DCLG,09/04/2015,Printing,"Strategy, Communications and Private Office",STATIONERY OFFICE LTD,,Large,,779375633,5106212048,Printing Services,Statutory Instruments Print: Vatable,NR3 1PD,130.00,
Communities & Local Government,DCLG,09/04/2015,Printing,"Strategy, Communications and Private Office",STATIONERY OFFICE LTD,,Large,,779375633,5106212052,Printing Services,Statutory Instruments Print: Non-Vatable,NR3 1PD,165.00,
Communities & Local Government,DCLG,09/04/2015,Printing,"Strategy, Communications and Private Office",STATIONERY OFFICE LTD,,Large,,779375633,5106212052,Printing Services,Statutory Instruments Print: Vatable,NR3 1PD,130.00,
Communities & Local Government,DCLG,09/04/2015,Professional services,Finance & Corporate Services,GVA GRIMLEY LTD,,Large,,210158990,5106211904,Business Support,SPP - Management fee of S/C - Com 116,B1 2JB,"1,800.00",
Communities & Local Government,DCLG,09/04/2015,Professional services,Finance & Corporate Services,GVA GRIMLEY LTD,,Large,,210158990,5106211905,Business Support,Com 164 - Treasury Function,B1 2JB,"3,514.50",
Communities & Local Government,DCLG,09/04/2015,Professional services,Finance & Corporate Services,GVA GRIMLEY LTD,,Large,,210158990,5106211906,Business Support,com-071 rental valuation of  Hemel stge2,B1 2JB,"6,000.00",
Communities & Local Government,DCLG,09/04/2015,Professional services,Finance & Corporate Services,GVA GRIMLEY LTD,,Large,,210158990,5106211909,Business Support,Com 162 Sen Surveyor Est Rationalisation,B1 2JB,"5,940.00",
Communities & Local Government,DCLG,09/04/2015,Professional services,Finance & Corporate Services,GVA GRIMLEY LTD,,Large,,210158990,5106211936,Business Support,Com 161 Sen Surveyor Est Rationalisation,B1 2JB,"3,780.00",
Communities & Local Government,DCLG,09/04/2015,Professional services,Finance & Corporate Services,GVA GRIMLEY LTD,,Large,,210158990,5106211950,Business Support,Com 170 Asset Valtn Hostels End Yr ACs,B1 2JB,"28,800.00",
Communities & Local Government,DCLG,09/04/2015,Professional services,Finance & Corporate Services,GVA GRIMLEY LTD,,Large,,210158990,5106211952,Business Support,Com 154 Valuation-QE2 Conference Centre,B1 2JB,"7,800.00",
Communities & Local Government,DCLG,09/04/2015,Professional services,Neighbourhoods,VALUATION OFFICE AGENCY,,Public Bodies,,215253886,5106211976,Financial,Valuation Fees,W1B 5BU,792.00,
Communities & Local Government,DCLG,09/04/2015,Professional services,Neighbourhoods,VALUATION OFFICE AGENCY,,Public Bodies,,215253886,5106212038,Financial,Valuation Fees,W1B 5BU,"1,260.00",
Communities & Local Government,DCLG,09/04/2015,Professional services,Neighbourhoods,VALUATION OFFICE AGENCY,,Public Bodies,,215253886,5106212039,Financial,Valuation Fees,W1B 5BU,"4,860.00",
Communities & Local Government,DCLG,09/04/2015,Professional services,Neighbourhoods,VALUATION OFFICE AGENCY,,Public Bodies,,215253886,5106212042,Financial,Valuation Fees,W1B 5BU,"1,920.00",
Communities & Local Government,DCLG,09/04/2015,Professional services,Neighbourhoods,VALUATION OFFICE AGENCY,,Public Bodies,,215253886,5106212051,Financial,Valuation Fees,W1B 5BU,"1,910.00",
Communities & Local Government,DCLG,09/04/2015,Research,Neighbourhoods,NATURAL ENVIRONMENT RESEARCH COUNCI,,Large,,,5106212058,Research,Interim Report,SN2 1EU,"3,223.20",
Communities & Local Government,DCLG,09/04/2015,Research,Neighbourhoods,NATURAL ENVIRONMENT RESEARCH COUNCI,,Large,,,5106212058,Research,Production of a Digital Database,SN2 1EU,"20,776.80",
Communities & Local Government,DCLG,09/04/2015,Security,Finance & Corporate Services,AMEY COMMUNITY LTD,,Large,,,5106212045,Security,2014-15 Lateral Reception Services,OX4 4DQ,846.70,
Communities & Local Government,DCLG,09/04/2015,Steady State Service Provision,Neighbourhoods,TRIBAL EDUCATION-MANAGEMENT FEES,,Large,,221445146,5106212054,Business Process Outsourcing Services,Payment to Tribal re Empty Homes Community Fund for DCLG ,BS2 8RR,"7,094.00",
Communities & Local Government,DCLG,09/04/2015,Waste Disposal and pest control,Finance & Corporate Services,AMEY COMMUNITY LTD,,Large,,,5106212045,Environmental Services,2014-15 Lateral Pest Control Services,OX4 4DQ,42.76,
Communities & Local Government,DCLG,09/04/2015,Waste Disposal and pest control,Finance & Corporate Services,AMEY COMMUNITY LTD,,Large,,,5106212045,Waste Management Services,2014-15 Lateral Waste Management,OX4 4DQ,"1,059.21",
Communities & Local Government,DCLG,09/04/2015,Water,Finance & Corporate Services,SEVERN TRENT WATER LTD,,Large,,234404465,5106211968,Operation of Water Supplies and Distribution,West Midlands RCC  Water 2013-14,CV3 9FJ,-522.91,
Communities & Local Government,DCLG,09/04/2015,Work In Progress Pre-Cert 40373 Spend,Neighbourhoods,CUMBRIA CHAMBER OF COMMERCE,,Small,,,7600012333,,Revenue Grant To Be Paid,CA3 8DA,"62,838.85",Yes
Communities & Local Government,DCLG,09/04/2015,Work In Progress Pre-Cert 40373 Spend,Neighbourhoods,GTR MANCHESTER BUSINESS SUPPORT LTD,,Medium,,,7600012326,,Revenue Grant To Be Paid,M1 5JW,"94,470.45",Yes
Communities & Local Government,DCLG,09/04/2015,Work In Progress Pre-Cert 40373 Spend,Neighbourhoods,LANCASTER UNIVERISTY,,,,,7600012327,,Revenue Grant To Be Paid,LA1 4YW,"69,519.61",Yes
Communities & Local Government,DCLG,09/04/2015,Work In Progress Pre-Cert 40373 Spend,Neighbourhoods,LANCASTER UNIVERISTY,,,,,7600012328,,Revenue Grant To Be Paid,LA1 4YW,"159,254.95",Yes
Communities & Local Government,DCLG,09/04/2015,Work In Progress Pre-Cert 40373 Spend,Neighbourhoods,LANCASTER UNIVERISTY,,,,,7600012334,,Revenue Grant To Be Paid,LA1 4YW,"120,889.64",Yes
Communities & Local Government,DCLG,09/04/2015,Work In Progress Pre-Cert 40373 Spend,Neighbourhoods,LIVERPOOL UNIVERSITY,,,,,7600012323,,Revenue Grant To Be Paid,L69 7ZX,"12,416.24",Yes
Communities & Local Government,DCLG,09/04/2015,Work In Progress Pre-Cert 40373 Spend,Neighbourhoods,LIVERPOOL UNIVERSITY,,,,,7600012324,,Revenue Grant To Be Paid,L69 7ZX,"24,832.49",Yes
Communities & Local Government,DCLG,09/04/2015,Work In Progress Pre-Cert 40373 Spend,Neighbourhoods,TATE LIVERPOOL,,,,,7600012325,,Revenue Grant To Be Paid,L3 4BB,"117,464.82",Yes
Communities & Local Government,DCLG,09/04/2015,Work In Progress Pre-Cert 40467 Spend,Neighbourhoods,LANGTREE LAND AND PORPERTY PLC,,Medium,,,7600012330,,Capital Grant To Be Paid,WA12 9UY,"9,000.00",Yes
Communities & Local Government,DCLG,09/04/2015,Work In Progress Pre-Cert 40467 Spend,Neighbourhoods,LANGTREE LAND AND PORPERTY PLC,,Medium,,,7600012331,,Capital Grant To Be Paid,WA12 9UY,"255,116.00",Yes
Communities & Local Government,DCLG,09/04/2015,Work In Progress Pre-Cert 40467 Spend,Neighbourhoods,LANGTREE LAND AND PORPERTY PLC,,Medium,,,7600012332,,Capital Grant To Be Paid,WA12 9UY,"303,772.56",Yes
Communities & Local Government,DCLG,09/04/2015,Work In Progress Pre-Cert 40467 Spend,Neighbourhoods,LIVERPOOL UNIVERSITY,,,,,7600012323,,Capital Grant To Be Paid,L69 7ZX,"2,511.57",Yes
Communities & Local Government,DCLG,09/04/2015,Work In Progress Pre-Cert 40467 Spend,Neighbourhoods,NW VCLF HF LLP,,,,,2100254007,,Capital Grant To Be Paid,S3 8NH,297.77,Yes
Communities & Local Government,DCLG,09/04/2015,Work In Progress Pre-Cert 40467 Spend,Neighbourhoods,NW VCLF HF LLP,,,,,2300002261,,Recovery of irregular payment,S3 8NH,-297.77,Yes
Communities & Local Government,DCLG,09/04/2015,Work In Progress Pre-Cert 40467 Spend,Neighbourhoods,TRANSPORT FOR GREATER MANCHESTER,,,,,7600012335,,Capital Grant To Be Paid,M1 3BG,"743,768.00",Yes
Communities & Local Government,DCLG,10/04/2015,Advertising,"Strategy, Communications and Private Office",SHUTTERSTOCK IMAGES LLC,,Micro,,612408976,5106212035,Advertising,Picture Licence 15/16,10004,987.44,
Communities & Local Government,DCLG,10/04/2015,Agency Staff,Finance & Corporate Services,BROOK STREET UK LTD,,Large,,364940028,5106212069,Contingent Labour,Interim Admin support,PE1 1SY,808.24,
Communities & Local Government,DCLG,10/04/2015,Current (non AEF) Grants to Local Authorities,Localism,ASHFIELD DC,,,,,2100253186,,Payment of Transformation Challenge Award,NG17 8DA,"213,200.00",Yes
Communities & Local Government,DCLG,10/04/2015,Current (non AEF) Grants to Local Authorities,Localism,BLABY DC,,,,236643755,2100253187,,Payment of Transformation Challenge Award,LE19 2EP,"1,000,000.00",Yes
Communities & Local Government,DCLG,10/04/2015,Current (non AEF) Grants to Local Authorities,Localism,BLACKBURN WITH DARWEN BC,,Large,,212925606,2100253225,,Payment of Transformation Challenge Award,BB1 7DY,"950,224.00",Yes
Communities & Local Government,DCLG,10/04/2015,Current (non AEF) Grants to Local Authorities,Localism,BLACKPOOL BC,,Public Bodies,,228593497,2100253188,,Payment of Transformation Challenge Award,FY1 1NA,"1,540,000.00",Yes
Communities & Local Government,DCLG,10/04/2015,Current (non AEF) Grants to Local Authorities,Localism,BOLTON MBC,,Public Bodies,,,2100253189,,Payment of Transformation Challenge Award,BL1 1RX,"12,400,000.00",Yes
Communities & Local Government,DCLG,10/04/2015,Current (non AEF) Grants to Local Authorities,Localism,CALDERDALE METROPOLITAN BC,,,,,2100253190,,Payment of Transformation Challenge Award,HX1 1TP,"335,000.00",Yes
Communities & Local Government,DCLG,10/04/2015,Current (non AEF) Grants to Local Authorities,Localism,CHARNWOOD BOROUGH COUNCIL,,Public Bodies,,236417697,2100253191,,Payment of Transformation Challenge Award,LE11 2TN,"163,925.00",Yes
Communities & Local Government,DCLG,10/04/2015,Current (non AEF) Grants to Local Authorities,Localism,CHELTENHAM BC,,Public Bodies,,777870767,2100253192,,Payment of Transformation Challenge Award,GL50 1PP,"2,900,000.00",Yes
Communities & Local Government,DCLG,10/04/2015,Current (non AEF) Grants to Local Authorities,Localism,CHRISTCHURCH BOROUGH COUNCIL,,Large,,227415213,2100253193,,Payment of Transformation Challenge Award,BH23 1AZ,"867,500.00",Yes
Communities & Local Government,DCLG,10/04/2015,Current (non AEF) Grants to Local Authorities,Localism,COLCHESTER BC,,,,232682773,2100253194,,Payment of Transformation Challenge Award,CO1 1FR,"205,000.00",Yes
Communities & Local Government,DCLG,10/04/2015,Current (non AEF) Grants to Local Authorities,Localism,CORNWALL COUNTY COUNCIL,,Large,,211334404,2100253195,,Payment of Transformation Challenge Award,TR1 3AY,"936,217.00",Yes
Communities & Local Government,DCLG,10/04/2015,Current (non AEF) Grants to Local Authorities,Localism,DERBY CITY COUNCIL,,Large,,229641378,2100253196,,Payment of Transformation Challenge Award,DE1 2YL,"745,000.00",Yes
Communities & Local Government,DCLG,10/04/2015,Current (non AEF) Grants to Local Authorities,Localism,DEVON COUNTY COUNCIL,,Public Bodies,,,2100253197,,Payment of Transformation Challenge Award,EX2 4QJ,"1,566,340.00",Yes
Communities & Local Government,DCLG,10/04/2015,Current (non AEF) Grants to Local Authorities,Localism,DONCASTER MBC,,Public Bodies,,368170627,2100253198,,Payment of Transformation Challenge Award,DN1 1ER,"300,000.00",Yes
Communities & Local Government,DCLG,10/04/2015,Current (non AEF) Grants to Local Authorities,Localism,DORSET COUNTY COUNCIL,,Public Bodies,,225431279,2100253199,,Payment of Transformation Challenge Award,DT1 1XJ,"755,000.00",Yes
Communities & Local Government,DCLG,10/04/2015,Current (non AEF) Grants to Local Authorities,Localism,DURHAM COUNTY COUNCIL,,Large,,228453601,2100253200,,Payment of Transformation Challenge Award,DH1 5UL,"1,400,000.00",Yes
Communities & Local Government,DCLG,10/04/2015,Current (non AEF) Grants to Local Authorities,Localism,ESSEX COUNTY COUNCIL,,Public Bodies,,233572986,2100253201,,Payment of Transformation Challenge Award,CM1 1JZ,"3,300,044.00",Yes
Communities & Local Government,DCLG,10/04/2015,Current (non AEF) Grants to Local Authorities,Localism,HAMPSHIRE COUNTY COUNCIL,,Public Bodies,,211325832,2100253202,,Payment of Transformation Challenge Award,SO23 8UB,"3,100,000.00",Yes
Communities & Local Government,DCLG,10/04/2015,Current (non AEF) Grants to Local Authorities,Localism,HARTLEPOOL BOROUGH COUNCIL,,Large,,424291797,2100253203,,Payment of Transformation Challenge Award,TS24 7BT,"750,000.00",Yes
Communities & Local Government,DCLG,10/04/2015,Current (non AEF) Grants to Local Authorities,Localism,HINCKLEY & BOSWORTH BC,,,,211176144,2100253204,,Payment of Transformation Challenge Award,LE10 1BZ,"694,000.00",Yes
Communities & Local Government,DCLG,10/04/2015,Current (non AEF) Grants to Local Authorities,Localism,KIRKLEES MBC,,,,,2100253205,,Payment of Transformation Challenge Award,HD1 2YU,"400,000.00",Yes
Communities & Local Government,DCLG,10/04/2015,Current (non AEF) Grants to Local Authorities,Localism,LANCASHIRE COUNTY COUNCIL,,Large,,233047435,2100253206,,Payment of Transformation Challenge Award,PR1 0LD,"1,230,000.00",Yes
Communities & Local Government,DCLG,10/04/2015,Current (non AEF) Grants to Local Authorities,Localism,LANCASTER CITY  COUNCIL,,,,228669990,2100253207,,Payment of Transformation Challenge Award,LA1 1PJ,"1,200,000.00",Yes
Communities & Local Government,DCLG,10/04/2015,Current (non AEF) Grants to Local Authorities,Localism,LB HOUNSLOW,,,,210388999,2100253222,,Payment of Transformation Challenge Award,TW3 4DN,"250,000.00",Yes
Communities & Local Government,DCLG,10/04/2015,Current (non AEF) Grants to Local Authorities,Localism,LB SUTTON,,,,,2100253229,,Payment of Transformation Challenge Award,SM1 1EA,"1,330,500.00",Yes
Communities & Local Government,DCLG,10/04/2015,Current (non AEF) Grants to Local Authorities,Localism,LB WALTHAM FOREST,,,,213754109,2100253231,,Payment of Transformation Challenge Award,E17 4JA,"187,130.00",Yes
Communities & Local Government,DCLG,10/04/2015,Current (non AEF) Grants to Local Authorities,Localism,LIVERPOOL CITY COUNCIL,,Public Bodies,,228646113,2100253209,,Payment of Transformation Challenge Award,L2 2DH,"512,987.00",Yes
Communities & Local Government,DCLG,10/04/2015,Current (non AEF) Grants to Local Authorities,Localism,LONDON BOROUGH HARINGEY,,,,217471767,2100253219,,Payment of Transformation Challenge Award,N22 4TR,"935,000.00",Yes
Communities & Local Government,DCLG,10/04/2015,Current (non AEF) Grants to Local Authorities,Localism,LONDON BOROUGH LEWISHAM,,Public Bodies,,214587565,2100253224,,Payment of Transformation Challenge Award,SE6 4AS,"1,115,900.00",Yes
Communities & Local Government,DCLG,10/04/2015,Current (non AEF) Grants to Local Authorities,Localism,LONDON BOROUGH OF BARNET,,Large,,211049507,2100253214,,Payment of Transformation Challenge Award,NW4 4BG,"505,595.00",Yes
Communities & Local Government,DCLG,10/04/2015,Current (non AEF) Grants to Local Authorities,Localism,LONDON BOROUGH OF BRENT,,,,225383090,2100253226,,Payment of Transformation Challenge Award,HA9 9HD,"500,000.00",Yes
Communities & Local Government,DCLG,10/04/2015,Current (non AEF) Grants to Local Authorities,Localism,LONDON BOROUGH OF BROMLEY,,,,211331954,2100253215,,Payment of Transformation Challenge Award,BR1 3UH,"344,000.00",Yes
Communities & Local Government,DCLG,10/04/2015,Current (non AEF) Grants to Local Authorities,Localism,LONDON BOROUGH OF CROYDON,,,,,2100253217,,Payment of Transformation Challenge Award,CR9 1BQ,"2,178,717.00",Yes
Communities & Local Government,DCLG,10/04/2015,Current (non AEF) Grants to Local Authorities,Localism,LONDON BOROUGH REDBRIDGE,,Large,,,2100253227,,Payment of Transformation Challenge Award,IG1 1DD,"250,000.00",Yes
Communities & Local Government,DCLG,10/04/2015,Current (non AEF) Grants to Local Authorities,Localism,MELTON BOROUGH COUNCIL,,,,236417127,2100253234,,Payment of Transformation Challenge Award,LE13 OUL,"660,000.00",Yes
Communities & Local Government,DCLG,10/04/2015,Current (non AEF) Grants to Local Authorities,Localism,NEWCASTLE CITY COUNCIL,,Public Bodies,,210061649,2100253238,,Payment of Transformation Challenge Award,NE1 8PB,"2,756,616.00",Yes
Communities & Local Government,DCLG,10/04/2015,Current (non AEF) Grants to Local Authorities,Localism,NORTH LINCOLNSHIRE DC,,Public Bodies,,424005502,2100253240,,Payment of Transformation Challenge Award,DN16 1AB,"1,900,000.00",Yes
Communities & Local Government,DCLG,10/04/2015,Current (non AEF) Grants to Local Authorities,Localism,NORTH TYNESIDE COUNCIL,,,,,2100253242,,Payment of Transformation Challenge Award,NA27 0BY,"1,300,000.00",Yes
Communities & Local Government,DCLG,10/04/2015,Current (non AEF) Grants to Local Authorities,Localism,NORWICH CITY COUNCIL,,,,235981297,2100253244,,Payment of Transformation Challenge Award,NR2 1WE,"445,575.00",Yes
Communities & Local Government,DCLG,10/04/2015,Current (non AEF) Grants to Local Authorities,Localism,NOTTINGHAM CITY COUNCIL,,Large,,,2100253245,,Payment of Transformation Challenge Award,NG2 3NG,"300,000.00",Yes
Communities & Local Government,DCLG,10/04/2015,Current (non AEF) Grants to Local Authorities,Localism,PLYMOUTH CITY COUNCIL,,,,236416095,2100253247,,Payment of Transformation Challenge Award,PL1 2AA,"1,435,542.00",Yes
Communities & Local Government,DCLG,10/04/2015,Current (non AEF) Grants to Local Authorities,Localism,PORTSMOUTH CITY COUNCIL,,Public Bodies,,211183082,2100253249,,Payment of Transformation Challenge Award,PO1 2BG,"305,000.00",Yes
Communities & Local Government,DCLG,10/04/2015,Current (non AEF) Grants to Local Authorities,Localism,RB KINGSTON UPON THAMES,,,,228470233,2100253254,,Payment of Transformation Challenge Award,KT1 1EU,"3,000,000.00",Yes
Communities & Local Government,DCLG,10/04/2015,Current (non AEF) Grants to Local Authorities,Localism,REDCAR & CLEVELAND BC,,,,215175196,2100253251,,Payment of Transformation Challenge Award,TS6 9AR,"1,000,000.00",Yes
Communities & Local Government,DCLG,10/04/2015,Current (non AEF) Grants to Local Authorities,Localism,ROTHERHAM MBC,,,,,2100253252,,Payment of Transformation Challenge Award,S60 1AE,"546,319.00",Yes
Communities & Local Government,DCLG,10/04/2015,Current (non AEF) Grants to Local Authorities,Localism,SEFTON MBC,,,,232936125,2100253256,,Payment of Transformation Challenge Award,L20 3NQ,"765,500.00",Yes
Communities & Local Government,DCLG,10/04/2015,Current (non AEF) Grants to Local Authorities,Localism,SELBY DC,,,,239816721,2100253258,,Payment of Transformation Challenge Award,YO8 0SB,"555,936.00",Yes
Communities & Local Government,DCLG,10/04/2015,Current (non AEF) Grants to Local Authorities,Localism,SHEFFIELD CITY COUNCIL,,Large,,228153011,2100253321,,Transformation Challenge Award,S1 1UL,"1,006,033.00",Yes
Communities & Local Government,DCLG,10/04/2015,Current (non AEF) Grants to Local Authorities,Localism,SHROPSHIRE UNITARY COUNCIL,,,,,2100253260,,Payment of Transformation Challenge Award,SY1 9DP,"520,000.00",Yes
Communities & Local Government,DCLG,10/04/2015,Current (non AEF) Grants to Local Authorities,Localism,SOMERSET COUNTY COUNCIL,,Public Bodies,,211229406,2100253259,,Payment of Transformation Challenge Award,TA1 9GU,"1,500,000.00",Yes
Communities & Local Government,DCLG,10/04/2015,Current (non AEF) Grants to Local Authorities,Localism,SOUTH BUCKS DC,,,,211454101,2100253257,,Payment of Transformation Challenge Award,SL1 2HN,"221,750.00",Yes
Communities & Local Government,DCLG,10/04/2015,Current (non AEF) Grants to Local Authorities,Localism,SOUTH GLOUCESTERSHIRE COUNCIL,,Large,,,2100253255,,Payment of Transformation Challenge Award,BS15 9DW,"900,000.00",Yes
Communities & Local Government,DCLG,10/04/2015,Current (non AEF) Grants to Local Authorities,Localism,SOUTH HAMS DC,,,,236445342,2100253253,,Payment of Transformation Challenge Award,TQ9 5NE,"700,000.00",Yes
Communities & Local Government,DCLG,10/04/2015,Current (non AEF) Grants to Local Authorities,Localism,SOUTH NORTHAMPTONSHIRE DC,,Large,,,2100253250,,Payment of Transformation Challenge Award,NN12 6AE,"900,000.00",Yes
Communities & Local Government,DCLG,10/04/2015,Current (non AEF) Grants to Local Authorities,Localism,SOUTH TYNESIDE MBC,,Large,,228209391,2100253248,,Payment of Transformation Challenge Award,NE33 2RL,"1,100,000.00",Yes
Communities & Local Government,DCLG,10/04/2015,Current (non AEF) Grants to Local Authorities,Localism,STOKE ON TRENT CITY COUNCIL,,,,232789425,2100253246,,Payment of Transformation Challenge Award,ST4 1RF,"4,923,000.00",Yes
Communities & Local Government,DCLG,10/04/2015,Current (non AEF) Grants to Local Authorities,Localism,SUFFOLK COUNTY COUNCIL,,Large,,236445243,2100253243,,Payment of Transformation Challenge Award,IP1 2BX,"3,323,125.00",Yes
Communities & Local Government,DCLG,10/04/2015,Current (non AEF) Grants to Local Authorities,Localism,SUNDERLAND CITY COUNCIL,,,,215599312,2100253241,,Payment of Transformation Challenge Award,SR2 7DN,"500,000.00",Yes
Communities & Local Government,DCLG,10/04/2015,Current (non AEF) Grants to Local Authorities,Localism,SURREY COUNTY COUNCIL,,Public Bodies,,211036447,2100253237,,Payment of Transformation Challenge Award,KT1 1AB,"1,525,000.00",Yes
Communities & Local Government,DCLG,10/04/2015,Current (non AEF) Grants to Local Authorities,Localism,SWINDON BC,,,,,2100253236,,Payment of Transformation Challenge Award,SN1 1TZ,"866,000.00",Yes
Communities & Local Government,DCLG,10/04/2015,Current (non AEF) Grants to Local Authorities,Localism,THANET DC,,Public Bodies,,,2100253235,,Payment of Transformation Challenge Award,CT8 1XZ,"292,175.00",Yes
Communities & Local Government,DCLG,10/04/2015,Current (non AEF) Grants to Local Authorities,Localism,THURROCK DC,,,,,2100253233,,Payment of Transformation Challenge Award,RM17 6LT,"550,000.00",Yes
Communities & Local Government,DCLG,10/04/2015,Current (non AEF) Grants to Local Authorities,Localism,TUNBRIDGE WELLS BC,,,,775221013,2100253230,,Payment of Transformation Challenge Award,TN1 1RS,"569,200.00",Yes
Communities & Local Government,DCLG,10/04/2015,Current (non AEF) Grants to Local Authorities,Localism,WARWICKSHIRE CC,,,,210396290,2100253223,,Payment of Transformation Challenge Award,CV34 4RH,"100,000.00",Yes
Communities & Local Government,DCLG,10/04/2015,Current (non AEF) Grants to Local Authorities,Localism,WEST DORSET DC,,,,424295350,2100253322,,Transformation Challenge Award,DT1 1UZ,"1,565,450.00",Yes
Communities & Local Government,DCLG,10/04/2015,Current (non AEF) Grants to Local Authorities,Localism,WIRRAL MBC,,Public Bodies,,211222602,2100253218,,Payment of Transformation Challenge Award,CH41 6BU,"1,000,000.00",Yes
Communities & Local Government,DCLG,10/04/2015,Current (non AEF) Grants to Local Authorities,Localism,WOLVERHAMPTON MBC,,,,,2100253216,,Payment of Transformation Challenge Award,WV1 1RL,"789,000.00",Yes
Communities & Local Government,DCLG,10/04/2015,Current (non AEF) Grants to Local Authorities,Localism,WORCESTERSHIRE COUNTY COUNCIL,,Public Bodies,,230359643,2100253323,,Transformation Challenge Award,WR5 2NP,"600,000.00",Yes
Communities & Local Government,DCLG,10/04/2015,Current (non AEF) Grants to Local Authorities,Localism,WORTHING BC,,Public Bodies,,236429734,2100253213,,Payment of Transformation Challenge Award,BN11 1HB,"100,000.00",Yes
Communities & Local Government,DCLG,10/04/2015,Current (non AEF) Grants to Local Authorities,Neighbourhoods,BATH & NE SOMERSET DC (HSG),,,,214502499,5000286512,,Local Growth Fund,BA1 5AW,"16,600,000.00",Yes
Communities & Local Government,DCLG,10/04/2015,Current (non AEF) Grants to Local Authorities,Neighbourhoods,BIRMINGHAM CITY CNCL,,,,213780559,5000286517,,Local Growth Fund,B2 2AJ,"47,313,500.00",Yes
Communities & Local Government,DCLG,10/04/2015,Current (non AEF) Grants to Local Authorities,Neighbourhoods,BUCKINGHAMSHIRE CC,,,,293750923,5000286518,,Local Growth Fund,HP20 1UD,"11,020,000.00",Yes
Communities & Local Government,DCLG,10/04/2015,Current (non AEF) Grants to Local Authorities,Neighbourhoods,CAMBRIDGESHIRE COUNTY CNCL,,,,219047347,5000286519,,Local Growth Fund,CB3 0AP,"21,100,000.00",Yes
Communities & Local Government,DCLG,10/04/2015,Current (non AEF) Grants to Local Authorities,Neighbourhoods,CHESHIRE EAST COUNCIL,,Large,,,5000286546,,Local Growth Fund,CW11 1HZ,"14,520,000.00",Yes
Communities & Local Government,DCLG,10/04/2015,Current (non AEF) Grants to Local Authorities,Neighbourhoods,CORNWALL UNITARY AUTHORITY,,,,211334404,5000286548,,Local Growth Fund,TR1 3AY,"10,990,000.00",Yes
Communities & Local Government,DCLG,10/04/2015,Current (non AEF) Grants to Local Authorities,Neighbourhoods,COVENTRY CITY CNCL,,,,210384802,5000286520,,Local Growth Fund,CV1 2QL,"17,180,000.00",Yes
Communities & Local Government,DCLG,10/04/2015,Current (non AEF) Grants to Local Authorities,Neighbourhoods,CUMBRIA COUNTY CNCL,,,,211316542,5000286521,,Local Growth Fund,CA3 8NA,"2,267,500.00",Yes
Communities & Local Government,DCLG,10/04/2015,Current (non AEF) Grants to Local Authorities,Neighbourhoods,DERBYSHIRE COUNTYCOUNCIL,,,,232152967,5000286522,,Local Growth Fund,DE4 3AG,"28,700,000.00",Yes
Communities & Local Government,DCLG,10/04/2015,Current (non AEF) Grants to Local Authorities,Neighbourhoods,DORSET COUNTY CNCL,,,,225431279,5000286523,,Local Growth Fund,DT1 1XJ,"24,100,000.00",Yes
Communities & Local Government,DCLG,10/04/2015,Current (non AEF) Grants to Local Authorities,Neighbourhoods,ESSEX COUNTY CNCL,,,,233572986,5000286524,,Local Growth Fund,CM1 1JZ,"17,362,500.00",Yes
Communities & Local Government,DCLG,10/04/2015,Current (non AEF) Grants to Local Authorities,Neighbourhoods,GLOUCESTERSHIRE COUNTY CNCL,,,,211272067,5000286525,,Local Growth Fund,GL1 2TG,"13,170,000.00",Yes
Communities & Local Government,DCLG,10/04/2015,Current (non AEF) Grants to Local Authorities,Neighbourhoods,GREATER LONDON AUTHORITY,,,,,5000286550,,Local Growth Fund,SE10 1AJ,"57,000,000.00",Yes
Communities & Local Government,DCLG,10/04/2015,Current (non AEF) Grants to Local Authorities,Neighbourhoods,GTR MANCHESTER PTA,,,,,5000286543,,Local Growth Fund,M1 3BG,"86,697,303.00",Yes
Communities & Local Government,DCLG,10/04/2015,Current (non AEF) Grants to Local Authorities,Neighbourhoods,HAMPSHIRE COUNTY COUNCIL,,,,211325832,5000286526,,Local Growth Fund,SO23 8UB,"35,300,000.00",Yes
Communities & Local Government,DCLG,10/04/2015,Current (non AEF) Grants to Local Authorities,Neighbourhoods,HERTFORDSHIRE COUNTY CNCL,,,,210659897,5000286527,,Local Growth Fund,SG13 8DQ,"12,840,432.00",Yes
Communities & Local Government,DCLG,10/04/2015,Current (non AEF) Grants to Local Authorities,Neighbourhoods,HULL CITY COUNCIL,,,,217460984,5000286528,,Local Growth Fund,HU1 2AA,"17,890,377.00",Yes
Communities & Local Government,DCLG,10/04/2015,Current (non AEF) Grants to Local Authorities,Neighbourhoods,LANCASHIRE COUNTY CNCL,,,,233136584,5000286529,,Local Growth Fund,PR1 8RD,"39,350,000.00",Yes
Communities & Local Government,DCLG,10/04/2015,Current (non AEF) Grants to Local Authorities,Neighbourhoods,LEICESTER CITY CNCL,,,,228219960,5000286513,,Local Growth Fund,LE1 1FZ,"23,730,000.00",Yes
Communities & Local Government,DCLG,10/04/2015,Current (non AEF) Grants to Local Authorities,Neighbourhoods,LINCOLNSHIRE COUNTY COUNCIL,,,,,5000286530,,Local Growth Fund,LN1 1YT,"26,400,000.00",Yes
Communities & Local Government,DCLG,10/04/2015,Current (non AEF) Grants to Local Authorities,Neighbourhoods,LUTON BC,,,,365112155,5000286531,,Local Growth Fund,LU1 2BQ,"23,400,000.00",Yes
Communities & Local Government,DCLG,10/04/2015,Current (non AEF) Grants to Local Authorities,Neighbourhoods,MERSEYTRAVEL,,,,228531737,5000286542,,Local Growth Fund,L3 2AN,"30,500,000.00",Yes
Communities & Local Government,DCLG,10/04/2015,Current (non AEF) Grants to Local Authorities,Neighbourhoods,NORTH YORKSHIRE CC (DL7 8AL),,,,,5000286532,,Local Growth Fund,DL7 8AL,"15,300,000.00",Yes
Communities & Local Government,DCLG,10/04/2015,Current (non AEF) Grants to Local Authorities,Neighbourhoods,NORTHAMPTONSHIRE COUNTY COUNCIL,,,,,5000286533,,Local Growth Fund,CB3 0AP,"18,800,000.00",Yes
Communities & Local Government,DCLG,10/04/2015,Current (non AEF) Grants to Local Authorities,Neighbourhoods,OXFORDSHIRE CC,,,,228216438,5000286534,,Local Growth Fund,OX1 1TH,"15,730,000.00",Yes
Communities & Local Government,DCLG,10/04/2015,Current (non AEF) Grants to Local Authorities,Neighbourhoods,PORTSMOUTH CITY COUNCIL,,Large,,211183082,5000286535,,Local Growth Fund,PO1 2AR,"40,391,667.00",Yes
Communities & Local Government,DCLG,10/04/2015,Current (non AEF) Grants to Local Authorities,Neighbourhoods,SHEFFIELD CITY CNCL,,,,,5000286536,,Local Growth Fund,S1 1UJ,"39,847,944.00",Yes
Communities & Local Government,DCLG,10/04/2015,Current (non AEF) Grants to Local Authorities,Neighbourhoods,SHROPSHIRE UNITARY AUTHORITY,,,,217036490,5000286547,,Local Growth Fund,SY2 6ND,"3,200,000.00",Yes
Communities & Local Government,DCLG,10/04/2015,Current (non AEF) Grants to Local Authorities,Neighbourhoods,SOMERSET COUNTY CNCL,,,,211229406,5000286537,,Local Growth Fund,TA1 4DY,"43,410,000.00",Yes
Communities & Local Government,DCLG,10/04/2015,Current (non AEF) Grants to Local Authorities,Neighbourhoods,STAFFORDSHIRE COUNTY CNCL,,Public Bodies,,,5000286538,,Local Growth Fund,ST16 2DH,"14,400,000.00",Yes
Communities & Local Government,DCLG,10/04/2015,Current (non AEF) Grants to Local Authorities,Neighbourhoods,STOCKTON-ON-TEES BC (HSG),,,,,5000286514,,Local Growth Fund,TS23 2YS,"15,200,000.00",Yes
Communities & Local Government,DCLG,10/04/2015,Current (non AEF) Grants to Local Authorities,Neighbourhoods,SUFFOLK CC (SOCIAL CARE SERV) (H,,,,385614821,5000286515,,Local Growth Fund,IP4 1LH,"36,900,000.00",Yes
Communities & Local Government,DCLG,10/04/2015,Current (non AEF) Grants to Local Authorities,Neighbourhoods,TYNE & WEAR INTEGTD TRANS,,,,210061649,5000286549,,Local Growth Fund,NE99 1RD,"53,910,000.00",Yes
Communities & Local Government,DCLG,10/04/2015,Current (non AEF) Grants to Local Authorities,Neighbourhoods,WALSALL MBC,,,,212515585,5000286539,,Local Growth Fund,WS1 1TW,"29,300,000.00",Yes
Communities & Local Government,DCLG,10/04/2015,Current (non AEF) Grants to Local Authorities,Neighbourhoods,WEST SUSSEX CC,,Public Bodies,,232198762,5000286540,,Local Growth Fund,PO19 1RG,"41,530,000.00",Yes
Communities & Local Government,DCLG,10/04/2015,Current (non AEF) Grants to Local Authorities,Neighbourhoods,WEST YORKSHIRE PTA,,,,228016648,5000286544,,Local Growth Fund,LS1 2DE,"68,266,303.00",Yes
Communities & Local Government,DCLG,10/04/2015,Current (non AEF) Grants to Local Authorities,Neighbourhoods,WILTSHIRE COUNCIL,,,,211341656,5000286545,,Local Growth Fund,BA14 4DS,"7,450,000.00",Yes
Communities & Local Government,DCLG,10/04/2015,Current (non AEF) Grants to Local Authorities,Neighbourhoods,WINDSOR & MAIDENHEAD (HSG),,,,227411998,5000286516,,Local Growth Fund,SL6 1RF,"16,558,000.00",Yes
Communities & Local Government,DCLG,10/04/2015,Current (non AEF) Grants to Local Authorities,Neighbourhoods,WORCESTERSHIRE COUNTY COUNCIL,,,,230359643,5000286541,,Local Growth Fund,WR5 2NP,"13,400,000.00",Yes
Communities & Local Government,DCLG,10/04/2015,Current (non AEF) Grants to Local Authorities,"Strategy, Communications and Private Office",LONDON BOROUGH OF CAMDEN,,Public Bodies,,211651836,2100253579,,Digital Transformation of local public services,WC1H 8NG,"330,000.00",Yes
Communities & Local Government,DCLG,10/04/2015,Current Grants to Non Profit Bodies,Localism,WARRINGTON BC,,,,,2100253228,,Payment of Transformation Challenge Award,WA1 1BN,"5,000,000.00",Yes
Communities & Local Government,DCLG,10/04/2015,Current Grants to Non Profit Bodies,Neighbourhoods,ARUN DISTRICT COUNCIL,,,,,2100253466,,Site Delivery Fund Payment 2015-16,BN17 6SL,"14,000.00",Yes
Communities & Local Government,DCLG,10/04/2015,Current Grants to Non Profit Bodies,Neighbourhoods,AYLESBURY VALE DC,,,,,2100253439,,Resolve issues preventing housing schemes starting,HP20 1UB,"24,000.00",Yes
Communities & Local Government,DCLG,10/04/2015,Current Grants to Non Profit Bodies,Neighbourhoods,BARNSLEY MBC,,Public Bodies,,211178595,2100253479,,Site Delivery Fund Payment 2015-16,S70 9GG,"15,000.00",Yes
Communities & Local Government,DCLG,10/04/2015,Current Grants to Non Profit Bodies,Neighbourhoods,BEDFORD BC,,Large,,,2100253443,,Resolve issues preventing housing schemes starting,MK40 1SJ,"23,000.00",Yes
Communities & Local Government,DCLG,10/04/2015,Current Grants to Non Profit Bodies,Neighbourhoods,BIRMINGHAM CITY COUNCIL,,,,213270263,2100253438,,Resolve issues preventing housing schemes starting,B3 3PL,"35,000.00",Yes
Communities & Local Government,DCLG,10/04/2015,Current Grants to Non Profit Bodies,Neighbourhoods,BLABY DC,,,,236643755,2100253487,,Site Delivery Fund Payment 2015-16,LE19 2EP,"19,000.00",Yes
Communities & Local Government,DCLG,10/04/2015,Current Grants to Non Profit Bodies,Neighbourhoods,BOLTON MBC,,Public Bodies,,,2100253440,,Resolve issues preventing housing schemes starting,BL1 1RX,"20,000.00",Yes
Communities & Local Government,DCLG,10/04/2015,Current Grants to Non Profit Bodies,Neighbourhoods,BRADFORD MBC,,,,,2100253446,,Resolve issues preventing housing schemes starting,BD1 1HX,"35,000.00",Yes
Communities & Local Government,DCLG,10/04/2015,Current Grants to Non Profit Bodies,Neighbourhoods,BRECKLAND DC,,,,232611384,2100253444,,Resolve issues preventing housing schemes starting,NR19 1EE,"50,000.00",Yes
Communities & Local Government,DCLG,10/04/2015,Current Grants to Non Profit Bodies,Neighbourhoods,CHERWELL DC,,,,211168208,2100253481,,Site Delivery Fund Payment 2015-16,OX15 4AA,"25,000.00",Yes
Communities & Local Government,DCLG,10/04/2015,Current Grants to Non Profit Bodies,Neighbourhoods,COLCHESTER BC,,,,232682773,2100253467,,Site Delivery Fund Payment 2015-16,CO1 1FR,"22,467.00",Yes
Communities & Local Government,DCLG,10/04/2015,Current Grants to Non Profit Bodies,Neighbourhoods,CORNWALL COUNTY COUNCIL,,Large,,211334404,2100253470,,Site Delivery Fund Payment 2015-16,TR1 3AY,"5,000.00",Yes
Communities & Local Government,DCLG,10/04/2015,Current Grants to Non Profit Bodies,Neighbourhoods,DOVER DC,,,,211389341,2100253476,,Site Delivery Fund Payment 2015-16,CT16 3PF,"15,000.00",Yes
Communities & Local Government,DCLG,10/04/2015,Current Grants to Non Profit Bodies,Neighbourhoods,EAST DEVON DC,,Public Bodies,,,2100253471,,Site Delivery Fund Payment 2015-16,EX10 8HL,"10,000.00",Yes
Communities & Local Government,DCLG,10/04/2015,Current Grants to Non Profit Bodies,Neighbourhoods,EXETER CITY COUNCIL,,Public Bodies,,236473328,2100253468,,Site Delivery Fund Payment 2015-16,EX1 1JW,"20,000.00",Yes
Communities & Local Government,DCLG,10/04/2015,Current Grants to Non Profit Bodies,Neighbourhoods,GATESHEAD MBC,,Public Bodies,,216116041,2100253448,,Resolve issues preventing housing schemes starting,NE8 3HN,"25,000.00",Yes
Communities & Local Government,DCLG,10/04/2015,Current Grants to Non Profit Bodies,Neighbourhoods,GLOUCESTER CITY COUNCIL,,Public Bodies,,230841392,2100253475,,Site Delivery Fund Payment 2015-16,GL1 2EQ,"32,748.00",Yes
Communities & Local Government,DCLG,10/04/2015,Current Grants to Non Profit Bodies,Neighbourhoods,HERTSMERE BC,,,,237549253,2100253477,,Site Delivery Fund Payment 2015-16,WD6 1WA,"15,000.00",Yes
Communities & Local Government,DCLG,10/04/2015,Current Grants to Non Profit Bodies,Neighbourhoods,HINCKLEY &  BOSWORTH BOROUGH COUNCI,,Large,,,2100253484,,Site Delivery Fund Payment 2015-16,LE10 1BZ,"15,000.00",Yes
Communities & Local Government,DCLG,10/04/2015,Current Grants to Non Profit Bodies,Neighbourhoods,HORSHAM DISTRICT COUNCIL,,,,229776588,2100253482,,Site Delivery Fund Payment 2015-16,RH12 1RL,"15,000.00",Yes
Communities & Local Government,DCLG,10/04/2015,Current Grants to Non Profit Bodies,Neighbourhoods,KIRKLEES MBC,,,,,2100253463,,Site Delivery Fund Payment 2015-16,HD1 2YU,"23,500.00",Yes
Communities & Local Government,DCLG,10/04/2015,Current Grants to Non Profit Bodies,Neighbourhoods,LANCASTER CITY  COUNCIL,,,,228669990,2100253465,,Site Delivery Fund Payment 2015-16,LA1 1PJ,"35,000.00",Yes
Communities & Local Government,DCLG,10/04/2015,Current Grants to Non Profit Bodies,Neighbourhoods,LONDON BOROUGH GREENWICH,,,,233026868,2100253485,,Site Delivery Fund Payment 2015-16,SE18 6EU,"21,000.00",Yes
Communities & Local Government,DCLG,10/04/2015,Current Grants to Non Profit Bodies,Neighbourhoods,LONDON BOROUGH HACKNEY,,,,225221597,2100253478,,Site Delivery Fund Payment 2015-16,E8 4RU,"1,453.00",Yes
Communities & Local Government,DCLG,10/04/2015,Current Grants to Non Profit Bodies,Neighbourhoods,LONDON BOROUGH OF BARNET,,Large,,211049507,2100253449,,Resolve issues preventing housing schemes starting,NW4 4BG,"25,000.00",Yes
Communities & Local Government,DCLG,10/04/2015,Current Grants to Non Profit Bodies,Neighbourhoods,LONDON BOROUGH OF EALING,,,,211049515,2100253450,,Resolve issues preventing housing schemes starting,W5 2HL,"25,000.00",Yes
Communities & Local Government,DCLG,10/04/2015,Current Grants to Non Profit Bodies,Neighbourhoods,LONDON BOROUGH OF LAMBETH,,Large,,228216479,2100253442,,Resolve issues preventing housing schemes starting,S95 1AN,"20,000.00",Yes
Communities & Local Government,DCLG,10/04/2015,Current Grants to Non Profit Bodies,Neighbourhoods,NEWCASTLE CITY COUNCIL,,,,210061649,2100253453,,Resolve issues preventing housing schemes starting,NE1 8QN,"20,000.00",Yes
Communities & Local Government,DCLG,10/04/2015,Current Grants to Non Profit Bodies,Neighbourhoods,NORTH TYNESIDE COUNCIL,,,,,2100253455,,Site Delivery Fund Payment 2015-16,NA27 0BY,"20,000.00",Yes
Communities & Local Government,DCLG,10/04/2015,Current Grants to Non Profit Bodies,Neighbourhoods,NORTHUMBERLAND CC,,Large,,228141644,2100253456,,Site Delivery Fund Payment 2015-16,NE61 2EF,"30,000.00",Yes
Communities & Local Government,DCLG,10/04/2015,Current Grants to Non Profit Bodies,Neighbourhoods,REIGATE & BANSTEAD BC,,,,211313515,2100253472,,Site Delivery Fund Payment 2015-16,RH2 0SH,"36,000.00",Yes
Communities & Local Government,DCLG,10/04/2015,Current Grants to Non Profit Bodies,Neighbourhoods,SALFORD CITY COUNCIL,,Public Bodies,,210765504,2100253457,,Site Delivery Fund Payment 2015-16,M27 5AW,"13,000.00",Yes
Communities & Local Government,DCLG,10/04/2015,Current Grants to Non Profit Bodies,Neighbourhoods,SOUTH CAMBRIDGESHIRE DC,,Public Bodies,,236369484,2100253469,,Site Delivery Fund Payment 2015-16,CB23 6EA,"20,000.00",Yes
Communities & Local Government,DCLG,10/04/2015,Current Grants to Non Profit Bodies,Neighbourhoods,SOUTHWARK COUNCIL,,Public Bodies,,211004957,2100253451,,Resolve issues preventing housing schemes starting,SE15 6AA,"30,000.00",Yes
Communities & Local Government,DCLG,10/04/2015,Current Grants to Non Profit Bodies,Neighbourhoods,ST HELENS MBC,,,,,2100253486,,Site Delivery Fund Payment 2015-16,WA10 1HP,"26,000.00",Yes
Communities & Local Government,DCLG,10/04/2015,Current Grants to Non Profit Bodies,Neighbourhoods,STAFFORD BC,,Large,,227476934,2100253459,,Site Delivery Fund Payment 2015-16,ST16 3AQ,"30,000.00",Yes
Communities & Local Government,DCLG,10/04/2015,Current Grants to Non Profit Bodies,Neighbourhoods,STOCKTON ON TEES BOROUGH COUNCIL,,Large,,211574327,2100253473,,Site Delivery Fund Payment 2015-16,TS18 1LE,"9,000.00",Yes
Communities & Local Government,DCLG,10/04/2015,Current Grants to Non Profit Bodies,Neighbourhoods,SUNDERLAND CITY COUNCIL,,,,215599312,2100253461,,Site Delivery Fund Payment 2015-16,SR2 7DN,"25,000.00",Yes
Communities & Local Government,DCLG,10/04/2015,Current Grants to Non Profit Bodies,Neighbourhoods,TAUNTON DEANE BC,,Large,,236185294,2100253462,,Site Delivery Fund Payment 2015-16,TA1 9GS,"25,000.00",Yes
Communities & Local Government,DCLG,10/04/2015,Current Grants to Non Profit Bodies,Neighbourhoods,THURROCK DC,,,,,2100253483,,Site Delivery Fund Payment 2015-16,RM17 6LT,"20,000.00",Yes
Communities & Local Government,DCLG,10/04/2015,Current Grants to Non Profit Bodies,Neighbourhoods,VALUATION OFFICE AGENCY,,Public Bodies,,215253886,2100253437,,Rent Officer Services April 2015,W1B 5BU,"610,000.00",Yes
Communities & Local Government,DCLG,10/04/2015,Current Grants to Non Profit Bodies,Neighbourhoods,WAKEFIELD MDC,,Large,,347764511,2100253441,,Resolve issues preventing housing schemes starting,WF1 1ZS,"35,000.00",Yes
Communities & Local Government,DCLG,10/04/2015,Current Grants to Non Profit Bodies,Neighbourhoods,WELLINGBOROUGH BC,,,,233056733,2100253480,,Site Delivery Fund Payment 2015-16,NN8 1BP,"30,000.00",Yes
Communities & Local Government,DCLG,10/04/2015,Current Grants to Non Profit Bodies,Neighbourhoods,WINDSOR & MAIDENHEAD,,,,227411998,2100253474,,Site Delivery Fund Payment 2015-16,SL6 1RF,"27,496.00",Yes
Communities & Local Government,DCLG,10/04/2015,Current Grants to Non Profit Bodies,Neighbourhoods,WOLVERHAMPTON CITY COUNCIL,,Public Bodies,,229895453,2100253488,,Site Delivery Fund Payment 2015-16,WV1 1RP,"15,000.00",Yes
Communities & Local Government,DCLG,10/04/2015,Electricity,Finance & Corporate Services,WESTERN POWER DISTRIBUTION,,Large,,227499134,5106212029,Energy,2 Rivergate Meterage Charges 2015-16,PL4 0YU,432.00,
Communities & Local Government,DCLG,10/04/2015,Electricity,Finance & Corporate Services,WESTERN POWER DISTRIBUTION,,Large,,227499134,5106212062,Energy,Meter Operator & Comm charge 2015-16,PL4 0YU,432.00,
Communities & Local Government,DCLG,10/04/2015,IT - Service Contracts,Finance & Corporate Services,DAMOVO UK LTD,,Large,,221481042,5106212083,IT Managed / Outsourced Services,Reccuring DCLG  telephony service charges ,RH12 4QP,"109,213.34",
Communities & Local Government,DCLG,10/04/2015,IT - Service Contracts,Finance & Corporate Services,DAMOVO UK LTD,,Large,,221481042,5106212084,IT Managed / Outsourced Services,Reccuring DCLG  telephony service charges ,RH12 4QP,"5,451.00",
Communities & Local Government,DCLG,10/04/2015,IT - Service Contracts,Localism,INFORMED SOLUTIONS LTD,,Small,,346179542,5106212073,IT Managed / Outsourced Services,Bug Fixes to existing Application,WA14 4PA,"1,225.00",
Communities & Local Government,DCLG,10/04/2015,IT - Service Contracts,Localism,INFORMED SOLUTIONS LTD,,Small,,346179542,5106212074,IT Managed / Outsourced Services,Bug Fixes to existing Application,WA14 4PA,"2,250.00",
Communities & Local Government,DCLG,10/04/2015,IT - Service Contracts,Neighbourhoods,DEXTROUS WEB LTD,,Micro,,211267270,5106211718,IT Managed / Outsourced Services,Hosting support and RAMP,N1 7NG,868.80,
Communities & Local Government,DCLG,10/04/2015,IT - Service Contracts,Neighbourhoods,JEREMY BENN ASSOCIATES LTD,,Medium,,525608741,5106212040,IT Managed / Outsourced Services,Online carbon calculator,BD23 3AE,"2,700.00",
Communities & Local Government,DCLG,10/04/2015,IT - Service Contracts,Neighbourhoods,SOFTCAT LIMITED,,Large,,397333253,5106211823,IT Managed / Outsourced Services,SciVisum Extension 2015/16,SL7 1TB,"12,850.00",
Communities & Local Government,DCLG,10/04/2015,Office Supplies,Neighbourhoods,BANNER BUSINESS SUPPLIES LTD,,Large,,236638362,5106211362,Office Supplies,DELWEEKLY A4 Plastic Pockets Multi Punch,S9 1XU,4.32,
Communities & Local Government,DCLG,10/04/2015,Office Supplies,Neighbourhoods,BANNER BUSINESS SUPPLIES LTD,,Large,,236638362,5106211362,Office Supplies,DELWEEKLY BANNER A4 SPIRAL SIDEBOUND NOT,S9 1XU,28.75,
Communities & Local Government,DCLG,10/04/2015,Office Supplies,Neighbourhoods,BANNER BUSINESS SUPPLIES LTD,,Large,,236638362,5106211362,Office Supplies,DELWEEKLY BANNER ABS FULL STRIP STAPLER,S9 1XU,29.88,
Communities & Local Government,DCLG,10/04/2015,Office Supplies,Neighbourhoods,BANNER BUSINESS SUPPLIES LTD,,Large,,236638362,5106211362,Office Supplies,DELWEEKLY BANNER LARGE GLUE STICK 40G,S9 1XU,11.52,
Communities & Local Government,DCLG,10/04/2015,Office Supplies,Neighbourhoods,BANNER BUSINESS SUPPLIES LTD,,Large,,236638362,5106211362,Office Supplies,DELWEEKLY Banner Brilliant Page Marker 3,S9 1XU,16.81,
Communities & Local Government,DCLG,10/04/2015,Office Supplies,Neighbourhoods,BANNER BUSINESS SUPPLIES LTD,,Large,,236638362,5106211362,Office Supplies,DELWEEKLY Banner Envelope 110x220 Manill,S9 1XU,18.62,
Communities & Local Government,DCLG,10/04/2015,Office Supplies,Neighbourhoods,BANNER BUSINESS SUPPLIES LTD,,Large,,236638362,5106211362,Office Supplies,DELWEEKLY Banner Eraser Tip Pencil HB,S9 1XU,4.08,
Communities & Local Government,DCLG,10/04/2015,Office Supplies,Neighbourhoods,BANNER BUSINESS SUPPLIES LTD,,Large,,236638362,5106211362,Office Supplies,DELWEEKLY Banner Liquid Ink Rollerball B,S9 1XU,32.16,
Communities & Local Government,DCLG,10/04/2015,Office Supplies,Neighbourhoods,BANNER BUSINESS SUPPLIES LTD,,Large,,236638362,5106211362,Office Supplies,DELWEEKLY Banner Medium Glue Stick 20g,S9 1XU,3.84,
Communities & Local Government,DCLG,10/04/2015,Office Supplies,Neighbourhoods,BANNER BUSINESS SUPPLIES LTD,,Large,,236638362,5106211362,Office Supplies,DELWEEKLY Banner Recycled Casebound Book,S9 1XU,51.60,
Communities & Local Government,DCLG,10/04/2015,Office Supplies,Neighbourhoods,BANNER BUSINESS SUPPLIES LTD,,Large,,236638362,5106211362,Office Supplies,DELWEEKLY Banner Recycled Envelope 110 x,S9 1XU,12.29,
Communities & Local Government,DCLG,10/04/2015,Office Supplies,Neighbourhoods,BANNER BUSINESS SUPPLIES LTD,,Large,,236638362,5106211362,Office Supplies,DELWEEKLY Banner Recycled Envelope 229 x,S9 1XU,39.84,
Communities & Local Government,DCLG,10/04/2015,Office Supplies,Neighbourhoods,BANNER BUSINESS SUPPLIES LTD,,Large,,236638362,5106211362,Office Supplies,DELWEEKLY Banner Recycled Envelope 324 x,S9 1XU,37.99,
Communities & Local Government,DCLG,10/04/2015,Office Supplies,Neighbourhoods,BANNER BUSINESS SUPPLIES LTD,,Large,,236638362,5106211362,Office Supplies,DELWEEKLY Banner Rubber Grip Gel Ink Pen,S9 1XU,43.68,
Communities & Local Government,DCLG,10/04/2015,Office Supplies,Neighbourhoods,BANNER BUSINESS SUPPLIES LTD,,Large,,236638362,5106211362,Office Supplies,DELWEEKLY Himark Dry Wipe Bullet Tip Mar,S9 1XU,9.84,
Communities & Local Government,DCLG,10/04/2015,Office Supplies,Neighbourhoods,BANNER BUSINESS SUPPLIES LTD,,Large,,236638362,5106211362,Office Supplies,DELWEEKLY Pavo Recycled Scissors 152mm,S9 1XU,7.68,
Communities & Local Government,DCLG,10/04/2015,Office Supplies,Neighbourhoods,BANNER BUSINESS SUPPLIES LTD,,Large,,236638362,5106211362,Office Supplies,DELWEEKLY Pavo Recycled Scissors 203mm,S9 1XU,10.32,
Communities & Local Government,DCLG,10/04/2015,Printing,"Strategy, Communications and Private Office",STATIONERY OFFICE LTD,,Large,,779375633,5106212072,Printing Services,Statutory Instruments Print: Non-Vatable,NR3 1PD,165.00,
Communities & Local Government,DCLG,10/04/2015,Printing,"Strategy, Communications and Private Office",STATIONERY OFFICE LTD,,Large,,779375633,5106212072,Printing Services,Statutory Instruments Print: Vatable,NR3 1PD,130.00,
Communities & Local Government,DCLG,10/04/2015,Professional services,Localism,VALUATION OFFICE AGENCY,,Public Bodies,,215253886,2100253564,Environmental Services,April 2015 work on NNDR and Council Tax,W1B 5BU,"13,308,337.00",
Communities & Local Government,DCLG,10/04/2015,Research,Finance & Corporate Services,ECORYS UK LTD,,Medium,,,5106212071,Research,Research - Troubled Families,B1 2RA,"20,179.20",
Communities & Local Government,DCLG,10/04/2015,Research,Localism,EXPERIAN LTD,,Large,,293565958,5106212087,Research,Places of Worship database,NG80 1TH,"6,361.00",
Communities & Local Government,DCLG,10/04/2015,Research,Localism,ROYAL TOWN PLANNING INSTITUTE,,,,227231818,5106212090,Consultancy,Neighbourhood Planning tools & templates,EC3R 8DL,"56,773.04",
Communities & Local Government,DCLG,10/04/2015,Software Licences,Neighbourhoods,SCIENTIFIC COMPUTERS LTD,,Large,,216066860,5106211590,Software,SCL NetInsight licence & support 2015/16,RH10 1LQ,"24,169.54",
Communities & Local Government,DCLG,10/04/2015,Steady State Service Provision,Finance & Corporate Services,VODAFONE UK(FSSD USE ONLY),,Large,,397467572,5106212078,Business Process Outsourcing Services,Managed Internet Access Line,RG14 5FF,582.58,
Communities & Local Government,DCLG,10/04/2015,Telecoms equipment (non-capitalised),Finance & Corporate Services,DAMOVO UK LTD,,Large,,221481042,5106212086,Telecoms,WiFi for Regional Offices,RH12 4QP,"1,104.00",
Communities & Local Government,DCLG,10/04/2015,Travel and Subsistence Account,Localism,DIAL A CAB,,Medium,,225338235,2100253582,Business Travel,Travel March 2015,N1 6AH,309.60,
Communities & Local Government,DCLG,10/04/2015,Travel and Subsistence Account,"Strategy, Communications and Private Office",DIAL A CAB,,Medium,,225338235,2100253582,Business Travel,Travel March 2015,N1 6AH,12.02,
Communities & Local Government,DCLG,10/04/2015,Travel and Subsistence Account,"Strategy, Communications and Private Office",DIAL A CAB,,Medium,,225338235,2100253582,Business Travel,Travel March 2015,N1 6AH,34.95,
Communities & Local Government,DCLG,10/04/2015,Travel and Subsistence Account,"Strategy, Communications and Private Office",DIAL A CAB,,Medium,,225338235,2100253582,Business Travel,Travel March 2015,N1 6AH,"1,041.09",
Communities & Local Government,DCLG,10/04/2015,Variable Maintenance < 15k,Finance & Corporate Services,INTERSERVE (FACILITIES MANAGEMENT),,Large,,364834825,5106212067,Property Occupation,"Rosebrae Court, Birkenhead",BS32 4NH,"18,259.65",
Communities & Local Government,DCLG,10/04/2015,Work In Progress Pre-Cert 40373 Spend,Neighbourhoods,CITY OF BRISTOL COLLEGE,,,,,7600012341,,Revenue Grant Clawback Offset,BS2 2BB,-11.97,Yes
Communities & Local Government,DCLG,10/04/2015,Work In Progress Pre-Cert 40373 Spend,Neighbourhoods,CITY OF BRISTOL COLLEGE,,,,,7600012341,,Revenue Grant To Be Paid,BS2 2BB,"1,887.82",Yes
Communities & Local Government,DCLG,10/04/2015,Work In Progress Pre-Cert 40373 Spend,Neighbourhoods,PERA CONSULTING UK LTD,,Medium,,,7600012339,,Revenue Grant To Be Paid,LE13 0PB,"112,878.54",Yes
Communities & Local Government,DCLG,10/04/2015,Work In Progress Pre-Cert 40467 Spend,Neighbourhoods,CORNWALL COLLEGE,,,,,7600012338,,Capital Grant Clawback Offset,TR15 3RD,"-2,912.42",Yes
Communities & Local Government,DCLG,10/04/2015,Work In Progress Pre-Cert 40467 Spend,Neighbourhoods,CORNWALL COLLEGE,,,,,7600012338,,Capital Grant To Be Paid,TR15 3RD,"14,746.77",Yes
Communities & Local Government,DCLG,10/04/2015,Work In Progress Pre-Cert 40467 Spend,Neighbourhoods,CORNWALL COLLEGE,,,,,7600012343,,Capital Grant To Be Paid,TR15 3RD,"11,690.41",Yes
Communities & Local Government,DCLG,10/04/2015,Work In Progress Pre-Cert 40467 Spend,Neighbourhoods,ENGINEERED ARTS LTD,,,,,7600012340,,Capital Grant To Be Paid,TR10 9EW,"1,033.88",Yes
Communities & Local Government,DCLG,10/04/2015,Work In Progress Pre-Cert 40467 Spend,Neighbourhoods,ENGINEERED ARTS LTD,,,,,7600012344,,Capital Grant To Be Paid,TR10 9EW,"11,699.99",Yes
Communities & Local Government,DCLG,10/04/2015,Work In Progress Pre-Cert 40467 Spend,Neighbourhoods,KROWJI LTD,,,,,7600012342,,Capital Grant To Be Paid,TR15 3AJ,"69,778.90",Yes
Communities & Local Government,DCLG,13/04/2015,Agency Staff,Finance & Corporate Services,CAPITA BUS. SERV. LTD (CON LAB),,Large,,,5106212110,Contingent Labour,Interim Manager - Bristol,DL1 9HB,"5,287.90",
Communities & Local Government,DCLG,13/04/2015,Agency Staff,Finance & Corporate Services,CAPITA BUS. SERV. LTD (CON LAB),,Large,,,5106212111,Contingent Labour,Interim Manager,DL1 9HB,"2,445.41",
Communities & Local Government,DCLG,13/04/2015,Agency Staff,Finance & Corporate Services,CAPITA BUS. SERV. LTD (CON LAB),,Large,,,5106212112,Contingent Labour,Interim Manager- SW,DL1 9HB,"3,929.18",
Communities & Local Government,DCLG,13/04/2015,Agency Staff,Finance & Corporate Services,SQUARE ONE RESOURCES LTD,,Medium,,491410288,5106212123,Contingent Labour,SAP specialist support until Closedown,EC2A 2AD,"2,001.18",
Communities & Local Government,DCLG,13/04/2015,Agency Staff,Localism,CAPITA BUS. SERV. LTD (CON LAB),,Large,,,5106211979,Contingent Labour,Interim Manager,DL1 9HB,"3,199.92",
Communities & Local Government,DCLG,13/04/2015,Agency Staff,Localism,CAPITA BUS. SERV. LTD (CON LAB),,Large,,,5106212114,Contingent Labour,Interim Manager,DL1 9HB,566.78,
Communities & Local Government,DCLG,13/04/2015,Agency Staff,Localism,CAPITA BUS. SERV. LTD (CON LAB),,Large,,,5106212115,Contingent Labour,Interim Manager,DL1 9HB,"5,989.36",
Communities & Local Government,DCLG,13/04/2015,Agency Staff,Neighbourhoods,BOND DICKINSON LLP,,Large,,,5106212128,Contingent Labour,ERDF Legal Auditors (Sep - Feb),NE1 3DX,"11,508.00",
Communities & Local Government,DCLG,13/04/2015,Agency Staff,Neighbourhoods,BOND DICKINSON LLP,,Large,,,5106212128,Contingent Labour,ERDF Legal Auditors Expenses (Sep - Feb),NE1 3DX,190.92,
Communities & Local Government,DCLG,13/04/2015,Agency Staff,Neighbourhoods,CAPITA BUS. SERV. LTD (CON LAB),,Large,,,5106212104,Contingent Labour,Interim Manager,DL1 9HB,"3,735.94",
Communities & Local Government,DCLG,13/04/2015,Agency Staff,Neighbourhoods,CAPITA BUS. SERV. LTD (CON LAB),,Large,,,5106212116,Contingent Labour,Interim Manager,DL1 9HB,"1,081.82",
Communities & Local Government,DCLG,13/04/2015,Agency Staff,Neighbourhoods,CAPITA BUS. SERV. LTD (CON LAB),,Large,,,5106212117,Contingent Labour,Interim Manager,DL1 9HB,"7,224.18",
Communities & Local Government,DCLG,13/04/2015,Courier Services,Finance & Corporate Services,CHARITY COMMISSION,,,,214475936,5106212119,Office Solutions,Princes Dock Postal Charges 2013-2015,TA1 4BL,"3,121.15",
Communities & Local Government,DCLG,13/04/2015,Courier Services,Finance & Corporate Services,CHARITY COMMISSION,,,,214475936,5106212120,Office Solutions,Princes Dock Postal Charges 2013-2015,TA1 4BL,"4,125.83",
Communities & Local Government,DCLG,13/04/2015,Current Grants to Non Profit Bodies,Neighbourhoods,MARKLOGIC CORPORATION,,Large,,,5106212130,IT Managed / Outsourced Services,FCF Additional Services,CA 94070,"29,925.00",Yes
